Department Family,Entity,Date,Expense Type,Expense Area,Supplier,Transaction Number,Amount
"Department for Business, Innovation and Skills","Department for Business, Innovation and Skills",08/11/2010,Independent Experts,Business Group - Advanced Manufacturing Industries,A C DICKER T/A GLEVERS,1011159,"4,166.66"
"Department for Business, Innovation and Skills","Department for Business, Innovation and Skills",23/11/2010,Independent Experts,Business Group - Advanced Manufacturing Industries,A C DICKER T/A GLEVERS,1012564,"4,166.66"
"Department for Business, Innovation and Skills","Department for Business, Innovation and Skills",02/11/2010,Other Staff Welfare Costs,"Legal, People & Communications Group - HRCM - Human Resources and Change Management Directorate",ABILITYNET,1010586,605
"Department for Business, Innovation and Skills","Department for Business, Innovation and Skills",29/11/2010,Other Staff Welfare Costs,"Legal, People & Communications Group - HRCM - Human Resources and Change Management Directorate",ABILITYNET,1012923,"3,677.80"
"Department for Business, Innovation and Skills","Department for Business, Innovation and Skills",01/11/2010,Non-GIA Funding of Bodies (Departmental and Non-Departmental),Fair Markets Group Summary - Employment Relations,ACAS,1010347,"3,300,000.00"
"Department for Business, Innovation and Skills","Department for Business, Innovation and Skills",08/11/2010,ICT Training,"Legal, People & Communications Group - HRCM - Human Resources and Change Management Directorate",ACKNOWLEDGE LTD,1010504,615
"Department for Business, Innovation and Skills","Department for Business, Innovation and Skills",01/11/2010,InfoSource Desktop Information and Research Services,Finance & Commercial Group - Information and Workplace Strategies,ACKNOWLEDGE LTD,1010503,900
"Department for Business, Innovation and Skills","Department for Business, Innovation and Skills",18/11/2010,ICT Training,Finance & Commercial Group - Finance Group,ACKNOWLEDGE LTD,1012224,950
"Department for Business, Innovation and Skills","Department for Business, Innovation and Skills",10/11/2010,Recruitment Consultancy Costs,Ministerial and Parliamentary Support Team - Ministerial and Parliamentary Support Team,ADECCO UK LTD,1011580,502.17
"Department for Business, Innovation and Skills","Department for Business, Innovation and Skills",18/11/2010,Hire of Agency Staff (Clerical/Secretariat/Other),"Legal, People & Communications Group - HRCM - Human Resources and Change Management Directorate",ADECCO UK LTD,1012205,506.6
"Department for Business, Innovation and Skills","Department for Business, Innovation and Skills",02/11/2010,Hire of Agency Staff (Clerical/Secretariat/Other),"Legal, People & Communications Group - Priority Projects Drectorate",ADECCO UK LTD,1010386,525.72
"Department for Business, Innovation and Skills","Department for Business, Innovation and Skills",25/11/2010,Hire of Agency Staff (Clerical/Secretariat/Other),Ministerial and Parliamentary Support Team - Ministerial and Parliamentary Support Team,ADECCO UK LTD,1012722,534.12
"Department for Business, Innovation and Skills","Department for Business, Innovation and Skills",10/11/2010,Hire of Agency Staff (Clerical/Secretariat/Other),"Legal, People & Communications Group - Communications Directorate",ADECCO UK LTD,1011559,555.65
"Department for Business, Innovation and Skills","Department for Business, Innovation and Skills",02/11/2010,Hire of Agency Staff (Clerical/Secretariat/Other),Business Group - Advanced Manufacturing Industries,ADECCO UK LTD,1010432,559.42
"Department for Business, Innovation and Skills","Department for Business, Innovation and Skills",10/11/2010,Hire of Agency Staff (Clerical/Secretariat/Other),Business Group - Advanced Manufacturing Industries,ADECCO UK LTD,1011576,559.42
"Department for Business, Innovation and Skills","Department for Business, Innovation and Skills",25/11/2010,Hire of Agency Staff (Clerical/Secretariat/Other),Business Group - Advanced Manufacturing Industries,ADECCO UK LTD,1012737,559.42
"Department for Business, Innovation and Skills","Department for Business, Innovation and Skills",18/11/2010,Hire of Agency Staff (Clerical/Secretariat/Other),Business Group - Advanced Manufacturing Industries,ADECCO UK LTD,1012073,562.79
"Department for Business, Innovation and Skills","Department for Business, Innovation and Skills",10/11/2010,Hire of Agency Staff (Clerical/Secretariat/Other),"Legal, People & Communications Group - Priority Projects Drectorate",ADECCO UK LTD,1011536,570.5
"Department for Business, Innovation and Skills","Department for Business, Innovation and Skills",18/11/2010,Hire of Agency Staff (Clerical/Secretariat/Other),Ministerial and Parliamentary Support Team - Ministerial and Parliamentary Support Team,ADECCO UK LTD,1012207,580.17
"Department for Business, Innovation and Skills","Department for Business, Innovation and Skills",24/11/2010,Hire of Agency Staff (Clerical/Secretariat/Other),Ministerial and Parliamentary Support Team - Ministerial and Parliamentary Support Team,ADECCO UK LTD,1012724,585.56
"Department for Business, Innovation and Skills","Department for Business, Innovation and Skills",18/11/2010,Hire of Agency Staff (Clerical/Secretariat/Other),Ministerial and Parliamentary Support Team - Ministerial and Parliamentary Support Team,ADECCO UK LTD,1012209,593.79
"Department for Business, Innovation and Skills","Department for Business, Innovation and Skills",01/11/2010,Hire of Agency Staff (Clerical/Secretariat/Other),"Legal, People & Communications Group - Communications Directorate",ADECCO UK LTD,1010407,596.52
"Department for Business, Innovation and Skills","Department for Business, Innovation and Skills",24/11/2010,Hire of Agency Staff (Clerical/Secretariat/Other),"Legal, People & Communications Group - Communications Directorate",ADECCO UK LTD,1012726,596.52
"Department for Business, Innovation and Skills","Department for Business, Innovation and Skills",24/11/2010,Recruitment Consultancy Costs,Ministerial and Parliamentary Support Team - Ministerial and Parliamentary Support Team,ADECCO UK LTD,1012723,604.33
"Department for Business, Innovation and Skills","Department for Business, Innovation and Skills",10/11/2010,Hire of Agency Staff (Clerical/Secretariat/Other),Ministerial and Parliamentary Support Team - Ministerial and Parliamentary Support Team,ADECCO UK LTD,1011535,604.69
"Department for Business, Innovation and Skills","Department for Business, Innovation and Skills",25/11/2010,Hire of Agency Staff (Clerical/Secretariat/Other),"Innovation, Enterprise & Better Regulation Executive - Better Regulation Executive (BRE)",ADECCO UK LTD,1012082,608.13
"Department for Business, Innovation and Skills","Department for Business, Innovation and Skills",18/11/2010,Hire of Agency Staff (Clerical/Secretariat/Other),"Legal, People & Communications Group - Legal",ADECCO UK LTD,1012085,611.31
"Department for Business, Innovation and Skills","Department for Business, Innovation and Skills",17/11/2010,Hire of Agency Staff (Clerical/Secretariat/Other),"Legal, People & Communications Group - Communications Directorate",ADECCO UK LTD,1012066,612.87
"Department for Business, Innovation and Skills","Department for Business, Innovation and Skills",10/11/2010,Hire of Agency Staff (Clerical/Secretariat/Other),Ministerial and Parliamentary Support Team - Ministerial and Parliamentary Support Team,ADECCO UK LTD,1011540,616.95
"Department for Business, Innovation and Skills","Department for Business, Innovation and Skills",02/11/2010,Hire of Agency Staff (Clerical/Secretariat/Other),"Legal, People & Communications Group - Legal",ADECCO UK LTD,1010160,627.05
"Department for Business, Innovation and Skills","Department for Business, Innovation and Skills",18/11/2010,Hire of Agency Staff (Clerical/Secretariat/Other),"Legal, People & Communications Group - Priority Projects Drectorate",ADECCO UK LTD,1012078,628.38
"Department for Business, Innovation and Skills","Department for Business, Innovation and Skills",02/11/2010,Hire of Agency Staff (Clerical/Secretariat/Other),Ministerial and Parliamentary Support Team - Ministerial and Parliamentary Support Team,ADECCO UK LTD,1010437,637.38
"Department for Business, Innovation and Skills","Department for Business, Innovation and Skills",18/11/2010,Hire of Agency Staff (Clerical/Secretariat/Other),Ministerial and Parliamentary Support Team - Ministerial and Parliamentary Support Team,ADECCO UK LTD,1012208,637.38
"Department for Business, Innovation and Skills","Department for Business, Innovation and Skills",25/11/2010,Hire of Agency Staff (Clerical/Secretariat/Other),"Legal, People & Communications Group - Priority Projects Drectorate",ADECCO UK LTD,1012719,644.89
"Department for Business, Innovation and Skills","Department for Business, Innovation and Skills",02/11/2010,Hire of Agency Staff (Clerical/Secretariat/Other),"Legal, People & Communications Group - Communications Directorate",ADECCO UK LTD,1010225,676.61
"Department for Business, Innovation and Skills","Department for Business, Innovation and Skills",15/11/2010,Hire of Agency Staff (Clerical/Secretariat/Other),"Legal, People & Communications Group - Communications Directorate",ADECCO UK LTD,1011534,676.61
"Department for Business, Innovation and Skills","Department for Business, Innovation and Skills",18/11/2010,Hire of Agency Staff (Clerical/Secretariat/Other),"Legal, People & Communications Group - Communications Directorate",ADECCO UK LTD,1012206,676.61
"Department for Business, Innovation and Skills","Department for Business, Innovation and Skills",24/11/2010,Hire of Agency Staff (Clerical/Secretariat/Other),"Legal, People & Communications Group - Communications Directorate",ADECCO UK LTD,1012721,676.61
"Department for Business, Innovation and Skills","Department for Business, Innovation and Skills",26/11/2010,Hire of Agency Staff (Clerical/Secretariat/Other),Ministerial and Parliamentary Support Team - Ministerial and Parliamentary Support Team,ADECCO UK LTD,1012733,678.26
"Department for Business, Innovation and Skills","Department for Business, Innovation and Skills",02/11/2010,Hire of Agency Staff (Clerical/Secretariat/Other),Business Group - Advanced Manufacturing Industries,ADECCO UK LTD,1010379,680.1
"Department for Business, Innovation and Skills","Department for Business, Innovation and Skills",10/11/2010,Hire of Agency Staff (Clerical/Secretariat/Other),Business Group - Advanced Manufacturing Industries,ADECCO UK LTD,1011579,680.1
"Department for Business, Innovation and Skills","Department for Business, Innovation and Skills",18/11/2010,Hire of Agency Staff (Clerical/Secretariat/Other),Business Group - Advanced Manufacturing Industries,ADECCO UK LTD,1012072,680.1
"Department for Business, Innovation and Skills","Department for Business, Innovation and Skills",25/11/2010,Hire of Agency Staff (Clerical/Secretariat/Other),Business Group - Advanced Manufacturing Industries,ADECCO UK LTD,1012734,680.1
"Department for Business, Innovation and Skills","Department for Business, Innovation and Skills",02/11/2010,Hire of Agency Staff (Clerical/Secretariat/Other),"Legal, People & Communications Group - Legal",ADECCO UK LTD,1010377,750.58
"Department for Business, Innovation and Skills","Department for Business, Innovation and Skills",29/11/2010,Hire of Agency Staff (Clerical/Secretariat/Other),"Legal, People & Communications Group - Legal",ADECCO UK LTD,1012730,755.81
"Department for Business, Innovation and Skills","Department for Business, Innovation and Skills",01/11/2010,Hire of Agency Staff (Clerical/Secretariat/Other),"Legal, People & Communications Group - Legal",ADECCO UK LTD,1010176,761.02
"Department for Business, Innovation and Skills","Department for Business, Innovation and Skills",10/11/2010,Hire of Agency Staff (Clerical/Secretariat/Other),"Innovation, Enterprise & Better Regulation Executive - Better Regulation Executive (BRE)",ADECCO UK LTD,1011531,764.31
"Department for Business, Innovation and Skills","Department for Business, Innovation and Skills",25/11/2010,Hire of Agency Staff (Clerical/Secretariat/Other),"Innovation, Enterprise & Better Regulation Executive - Better Regulation Executive (BRE)",ADECCO UK LTD,1012746,805.96
"Department for Business, Innovation and Skills","Department for Business, Innovation and Skills",01/11/2010,Hire of Agency Staff (Clerical/Secretariat/Other),"Innovation, Enterprise & Better Regulation Executive - Better Regulation Executive (BRE)",ADECCO UK LTD,1010388,816.37
"Department for Business, Innovation and Skills","Department for Business, Innovation and Skills",10/11/2010,Hire of Agency Staff (Clerical/Secretariat/Other),Shareholder Executive - Shareholder Executive,ADECCO UK LTD,1011575,821.57
"Department for Business, Innovation and Skills","Department for Business, Innovation and Skills",12/11/2010,Hire of Agency Staff (Clerical/Secretariat/Other),Shareholder Executive - Shareholder Executive,ADECCO UK LTD,1011732,826.79
"Department for Business, Innovation and Skills","Department for Business, Innovation and Skills",18/11/2010,Hire of Agency Staff (Professional/Management),Ministerial and Parliamentary Support Team - Ministerial and Parliamentary Support Team,ADECCO UK LTD,1012204,858.01
"Department for Business, Innovation and Skills","Department for Business, Innovation and Skills",19/11/2010,Hire of Agency Staff (Clerical/Secretariat/Other),"Innovation, Enterprise & Better Regulation Executive - Enterprise Directorate",ADECCO UK LTD,1012081,907.12
"Department for Business, Innovation and Skills","Department for Business, Innovation and Skills",01/11/2010,Hire of Agency Staff (Clerical/Secretariat/Other),"Innovation, Enterprise & Better Regulation Executive - Enterprise Directorate",ADECCO UK LTD,1010408,940.63
"Department for Business, Innovation and Skills","Department for Business, Innovation and Skills",26/11/2010,Hire of Agency Staff (Clerical/Secretariat/Other),"Innovation, Enterprise & Better Regulation Executive - Enterprise Directorate",ADECCO UK LTD,1012744,940.63
"Department for Business, Innovation and Skills","Department for Business, Innovation and Skills",10/11/2010,Hire of Agency Staff (Clerical/Secretariat/Other),"Innovation, Enterprise & Better Regulation Executive - Enterprise Directorate",ADECCO UK LTD,1011519,968.58
"Department for Business, Innovation and Skills","Department for Business, Innovation and Skills",09/11/2010,Grants - Non Statutory - Current - Other,Business Group - Advanced Manufacturing Industries,ADVANTAGE WEST MIDLANDS,1011018,"8,121.83"
"Department for Business, Innovation and Skills","Department for Business, Innovation and Skills",09/11/2010,Grants - Non Statutory - Current - Other,Business Group - Advanced Manufacturing Industries,ADVANTAGE WEST MIDLANDS,1011025,"16,393.68"
"Department for Business, Innovation and Skills","Department for Business, Innovation and Skills",09/11/2010,Grants - Non Statutory - Current - Other,Business Group - Advanced Manufacturing Industries,ADVANTAGE WEST MIDLANDS,1011018,"17,220.06"
"Department for Business, Innovation and Skills","Department for Business, Innovation and Skills",09/11/2010,Grants - Non Statutory - Current - Other,Business Group - Advanced Manufacturing Industries,ADVANTAGE WEST MIDLANDS,1011025,"22,519.30"
"Department for Business, Innovation and Skills","Department for Business, Innovation and Skills",09/11/2010,Grants - Non Statutory - Current - Other,Business Group - Advanced Manufacturing Industries,ADVANTAGE WEST MIDLANDS,1011018,"39,019.17"
"Department for Business, Innovation and Skills","Department for Business, Innovation and Skills",12/11/2010,Grant in Aid - Current -Other,Business Group - Economic Development Directorate,ADVANTAGE WEST MIDLANDS,1011366,"15,000,000.00"
"Department for Business, Innovation and Skills","Department for Business, Innovation and Skills",24/11/2010,Outsourced Programme Management Services,SCIENCE & RESEARCH GROUP - RESEARCH BASE,AEA TECHNOLOGY plc,1012604,"101,050.00"
"Department for Business, Innovation and Skills","Department for Business, Innovation and Skills",11/11/2010,External Training,Finance & Commercial Group - Finance Group,AIMS4CHANGE LTD,1011705,"1,495.00"
"Department for Business, Innovation and Skills","Department for Business, Innovation and Skills",23/11/2010,PPM (Project & Programme Management) Training,Universities and Skills Group - USG Admin,AIMS4CHANGE LTD,1012419,"5,345.00"
"Department for Business, Innovation and Skills","Department for Business, Innovation and Skills",15/11/2010,Loan Guarantees,Finance & Commercial Group - Finance Group,ALLEN & OVERY LLP,1011845,"1,271.52"
"Department for Business, Innovation and Skills","Department for Business, Innovation and Skills",17/11/2010,Research & Development Expenditure (Programme),GOVERNMENT OFFICE FOR SCIENCE - GOVERNMENT OFFICE FOR SCIENCE,ALLIANCE FOR A GREEN REVOLUTION IN AFRICA (AGRA),1011806,"1,972.45"
"Department for Business, Innovation and Skills","Department for Business, Innovation and Skills",30/11/2010,Accounting Services,Finance & Commercial Group - Finance Group,AMEY COMMUNITY LTD,1013099,"1,066.65"
"Department for Business, Innovation and Skills","Department for Business, Innovation and Skills",30/11/2010,Accounting Services,Finance & Commercial Group - Finance Group,AMEY COMMUNITY LTD,1013097,"2,500.00"
"Department for Business, Innovation and Skills","Department for Business, Innovation and Skills",01/11/2010,Accounting Services,Finance & Commercial Group - Finance Group,AMEY COMMUNITY LTD,1010480,"3,150.20"
"Department for Business, Innovation and Skills","Department for Business, Innovation and Skills",30/11/2010,Accounting Services,Finance & Commercial Group - Finance Group,AMEY COMMUNITY LTD,1013094,"3,150.20"
"Department for Business, Innovation and Skills","Department for Business, Innovation and Skills",01/11/2010,Accounting Services,Finance & Commercial Group - Finance Group,AMEY COMMUNITY LTD,1010479,"6,752.00"
"Department for Business, Innovation and Skills","Department for Business, Innovation and Skills",30/11/2010,Accounting Services,Finance & Commercial Group - Finance Group,AMEY COMMUNITY LTD,1013095,"6,752.00"
"Department for Business, Innovation and Skills","Department for Business, Innovation and Skills",30/11/2010,Financial Advice and Services,Finance & Commercial Group - Finance Group,AMEY COMMUNITY LTD,1013091,"53,265.00"
"Department for Business, Innovation and Skills","Department for Business, Innovation and Skills",01/11/2010,Payments to Treasury Solicitors and Treasury Counsel,"Legal, People & Communications Group - Legal",ANDERSON STRATHERN LLP,1009641,722
"Department for Business, Innovation and Skills","Department for Business, Innovation and Skills",30/11/2010,Criminal Law and Prosecution Work,"Legal, People & Communications Group - Legal",ANDREW DAVIDSON,1013017,951.75
"Department for Business, Innovation and Skills","Department for Business, Innovation and Skills",19/11/2010,Professional Training,Universities and Skills Group - USG Admin,AOC CREATE LTD T/A ASSOCIATION OF COLLEGES,1012284,600
"Department for Business, Innovation and Skills","Department for Business, Innovation and Skills",17/11/2010,Car Hire and Leasing,Fair Markets Group Summary - Employment Relations,AON LTD,1012059,"4,245.00"
"Department for Business, Innovation and Skills","Department for Business, Innovation and Skills",17/11/2010,Lifts,Finance & Commercial Group - Information and Workplace Strategies,APEX LIFT AND ESCALATOR ENGINEERS LTD,1012100,725.44
"Department for Business, Innovation and Skills","Department for Business, Innovation and Skills",17/11/2010,Lifts,Finance & Commercial Group - Information and Workplace Strategies,APEX LIFT AND ESCALATOR ENGINEERS LTD,1012100,"1,013.44"
"Department for Business, Innovation and Skills","Department for Business, Innovation and Skills",02/11/2010,Maintenance,Finance & Commercial Group - Information and Workplace Strategies,APEX LIFT AND ESCALATOR ENGINEERS LTD,1010656,"1,337.79"
"Department for Business, Innovation and Skills","Department for Business, Innovation and Skills",17/11/2010,Lifts,Finance & Commercial Group - Information and Workplace Strategies,APEX LIFT AND ESCALATOR ENGINEERS LTD,1012100,"1,813.59"
"Department for Business, Innovation and Skills","Department for Business, Innovation and Skills",17/11/2010,Maintenance,Finance & Commercial Group - Information and Workplace Strategies,APEX LIFT AND ESCALATOR ENGINEERS LTD,1012107,"3,385.86"
"Department for Business, Innovation and Skills","Department for Business, Innovation and Skills",17/11/2010,Lifts,Finance & Commercial Group - Information and Workplace Strategies,APEX LIFT AND ESCALATOR ENGINEERS LTD,1012100,"8,822.51"
"Department for Business, Innovation and Skills","Department for Business, Innovation and Skills",05/11/2010,Grant in Aid - Current -Other,SCIENCE & RESEARCH GROUP - RESEARCH BASE,ARTS AND HUMANITIES RESEARCH COUNCIL,1010972,"4,990,000.00"
"Department for Business, Innovation and Skills","Department for Business, Innovation and Skills",15/11/2010,Car Hire and Leasing (Programme),Fair Markets Group Summary - ECO,ARVAL (UK) LTD,1009893,533.68
"Department for Business, Innovation and Skills","Department for Business, Innovation and Skills",18/11/2010,Coaching,Universities and Skills Group - USG Admin,ASHRIDGE,1011152,"1,125.60"
"Department for Business, Innovation and Skills","Department for Business, Innovation and Skills",05/11/2010,Economic Consultancy and Research,"Innovation, Enterprise & Better Regulation Executive - Enterprise Directorate",ASTON UNIVERSITY,1010958,"11,666.00"
"Department for Business, Innovation and Skills","Department for Business, Innovation and Skills",05/11/2010,Economic Consultancy and Research,"Innovation, Enterprise & Better Regulation Executive - Enterprise Directorate",ASTON UNIVERSITY,1010979,"11,666.00"
"Department for Business, Innovation and Skills","Department for Business, Innovation and Skills",05/11/2010,Economic Consultancy and Research,"Innovation, Enterprise & Better Regulation Executive - Enterprise Directorate",ASTON UNIVERSITY,1010958,"11,667.00"
"Department for Business, Innovation and Skills","Department for Business, Innovation and Skills",05/11/2010,Economic Consultancy and Research,"Innovation, Enterprise & Better Regulation Executive - Enterprise Directorate",ASTON UNIVERSITY,1010958,"11,667.00"
"Department for Business, Innovation and Skills","Department for Business, Innovation and Skills",24/11/2010,Media and Design Services,"Innovation, Enterprise & Better Regulation Executive - Enterprise Directorate",ATRIUM (UK) LTD,1012601,"3,000.00"
"Department for Business, Innovation and Skills","Department for Business, Innovation and Skills",11/11/2010,Catering Services (Programme),SCIENCE & RESEARCH GROUP - UK Space Agency,AVENANCE PLC,1011715,"3,626.60"
"Department for Business, Innovation and Skills","Department for Business, Innovation and Skills",03/11/2010,Other Overseas T&S,Ministerial and Parliamentary Support Team - Ministerial and Parliamentary Support Team,BAA BUSINESS SUPPORT CENTRE LTD (HEATHROW AIRPORT),1010221,"1,269.00"
"Department for Business, Innovation and Skills","Department for Business, Innovation and Skills",15/11/2010,Outsourced Programme Management Services,"Legal, People & Communications Group - Communications Directorate",BADENOCH AND CLARK LTD,1011869,"1,825.30"
"Department for Business, Innovation and Skills","Department for Business, Innovation and Skills",24/11/2010,Outsourced Programme Management Services,"Legal, People & Communications Group - Communications Directorate",BADENOCH AND CLARK LTD,1012432,"1,825.30"
"Department for Business, Innovation and Skills","Department for Business, Innovation and Skills",29/11/2010,Outsourced Programme Management Services,"Legal, People & Communications Group - Communications Directorate",BADENOCH AND CLARK LTD,1012973,"1,825.30"
"Department for Business, Innovation and Skills","Department for Business, Innovation and Skills",03/11/2010,Payments to Barclays for Carlson Wagonlit Travel Contract,Finance & Commercial Group - Finance Group,BANNER BUSINESS SERVICES LTD,1006063,578.25
"Department for Business, Innovation and Skills","Department for Business, Innovation and Skills",03/11/2010,Payments to Barclays for Carlson Wagonlit Travel Contract,Finance & Commercial Group - Finance Group,BANNER BUSINESS SERVICES LTD,1010761,"1,300.27"
"Department for Business, Innovation and Skills","Department for Business, Innovation and Skills",12/11/2010,GPC New Procedures,Corporate Payments,BARCLAYS BANK PLC,1011761,"11,361.90"
"Department for Business, Innovation and Skills","Department for Business, Innovation and Skills",12/11/2010,GPC New Procedures,Finance & Commercial Group - Finance Group,BARCLAYS BANK PLC,1011760,"29,148.58"
"Department for Business, Innovation and Skills","Department for Business, Innovation and Skills",12/11/2010,GPC New Procedures,Finance & Commercial Group - Finance Group,BARCLAYS BANK PLC,1011759,"88,034.55"
"Department for Business, Innovation and Skills","Department for Business, Innovation and Skills",12/11/2010,Payments to Barclays for Carlson Wagonlit Travel Contract,Finance & Commercial Group - Finance Group,BARCLAYS BANK PLC,1011762,"292,992.23"
"Department for Business, Innovation and Skills","Department for Business, Innovation and Skills",17/11/2010,Maintenance,Finance & Commercial Group - Information and Workplace Strategies,BAXTERSTOREY LTD,1012092,"1,118.00"
"Department for Business, Innovation and Skills","Department for Business, Innovation and Skills",17/11/2010,Hire of Conference Facilities,Finance & Commercial Group - Information and Workplace Strategies,BAXTERSTOREY LTD,1012095,"2,500.00"
"Department for Business, Innovation and Skills","Department for Business, Innovation and Skills",09/11/2010,Hire of Conference Facilities,Finance & Commercial Group - Information and Workplace Strategies,BAXTERSTOREY LTD,1011003,"3,603.50"
"Department for Business, Innovation and Skills","Department for Business, Innovation and Skills",18/11/2010,Hire of Conference Facilities,Finance & Commercial Group - Information and Workplace Strategies,BAXTERSTOREY LTD,1012203,"32,875.00"
"Department for Business, Innovation and Skills","Department for Business, Innovation and Skills",19/11/2010,Economic Consultancy and Research,"Innovation, Enterprise & Better Regulation Executive - Enterprise Directorate",BDRC CONTINENTAL LTD,1012316,500
"Department for Business, Innovation and Skills","Department for Business, Innovation and Skills",19/11/2010,Economic Consultancy and Research,"Innovation, Enterprise & Better Regulation Executive - Enterprise Directorate",BDRC CONTINENTAL LTD,1012317,"16,250.00"
"Department for Business, Innovation and Skills","Department for Business, Innovation and Skills",10/11/2010,Additions - Bridges Fund Investment,"Innovation, Enterprise & Better Regulation Executive - Enterprise Directorate",BERR EQUITY INVESTMENT PROGRAMMES (CAPITAL),1011598,"13,978.96"
"Department for Business, Innovation and Skills","Department for Business, Innovation and Skills",08/11/2010,Additions - Enterprise Equity Investments,"Innovation, Enterprise & Better Regulation Executive - Enterprise Directorate",BERR EQUITY INVESTMENT PROGRAMMES (CAPITAL),1011108,"79,602.62"
"Department for Business, Innovation and Skills","Department for Business, Innovation and Skills",05/11/2010,Additions - Enterprise Equity Investments,"Innovation, Enterprise & Better Regulation Executive - Enterprise Directorate",BERR EQUITY INVESTMENT PROGRAMMES (CAPITAL),1010983,"100,000.00"
"Department for Business, Innovation and Skills","Department for Business, Innovation and Skills",23/11/2010,Additions - Enterprise Equity Investments,"Innovation, Enterprise & Better Regulation Executive - Enterprise Directorate",BERR EQUITY INVESTMENT PROGRAMMES (CAPITAL),1012597,"456,589.73"
"Department for Business, Innovation and Skills","Department for Business, Innovation and Skills",23/11/2010,Additions - Enterprise Equity Investments,"Innovation, Enterprise & Better Regulation Executive - Enterprise Directorate",BERR EQUITY INVESTMENT PROGRAMMES (CAPITAL),1012597,"800,819.60"
"Department for Business, Innovation and Skills","Department for Business, Innovation and Skills",23/11/2010,Cash Expenditure during the Year - SFLG,"Innovation, Enterprise & Better Regulation Executive - Enterprise Directorate",BERR SFLG PAYMENT TO LENDERS,1012514,"32,420.80"
"Department for Business, Innovation and Skills","Department for Business, Innovation and Skills",10/11/2010,Cash Expenditure during the Year - SFLG,"Innovation, Enterprise & Better Regulation Executive - Enterprise Directorate",BERR SFLG PAYMENT TO LENDERS,1011599,"48,348.08"
"Department for Business, Innovation and Skills","Department for Business, Innovation and Skills",10/11/2010,Cash Expenditure during the Year - SFLG,"Innovation, Enterprise & Better Regulation Executive - Enterprise Directorate",BERR SFLG PAYMENT TO LENDERS,1011601,"63,637.00"
"Department for Business, Innovation and Skills","Department for Business, Innovation and Skills",11/11/2010,Outsourced Technical Support (Programme),"Innovation, Enterprise & Better Regulation Executive - Enterprise Directorate",BETA TECHNOLOGY LTD,1011432,"25,262.50"
"Department for Business, Innovation and Skills","Department for Business, Innovation and Skills",16/11/2010,Grants - Statutory - Current - Other,SCIENCE & RESEARCH GROUP - RESEARCH BASE,BIOTECHNOLOGY AND BIOLOGICAL SCIENCE RESEARCH COUNCIL,1011847,"8,020.50"
"Department for Business, Innovation and Skills","Department for Business, Innovation and Skills",15/11/2010,Grants - Statutory - Current - Other,SCIENCE & RESEARCH GROUP - RESEARCH BASE,BIOTECHNOLOGY AND BIOLOGICAL SCIENCE RESEARCH COUNCIL,1011846,"24,315.50"
"Department for Business, Innovation and Skills","Department for Business, Innovation and Skills",16/11/2010,Grants - Statutory - Current - Other,SCIENCE & RESEARCH GROUP - RESEARCH BASE,BIOTECHNOLOGY AND BIOLOGICAL SCIENCE RESEARCH COUNCIL,1011847,"42,726.50"
"Department for Business, Innovation and Skills","Department for Business, Innovation and Skills",05/11/2010,Grants - Statutory - Current - Other,SCIENCE & RESEARCH GROUP - RESEARCH BASE,BIOTECHNOLOGY AND BIOLOGICAL SCIENCE RESEARCH COUNCIL,1010969,"2,700,000.00"
"Department for Business, Innovation and Skills","Department for Business, Innovation and Skills",05/11/2010,Grant in Aid - Current -Other,SCIENCE & RESEARCH GROUP - RESEARCH BASE,BIOTECHNOLOGY AND BIOLOGICAL SCIENCE RESEARCH COUNCIL,1010968,"20,000,000.00"
"Department for Business, Innovation and Skills","Department for Business, Innovation and Skills",25/11/2010,Criminal Law and Prosecution Work,"Legal, People & Communications Group - Legal",BLACKFORDS LLP,1012821,"1,821.88"
"Department for Business, Innovation and Skills","Department for Business, Innovation and Skills",24/11/2010,Criminal Law and Prosecution Work,"Legal, People & Communications Group - Legal",BLACKFORDS LLP,1012675,"7,988.19"
"Department for Business, Innovation and Skills","Department for Business, Innovation and Skills",05/11/2010,Research & Development Expenditure (Programme),Strategic Policy Analysis - Strategic Policy Analysis,BLOOMBERG FINANCE L.P.,1010306,"4,239.52"
"Department for Business, Innovation and Skills","Department for Business, Innovation and Skills",29/11/2010,Criminal Law and Prosecution Work,"Legal, People & Communications Group - Legal",BOLITHO WAY,1012975,"1,349.35"
"Department for Business, Innovation and Skills","Department for Business, Innovation and Skills",25/11/2010,Criminal Law and Prosecution Work,"Legal, People & Communications Group - Legal",BOLITHO WAY,1012701,"1,391.40"
"Department for Business, Innovation and Skills","Department for Business, Innovation and Skills",03/11/2010,Criminal Law and Prosecution Work,"Legal, People & Communications Group - Legal",BOLITHO WAY,1010771,"3,157.66"
"Department for Business, Innovation and Skills","Department for Business, Innovation and Skills",29/11/2010,Criminal Law and Prosecution Work,"Legal, People & Communications Group - Legal",BOLITHO WAY,1012975,"3,453.28"
"Department for Business, Innovation and Skills","Department for Business, Innovation and Skills",25/11/2010,Criminal Law and Prosecution Work,"Legal, People & Communications Group - Legal",BOLITHO WAY,1012701,"7,454.34"
"Department for Business, Innovation and Skills","Department for Business, Innovation and Skills",09/11/2010,Purchase of  Advertising and Publicity (Programme),Fair Markets Group Summary - Employment Relations,BOUNTY UK LTD,1011236,"9,350.00"
"Department for Business, Innovation and Skills","Department for Business, Innovation and Skills",03/11/2010,Leadership & People Management Training,"Legal, People & Communications Group - HRCM - Human Resources and Change Management Directorate",BPP LEARNING MEDIA LTD,1010804,"4,000.00"
"Department for Business, Innovation and Skills","Department for Business, Innovation and Skills",26/11/2010,Grants - Statutory - Current - Other,SCIENCE & RESEARCH GROUP - RESEARCH BASE,BRADFORD COLLEGE,1012848,"60,222.82"
"Department for Business, Innovation and Skills","Department for Business, Innovation and Skills",26/11/2010,Grants - Statutory - Current - Other,SCIENCE & RESEARCH GROUP - RESEARCH BASE,BRADFORD COLLEGE,1012848,"143,192.98"
"Department for Business, Innovation and Skills","Department for Business, Innovation and Skills",02/11/2010,Grants - Statutory - Current - Other,SCIENCE & RESEARCH GROUP - RESEARCH BASE,BRADFORD COLLEGE,1010612,"165,224.52"
"Department for Business, Innovation and Skills","Department for Business, Innovation and Skills",05/11/2010,Independent Experts,Business Group - Advanced Manufacturing Industries,BRIAN JONES,1010938,"2,464.92"
"Department for Business, Innovation and Skills","Department for Business, Innovation and Skills",02/11/2010,Grants - Non Statutory - Current - Other,Fair Markets Group Summary - Consumer and Competition Policy,BRISTOL CITY COUNCIL,1010643,"19,932.53"
"Department for Business, Innovation and Skills","Department for Business, Innovation and Skills",02/11/2010,Grants - Non Statutory - Current - Other,Fair Markets Group Summary - Consumer and Competition Policy,BRISTOL CITY COUNCIL,1010643,"20,916.00"
"Department for Business, Innovation and Skills","Department for Business, Innovation and Skills",02/11/2010,Grants - Non Statutory - Current - Other,Fair Markets Group Summary - Consumer and Competition Policy,BRISTOL CITY COUNCIL,1010643,"20,916.00"
"Department for Business, Innovation and Skills","Department for Business, Innovation and Skills",17/11/2010,Grants - Non Statutory - Current - Other,Fair Markets Group Summary - Consumer and Competition Policy,BRISTOL CITY COUNCIL,1011998,"136,328.70"
"Department for Business, Innovation and Skills","Department for Business, Innovation and Skills",18/11/2010,Electricity (Programme),Finance & Commercial Group - Information and Workplace Strategies,BRITISH ENERGY DIRECT LTD,1012287,"15,672.69"
"Department for Business, Innovation and Skills","Department for Business, Innovation and Skills",18/11/2010,Electricity (Programme),Finance & Commercial Group - Information and Workplace Strategies,BRITISH GAS BUSINESS SERVICES LTD,1012273,561.42
"Department for Business, Innovation and Skills","Department for Business, Innovation and Skills",22/11/2010,Electricity (Programme),Finance & Commercial Group - Information and Workplace Strategies,BRITISH GAS BUSINESS SERVICES LTD,1012415,566.5
"Department for Business, Innovation and Skills","Department for Business, Innovation and Skills",22/11/2010,Electricity (Programme),Finance & Commercial Group - Information and Workplace Strategies,BRITISH GAS BUSINESS SERVICES LTD,1012413,803.89
"Department for Business, Innovation and Skills","Department for Business, Innovation and Skills",18/11/2010,Electricity (Programme),Finance & Commercial Group - Information and Workplace Strategies,BRITISH GAS BUSINESS SERVICES LTD,1012276,996.39
"Department for Business, Innovation and Skills","Department for Business, Innovation and Skills",30/11/2010,Gas (Programme),Finance & Commercial Group - Information and Workplace Strategies,BRITISH GAS BUSINESS SERVICES LTD,1013018,"2,101.10"
"Department for Business, Innovation and Skills","Department for Business, Innovation and Skills",16/11/2010,Grants - Statutory - Current - Other,SCIENCE & RESEARCH GROUP - RESEARCH BASE,BRITISH SCIENCE ASSOCIATION (THE BRITISH ASSOCIATION FOR THE ADVANCEMENT OF SCIENCE),1011948,"40,000.00"
"Department for Business, Innovation and Skills","Department for Business, Innovation and Skills",16/11/2010,Grants - Statutory - Current - Other,SCIENCE & RESEARCH GROUP - RESEARCH BASE,BRITISH SCIENCE ASSOCIATION (THE BRITISH ASSOCIATION FOR THE ADVANCEMENT OF SCIENCE),1011948,"68,447.00"
"Department for Business, Innovation and Skills","Department for Business, Innovation and Skills",24/11/2010,IT Software Licences,"Legal, People & Communications Group - Priority Projects Drectorate",BRITISH STANDARDS INSTITUTION (BSI),864867,-742.5
"Department for Business, Innovation and Skills","Department for Business, Innovation and Skills",09/11/2010,Grants - Non Statutory - Current - Other,"Innovation, Enterprise & Better Regulation Executive - Innovation",BRITISH STANDARDS INSTITUTION (BSI),1011481,"3,410.43"
"Department for Business, Innovation and Skills","Department for Business, Innovation and Skills",24/11/2010,Grants - Statutory - Current - Other,Business Group - Advanced Manufacturing Industries,BRITISH STANDARDS INSTITUTION (BSI),1012375,"8,518.75"
"Department for Business, Innovation and Skills","Department for Business, Innovation and Skills",02/11/2010,Grants - Non Statutory - Current - Other,"Innovation, Enterprise & Better Regulation Executive - Innovation",BRITISH STANDARDS INSTITUTION (BSI),1010639,"52,166.66"
"Department for Business, Innovation and Skills","Department for Business, Innovation and Skills",09/11/2010,Grants - Statutory - Current - Other,"Innovation, Enterprise & Better Regulation Executive - Innovation",BRITISH STANDARDS INSTITUTION (BSI),1011484,"186,126.66"
"Department for Business, Innovation and Skills","Department for Business, Innovation and Skills",02/11/2010,Grants - Non Statutory - Current - Other,"Innovation, Enterprise & Better Regulation Executive - Innovation",BRITISH STANDARDS INSTITUTION (BSI),1010637,"230,222.22"
"Department for Business, Innovation and Skills","Department for Business, Innovation and Skills",22/11/2010,Telecommunications,Finance & Commercial Group - Information and Workplace Strategies,BRITISH TELECOMMUNICATIONS plc (BT),1012466,"2,358.39"
"Department for Business, Innovation and Skills","Department for Business, Innovation and Skills",16/11/2010,Grants - Non Statutory - Current - Other,Fair Markets Group Summary - Employment Relations,BROADCASTING ENTERTAINMENT CINEMATOGRAPH AND THEATRE UNION (BECTU),1011928,"25,840.00"
"Department for Business, Innovation and Skills","Department for Business, Innovation and Skills",30/11/2010,Hire of Agency Staff (Clerical/Secretariat/Other),Shareholder Executive - Shareholder Executive,BROOK STREET (UK) LTD,1012990,513.77
"Department for Business, Innovation and Skills","Department for Business, Innovation and Skills",04/11/2010,Hire of Agency Staff (Clerical/Secretariat/Other),"Innovation, Enterprise & Better Regulation Executive - Enterprise Directorate",BROOK STREET (UK) LTD,1010925,538.9
"Department for Business, Innovation and Skills","Department for Business, Innovation and Skills",04/11/2010,Hire of Agency Staff (Professional/Management),Ministerial and Parliamentary Support Team - Ministerial and Parliamentary Support Team,BROOK STREET (UK) LTD,1010899,558.91
"Department for Business, Innovation and Skills","Department for Business, Innovation and Skills",30/11/2010,Hire of Agency Staff (Clerical/Secretariat/Other),Shareholder Executive - Shareholder Executive,BROOK STREET (UK) LTD,1012989,615.88
"Department for Business, Innovation and Skills","Department for Business, Innovation and Skills",03/11/2010,Hire of Agency Staff (Clerical/Secretariat/Other),Shareholder Executive - Shareholder Executive,BROOK STREET (UK) LTD,1010724,635.21
"Department for Business, Innovation and Skills","Department for Business, Innovation and Skills",22/11/2010,Hire of Agency Staff (Clerical/Secretariat/Other),Shareholder Executive - Shareholder Executive,BROOK STREET (UK) LTD,1012429,695.92
"Department for Business, Innovation and Skills","Department for Business, Innovation and Skills",08/11/2010,Hire of Agency Staff (Clerical/Secretariat/Other),Shareholder Executive - Shareholder Executive,BROOK STREET (UK) LTD,1011177,709.94
"Department for Business, Innovation and Skills","Department for Business, Innovation and Skills",22/11/2010,Hire of Agency Staff (Clerical/Secretariat/Other),Shareholder Executive - Shareholder Executive,BROOK STREET (UK) LTD,1012450,709.94
"Department for Business, Innovation and Skills","Department for Business, Innovation and Skills",08/11/2010,Hire of Agency Staff (NDPB use only),Shareholder Executive - Shareholder Executive,BROOK STREET (UK) LTD,1011176,709.94
"Department for Business, Innovation and Skills","Department for Business, Innovation and Skills",30/11/2010,Hire of Agency Staff (Clerical/Secretariat/Other),Shareholder Executive - Shareholder Executive,BROOK STREET (UK) LTD,1013000,719.28
"Department for Business, Innovation and Skills","Department for Business, Innovation and Skills",03/11/2010,Hire of Agency Staff (Clerical/Secretariat/Other),Shareholder Executive - Shareholder Executive,BROOK STREET (UK) LTD,1010723,723.94
"Department for Business, Innovation and Skills","Department for Business, Innovation and Skills",15/11/2010,Hire of Agency Staff (Clerical/Secretariat/Other),Shareholder Executive - Shareholder Executive,BROOK STREET (UK) LTD,1011840,737.96
"Department for Business, Innovation and Skills","Department for Business, Innovation and Skills",16/11/2010,Hire of Agency Staff (Clerical/Secretariat/Other),Shareholder Executive - Shareholder Executive,BROOK STREET (UK) LTD,1011922,737.96
"Department for Business, Innovation and Skills","Department for Business, Innovation and Skills",15/11/2010,Hire of Agency Staff (NDPB use only),Shareholder Executive - Shareholder Executive,BROOK STREET (UK) LTD,1011831,737.96
"Department for Business, Innovation and Skills","Department for Business, Innovation and Skills",23/11/2010,Hire of Agency Staff (NDPB use only),Shareholder Executive - Shareholder Executive,BROOK STREET (UK) LTD,1012495,737.96
"Department for Business, Innovation and Skills","Department for Business, Innovation and Skills",08/11/2010,Hire of Agency Staff (Clerical/Secretariat/Other),Shareholder Executive - Shareholder Executive,BROOK STREET (UK) LTD,1011194,751.96
"Department for Business, Innovation and Skills","Department for Business, Innovation and Skills",03/11/2010,Hire of Agency Staff (NDPB use only),Shareholder Executive - Shareholder Executive,BROOK STREET (UK) LTD,1010725,765.98
"Department for Business, Innovation and Skills","Department for Business, Innovation and Skills",29/11/2010,Hire of Agency Staff (NDPB use only),Shareholder Executive - Shareholder Executive,BROOK STREET (UK) LTD,1012979,765.98
"Department for Business, Innovation and Skills","Department for Business, Innovation and Skills",22/11/2010,Hire of Agency Staff (Clerical/Secretariat/Other),"Legal, People & Communications Group - HRCM - Human Resources and Change Management Directorate",BROOK STREET (UK) LTD,1012436,778.24
"Department for Business, Innovation and Skills","Department for Business, Innovation and Skills",04/11/2010,Hire of Agency Staff (Clerical/Secretariat/Other),Finance & Commercial Group - Information and Workplace Strategies,BROOK STREET (UK) LTD,1010727,806.24
"Department for Business, Innovation and Skills","Department for Business, Innovation and Skills",09/11/2010,Hire of Agency Staff (Clerical/Secretariat/Other),Finance & Commercial Group - Information and Workplace Strategies,BROOK STREET (UK) LTD,1011196,806.24
"Department for Business, Innovation and Skills","Department for Business, Innovation and Skills",16/11/2010,Hire of Agency Staff (Clerical/Secretariat/Other),Finance & Commercial Group - Information and Workplace Strategies,BROOK STREET (UK) LTD,1011842,806.24
"Department for Business, Innovation and Skills","Department for Business, Innovation and Skills",22/11/2010,Hire of Agency Staff (Clerical/Secretariat/Other),Finance & Commercial Group - Information and Workplace Strategies,BROOK STREET (UK) LTD,1012448,806.24
"Department for Business, Innovation and Skills","Department for Business, Innovation and Skills",30/11/2010,Hire of Agency Staff (Clerical/Secretariat/Other),Finance & Commercial Group - Information and Workplace Strategies,BROOK STREET (UK) LTD,1012988,806.24
"Department for Business, Innovation and Skills","Department for Business, Innovation and Skills",08/11/2010,Hire of Agency Staff (Clerical/Secretariat/Other),Shareholder Executive - Shareholder Executive,BROOK STREET (UK) LTD,1011198,856.62
"Department for Business, Innovation and Skills","Department for Business, Innovation and Skills",03/11/2010,Hire of Agency Staff (Clerical/Secretariat/Other),Shareholder Executive - Shareholder Executive,BROOK STREET (UK) LTD,1010721,873.42
"Department for Business, Innovation and Skills","Department for Business, Innovation and Skills",25/11/2010,Hire of Agency Staff (Professional/Management),Ministerial and Parliamentary Support Team - Ministerial and Parliamentary Support Team,BROOK STREET (UK) LTD,1012774,"1,042.58"
"Department for Business, Innovation and Skills","Department for Business, Innovation and Skills",22/11/2010,Hire of Agency Staff (Clerical/Secretariat/Other),Shareholder Executive - Shareholder Executive,BROOK STREET (UK) LTD,1012437,"1,063.79"
"Department for Business, Innovation and Skills","Department for Business, Innovation and Skills",15/11/2010,Hire of Agency Staff (Clerical/Secretariat/Other),Shareholder Executive - Shareholder Executive,BROOK STREET (UK) LTD,1011832,"1,069.38"
"Department for Business, Innovation and Skills","Department for Business, Innovation and Skills",15/11/2010,Hire of Agency Staff (Professional/Management),Ministerial and Parliamentary Support Team - Ministerial and Parliamentary Support Team,BROOK STREET (UK) LTD,1011822,"1,365.03"
"Department for Business, Innovation and Skills","Department for Business, Innovation and Skills",05/11/2010,Static Line Rental,"Legal, People & Communications Group - Communications Directorate",BT UK BUSINESS ACCOUNTS,1010913,"1,127.73"
"Department for Business, Innovation and Skills","Department for Business, Innovation and Skills",10/11/2010,UK Subscriptions,Business Group - Advanced Manufacturing Industries,BUILDINGSMART UK LTD,1011522,646.25
"Department for Business, Innovation and Skills","Department for Business, Innovation and Skills",10/11/2010,Other Training Costs (Programme),"Legal, People & Communications Group - Priority Projects Drectorate",BUSINESS EVOLUTION ADVANCEMENT & TRAINING LTD,1011524,"2,863.40"
"Department for Business, Innovation and Skills","Department for Business, Innovation and Skills",17/11/2010,Payment-Recovery of Overpayment re Exits,"Legal, People & Communications Group - HRCM - Human Resources and Change Management Directorate",CABINET OFFICE,1012156,518.82
"Department for Business, Innovation and Skills","Department for Business, Innovation and Skills",17/11/2010,Payment-Recovery of Overpayment re Exits,"Legal, People & Communications Group - HRCM - Human Resources and Change Management Directorate",CABINET OFFICE,1012155,"1,780.33"
"Department for Business, Innovation and Skills","Department for Business, Innovation and Skills",17/11/2010,Payment-Recovery of Overpayment re Exits,"Legal, People & Communications Group - HRCM - Human Resources and Change Management Directorate",CABINET OFFICE,1012158,"3,545.11"
"Department for Business, Innovation and Skills","Department for Business, Innovation and Skills",17/11/2010,Payment-Recovery of Overpayment re Exits,"Legal, People & Communications Group - HRCM - Human Resources and Change Management Directorate",CABINET OFFICE,1012159,"11,208.49"
"Department for Business, Innovation and Skills","Department for Business, Innovation and Skills",08/11/2010,Other Staff Costs,"Legal, People & Communications Group - HRCM - Human Resources and Change Management Directorate",CABINET OFFICE,1010965,"28,314.18"
"Department for Business, Innovation and Skills","Department for Business, Innovation and Skills",17/11/2010,Payment-Recovery of Overpayment re Exits,"Legal, People & Communications Group - HRCM - Human Resources and Change Management Directorate",CABINET OFFICE,1012148,"481,256.30"
"Department for Business, Innovation and Skills","Department for Business, Innovation and Skills",17/11/2010,Payment-Recovery of Overpayment re Exits,"Legal, People & Communications Group - HRCM - Human Resources and Change Management Directorate",CABINET OFFICE,1012142,"2,473,588.12"
"Department for Business, Innovation and Skills","Department for Business, Innovation and Skills",17/11/2010,Payment-Recovery of Overpayment re Exits,"Legal, People & Communications Group - HRCM - Human Resources and Change Management Directorate",CABINET OFFICE,1012142,"3,477,704.97"
"Department for Business, Innovation and Skills","Department for Business, Innovation and Skills",17/11/2010,GTN Services,Finance & Commercial Group - Information and Workplace Strategies,CABLE & WIRELESS COMMUNICATIONS,1012103,917.99
"Department for Business, Innovation and Skills","Department for Business, Innovation and Skills",04/11/2010,GTN Services,Finance & Commercial Group - Information and Workplace Strategies,CABLE & WIRELESS COMMUNICATIONS,1010873,"1,178.68"
"Department for Business, Innovation and Skills","Department for Business, Innovation and Skills",03/11/2010,GTN Services,Finance & Commercial Group - Information and Workplace Strategies,CABLE & WIRELESS COMMUNICATIONS,1010685,"1,180.88"
"Department for Business, Innovation and Skills","Department for Business, Innovation and Skills",02/11/2010,GTN Services,Finance & Commercial Group - Information and Workplace Strategies,CABLE & WIRELESS COMMUNICATIONS,1010682,"1,831.68"
"Department for Business, Innovation and Skills","Department for Business, Innovation and Skills",26/11/2010,ICT Infrastructure Specific Service,Finance & Commercial Group - Information and Workplace Strategies,CABLE & WIRELESS UK,1009296,"-19,193.63"
"Department for Business, Innovation and Skills","Department for Business, Innovation and Skills",26/11/2010,ICT Infrastructure Specific Service,Finance & Commercial Group - Information and Workplace Strategies,CABLE & WIRELESS UK,1009272,"101,117.50"
"Department for Business, Innovation and Skills","Department for Business, Innovation and Skills",10/11/2010,Criminal Law and Prosecution Work,"Legal, People & Communications Group - Legal",CAMERON BROWN,1011558,634.5
"Department for Business, Innovation and Skills","Department for Business, Innovation and Skills",04/11/2010,Criminal Law and Prosecution Work,"Legal, People & Communications Group - Legal",CAMERON BROWN,1009918,698.9
"Department for Business, Innovation and Skills","Department for Business, Innovation and Skills",30/11/2010,Other Accommodation Charges (Programme),Finance & Commercial Group - Information and Workplace Strategies,CANBURY INVESTMENTS LTD,1013064,"148,000.00"
"Department for Business, Innovation and Skills","Department for Business, Innovation and Skills",24/11/2010,Reprographic Services,"Legal, People & Communications Group - Priority Projects Drectorate",CANON (UK) LTD,1009722,-854.92
"Department for Business, Innovation and Skills","Department for Business, Innovation and Skills",24/11/2010,Other Accommodation Charges (Programme),Finance & Commercial Group - Information and Workplace Strategies,CANON (UK) LTD,1012616,650.43
"Department for Business, Innovation and Skills","Department for Business, Innovation and Skills",08/11/2010,ICT Maintenance & Upkeep,Finance & Commercial Group - Information and Workplace Strategies,CAPGEMINI UK plc,1010754,"1,289.75"
"Department for Business, Innovation and Skills","Department for Business, Innovation and Skills",03/11/2010,ICT Maintenance & Upkeep,Finance & Commercial Group - Information and Workplace Strategies,CAPGEMINI UK plc,1010755,"1,915.18"
"Department for Business, Innovation and Skills","Department for Business, Innovation and Skills",03/11/2010,ICT Maintenance & Upkeep,Finance & Commercial Group - Information and Workplace Strategies,CAPGEMINI UK plc,1010758,"3,132.25"
"Department for Business, Innovation and Skills","Department for Business, Innovation and Skills",08/11/2010,ICT Maintenance & Upkeep,Finance & Commercial Group - Information and Workplace Strategies,CAPGEMINI UK plc,1010753,"4,422.00"
"Department for Business, Innovation and Skills","Department for Business, Innovation and Skills",03/11/2010,ICT Maintenance & Upkeep,Finance & Commercial Group - Information and Workplace Strategies,CAPGEMINI UK plc,1010757,"6,080.25"
"Department for Business, Innovation and Skills","Department for Business, Innovation and Skills",03/11/2010,Standard Desktop Plus Services,Finance & Commercial Group - Information and Workplace Strategies,CAPGEMINI UK plc,1010759,"99,899.31"
"Department for Business, Innovation and Skills","Department for Business, Innovation and Skills",26/11/2010,Criminal Law and Prosecution Work,"Legal, People & Communications Group - Legal",CARADOC (LINCOLN) LTD,1012815,900
"Department for Business, Innovation and Skills","Department for Business, Innovation and Skills",16/11/2010,Payments to Barclays for Carlson Wagonlit Travel Contract,Finance & Commercial Group - Finance Group,CARLSON WAGONLIT TRAVEL UK LTD,1011930,"1,430.75"
"Department for Business, Innovation and Skills","Department for Business, Innovation and Skills",03/11/2010,Payments to Barclays for Carlson Wagonlit Travel Contract,Finance & Commercial Group - Finance Group,CARLSON WAGONLIT TRAVEL UK LTD,1010578,"12,279.86"
"Department for Business, Innovation and Skills","Department for Business, Innovation and Skills",30/11/2010,Criminal Law and Prosecution Work,"Legal, People & Communications Group - Legal",CARPE-DATUM,1012938,"3,109.05"
"Department for Business, Innovation and Skills","Department for Business, Innovation and Skills",25/11/2010,Criminal Law and Prosecution Work,"Legal, People & Communications Group - Legal",CARPE-DATUM,1012704,"3,569.65"
"Department for Business, Innovation and Skills","Department for Business, Innovation and Skills",10/11/2010,Criminal Law and Prosecution Work,"Legal, People & Communications Group - Legal",CARPE-DATUM,1011550,"3,915.10"
"Department for Business, Innovation and Skills","Department for Business, Innovation and Skills",12/11/2010,Criminal Law and Prosecution Work,"Legal, People & Communications Group - Legal",CARPE-DATUM,1011669,"4,202.98"
"Department for Business, Innovation and Skills","Department for Business, Innovation and Skills",03/11/2010,Criminal Law and Prosecution Work,"Legal, People & Communications Group - Legal",CARPE-DATUM,1010802,"4,375.70"
"Department for Business, Innovation and Skills","Department for Business, Innovation and Skills",05/11/2010,Independent Experts,Business Group - Advanced Manufacturing Industries,CARTMAN DOT ORG LTD,1010939,637.1
"Department for Business, Innovation and Skills","Department for Business, Innovation and Skills",24/11/2010,Service Charges,Finance & Commercial Group - Information and Workplace Strategies,CB RICHARD ELLIS,1012497,598
"Department for Business, Innovation and Skills","Department for Business, Innovation and Skills",09/11/2010,Technical Advice / Services & Support,Finance & Commercial Group - Information and Workplace Strategies,CB RICHARD ELLIS,1011316,850
"Department for Business, Innovation and Skills","Department for Business, Innovation and Skills",24/11/2010,Service Charges,Finance & Commercial Group - Information and Workplace Strategies,CB RICHARD ELLIS,1012497,"3,710.50"
"Department for Business, Innovation and Skills","Department for Business, Innovation and Skills",24/11/2010,Accommodation Rentals,Finance & Commercial Group - Information and Workplace Strategies,CB RICHARD ELLIS,1012497,"44,000.00"
"Department for Business, Innovation and Skills","Department for Business, Innovation and Skills",26/11/2010,Accommodation Rentals,Finance & Commercial Group - Information and Workplace Strategies,CB RICHARD ELLIS,1012842,"881,250.00"
"Department for Business, Innovation and Skills","Department for Business, Innovation and Skills",26/11/2010,Grants - Statutory - Current - Other,Business Group - Advanced Manufacturing Industries,CENEX,1012857,"4,709.50"
"Department for Business, Innovation and Skills","Department for Business, Innovation and Skills",30/11/2010,Grants - Statutory - Current - Other,Business Group - Advanced Manufacturing Industries,CENEX,1013127,"6,822.44"
"Department for Business, Innovation and Skills","Department for Business, Innovation and Skills",26/11/2010,Grants - Statutory - Current - Other,Business Group - Advanced Manufacturing Industries,CENEX,1012853,"91,101.34"
"Department for Business, Innovation and Skills","Department for Business, Innovation and Skills",18/11/2010,Research & Development Expenditure (Programme),GOVERNMENT OFFICE FOR SCIENCE - GOVERNMENT OFFICE FOR SCIENCE,CENTRAL DESKTOP INC,1011682,"1,178.60"
"Department for Business, Innovation and Skills","Department for Business, Innovation and Skills",08/11/2010,Research & Development Expenditure (Programme),GOVERNMENT OFFICE FOR SCIENCE - GOVERNMENT OFFICE FOR SCIENCE,CENTRAL HALL WESTMINSTER LTD,1011157,"3,849.30"
"Department for Business, Innovation and Skills","Department for Business, Innovation and Skills",23/11/2010,Leadership & People Management Training,"Legal, People & Communications Group - HRCM - Human Resources and Change Management Directorate",CENTRE FOR PARLIAMENTARY STUDIES LTD,1012484,"5,000.00"
"Department for Business, Innovation and Skills","Department for Business, Innovation and Skills",17/11/2010,Criminal Law and Prosecution Work,"Legal, People & Communications Group - Legal",CHRISTOPHER BADGER,1011990,688.16
"Department for Business, Innovation and Skills","Department for Business, Innovation and Skills",10/11/2010,Criminal Law and Prosecution Work,"Legal, People & Communications Group - Legal",CHRISTOPHER BADGER,1010829,828.95
"Department for Business, Innovation and Skills","Department for Business, Innovation and Skills",04/11/2010,Criminal Law and Prosecution Work,"Legal, People & Communications Group - Legal",CHRISTOPHER BADGER,1010827,"1,316.00"
"Department for Business, Innovation and Skills","Department for Business, Innovation and Skills",25/11/2010,Grant in Aid - Current -Other,Fair Markets Group Summary - Consumer and Competition Policy,CITIZENS ADVICE BUREAU,1012778,"810,000.00"
"Department for Business, Innovation and Skills","Department for Business, Innovation and Skills",24/11/2010,Research & Development Expenditure (Programme),GOVERNMENT OFFICE FOR SCIENCE - GOVERNMENT OFFICE FOR SCIENCE,CITY INN WESTMINSTER,1012611,"3,048.00"
"Department for Business, Innovation and Skills","Department for Business, Innovation and Skills",10/11/2010,Catering Services (Programme),GOVERNMENT OFFICE FOR SCIENCE - GOVERNMENT OFFICE FOR SCIENCE,CITY INN WESTMINSTER,1011501,"3,559.14"
"Department for Business, Innovation and Skills","Department for Business, Innovation and Skills",03/11/2010,Grants - Non Statutory - Current - Other,Fair Markets Group Summary - Consumer and Competition Policy,CITY OF YORK COUNCIL,1010617,"6,686.34"
"Department for Business, Innovation and Skills","Department for Business, Innovation and Skills",03/11/2010,Grants - Non Statutory - Current - Other,Fair Markets Group Summary - Consumer and Competition Policy,CITY OF YORK COUNCIL,1010617,"20,823.00"
"Department for Business, Innovation and Skills","Department for Business, Innovation and Skills",03/11/2010,Grants - Non Statutory - Current - Other,Fair Markets Group Summary - Consumer and Competition Policy,CITY OF YORK COUNCIL,1010617,"20,823.00"
"Department for Business, Innovation and Skills","Department for Business, Innovation and Skills",03/11/2010,Grants - Non Statutory - Current - Other,Fair Markets Group Summary - Consumer and Competition Policy,CITY OF YORK COUNCIL,1010617,"20,823.00"
"Department for Business, Innovation and Skills","Department for Business, Innovation and Skills",11/11/2010,Outsourced Technical Support (Programme),SCIENCE & RESEARCH GROUP - UK Space Agency,CLAIR PASSELLE,1011641,"1,000.00"
"Department for Business, Innovation and Skills","Department for Business, Innovation and Skills",22/11/2010,Outsourced Technical Support (Programme),SCIENCE & RESEARCH GROUP - UK Space Agency,CLAIR PASSELLE,1012385,"2,000.00"
"Department for Business, Innovation and Skills","Department for Business, Innovation and Skills",08/11/2010,Outsourced Technical Support (Programme),SCIENCE & RESEARCH GROUP - UK Space Agency,CLAIR PASSELLE,1011059,"3,000.00"
"Department for Business, Innovation and Skills","Department for Business, Innovation and Skills",08/11/2010,SL DS Utilisation,Universities and Skills Group - Learners,CLUB 24 LTD t/a VENTURA,1010926,"10,250.24"
"Department for Business, Innovation and Skills","Department for Business, Innovation and Skills",18/11/2010,Maintenance,Finance & Commercial Group - Information and Workplace Strategies,COFELY LTD,1012177,547.5
"Department for Business, Innovation and Skills","Department for Business, Innovation and Skills",18/11/2010,Maintenance,Finance & Commercial Group - Information and Workplace Strategies,COFELY LTD,1012164,673
"Department for Business, Innovation and Skills","Department for Business, Innovation and Skills",30/11/2010,Maintenance,Finance & Commercial Group - Information and Workplace Strategies,COFELY LTD,1013051,786.75
"Department for Business, Innovation and Skills","Department for Business, Innovation and Skills",17/11/2010,Maintenance,Finance & Commercial Group - Information and Workplace Strategies,COFELY LTD,1012101,828.17
"Department for Business, Innovation and Skills","Department for Business, Innovation and Skills",18/11/2010,Maintenance,Finance & Commercial Group - Information and Workplace Strategies,COFELY LTD,1012178,849.31
"Department for Business, Innovation and Skills","Department for Business, Innovation and Skills",17/11/2010,Grant in Aid - Current -Other,Universities and Skills Group - Skills Directorate,COFELY LTD,1012113,956.75
"Department for Business, Innovation and Skills","Department for Business, Innovation and Skills",03/11/2010,Maintenance,Finance & Commercial Group - Information and Workplace Strategies,COFELY LTD,1010706,"1,008.03"
"Department for Business, Innovation and Skills","Department for Business, Innovation and Skills",24/11/2010,Maintenance,Finance & Commercial Group - Information and Workplace Strategies,COFELY LTD,1012116,"1,008.03"
"Department for Business, Innovation and Skills","Department for Business, Innovation and Skills",30/11/2010,Maintenance,Finance & Commercial Group - Information and Workplace Strategies,COFELY LTD,1013049,"1,236.90"
"Department for Business, Innovation and Skills","Department for Business, Innovation and Skills",03/11/2010,Maintenance,Finance & Commercial Group - Information and Workplace Strategies,COFELY LTD,1010706,"1,651.65"
"Department for Business, Innovation and Skills","Department for Business, Innovation and Skills",24/11/2010,Maintenance,Finance & Commercial Group - Information and Workplace Strategies,COFELY LTD,1012116,"1,651.65"
"Department for Business, Innovation and Skills","Department for Business, Innovation and Skills",17/11/2010,Maintenance,Finance & Commercial Group - Information and Workplace Strategies,COFELY LTD,1012167,"2,018.36"
"Department for Business, Innovation and Skills","Department for Business, Innovation and Skills",17/11/2010,Maintenance,Finance & Commercial Group - Information and Workplace Strategies,COFELY LTD,1012104,"3,076.49"
"Department for Business, Innovation and Skills","Department for Business, Innovation and Skills",30/11/2010,Maintenance,Finance & Commercial Group - Information and Workplace Strategies,COFELY LTD,1013059,"3,138.02"
"Department for Business, Innovation and Skills","Department for Business, Innovation and Skills",03/11/2010,Maintenance,Finance & Commercial Group - Information and Workplace Strategies,COFELY LTD,1010706,"3,241.73"
"Department for Business, Innovation and Skills","Department for Business, Innovation and Skills",24/11/2010,Maintenance,Finance & Commercial Group - Information and Workplace Strategies,COFELY LTD,1012116,"3,241.73"
"Department for Business, Innovation and Skills","Department for Business, Innovation and Skills",17/11/2010,Maintenance,Finance & Commercial Group - Information and Workplace Strategies,COFELY LTD,1012098,"3,600.00"
"Department for Business, Innovation and Skills","Department for Business, Innovation and Skills",03/11/2010,Maintenance,Finance & Commercial Group - Information and Workplace Strategies,COFELY LTD,1010706,"4,519.79"
"Department for Business, Innovation and Skills","Department for Business, Innovation and Skills",24/11/2010,Maintenance,Finance & Commercial Group - Information and Workplace Strategies,COFELY LTD,1012116,"4,519.79"
"Department for Business, Innovation and Skills","Department for Business, Innovation and Skills",03/11/2010,Maintenance,Finance & Commercial Group - Information and Workplace Strategies,COFELY LTD,1010706,"6,978.61"
"Department for Business, Innovation and Skills","Department for Business, Innovation and Skills",24/11/2010,Maintenance,Finance & Commercial Group - Information and Workplace Strategies,COFELY LTD,1012116,"6,978.61"
"Department for Business, Innovation and Skills","Department for Business, Innovation and Skills",17/11/2010,Maintenance,Finance & Commercial Group - Information and Workplace Strategies,COFELY LTD,1012109,"7,402.10"
"Department for Business, Innovation and Skills","Department for Business, Innovation and Skills",03/11/2010,Maintenance,Finance & Commercial Group - Information and Workplace Strategies,COFELY LTD,1010705,"7,614.33"
"Department for Business, Innovation and Skills","Department for Business, Innovation and Skills",03/11/2010,Maintenance,Finance & Commercial Group - Information and Workplace Strategies,COFELY LTD,1010706,"7,661.04"
"Department for Business, Innovation and Skills","Department for Business, Innovation and Skills",24/11/2010,Maintenance,Finance & Commercial Group - Information and Workplace Strategies,COFELY LTD,1012116,"7,661.04"
"Department for Business, Innovation and Skills","Department for Business, Innovation and Skills",03/11/2010,Maintenance,Finance & Commercial Group - Information and Workplace Strategies,COFELY LTD,1010706,"8,846.31"
"Department for Business, Innovation and Skills","Department for Business, Innovation and Skills",24/11/2010,Maintenance,Finance & Commercial Group - Information and Workplace Strategies,COFELY LTD,1012116,"8,846.31"
"Department for Business, Innovation and Skills","Department for Business, Innovation and Skills",17/11/2010,Maintenance,Finance & Commercial Group - Information and Workplace Strategies,COFELY LTD,1012105,"17,490.25"
"Department for Business, Innovation and Skills","Department for Business, Innovation and Skills",03/11/2010,Maintenance,Finance & Commercial Group - Information and Workplace Strategies,COFELY LTD,1010706,"18,179.93"
"Department for Business, Innovation and Skills","Department for Business, Innovation and Skills",24/11/2010,Maintenance,Finance & Commercial Group - Information and Workplace Strategies,COFELY LTD,1012116,"18,179.93"
"Department for Business, Innovation and Skills","Department for Business, Innovation and Skills",03/11/2010,Maintenance,Finance & Commercial Group - Information and Workplace Strategies,COFELY LTD,1010706,"73,111.51"
"Department for Business, Innovation and Skills","Department for Business, Innovation and Skills",24/11/2010,Maintenance,Finance & Commercial Group - Information and Workplace Strategies,COFELY LTD,1012116,"73,111.51"
"Department for Business, Innovation and Skills","Department for Business, Innovation and Skills",02/11/2010,Leased Buildings - Clearing,Finance & Commercial Group - Information and Workplace Strategies,COFELY LTD,1010634,"115,978.32"
"Department for Business, Innovation and Skills","Department for Business, Innovation and Skills",03/11/2010,Purchase of  Advertising and Publicity (Programme),Fair Markets Group Summary - Employment Relations,COI COMMUNICATIONS,1010777,956.98
"Department for Business, Innovation and Skills","Department for Business, Innovation and Skills",30/11/2010,Hire of Agency Staff (Professional/Management),"Legal, People & Communications Group - Communications Directorate",COI COMMUNICATIONS,1012997,"1,050.00"
"Department for Business, Innovation and Skills","Department for Business, Innovation and Skills",03/11/2010,Other Staff Costs (Programme),"Legal, People & Communications Group - Communications Directorate",COI COMMUNICATIONS,1010816,"1,850.63"
"Department for Business, Innovation and Skills","Department for Business, Innovation and Skills",11/11/2010,Telephone Helpline Services,Fair Markets Group Summary - Employment Relations,COI COMMUNICATIONS,1011685,"2,469.53"
"Department for Business, Innovation and Skills","Department for Business, Innovation and Skills",03/11/2010,Other Staff Costs (Programme),"Legal, People & Communications Group - Communications Directorate",COI COMMUNICATIONS,1010773,"2,887.50"
"Department for Business, Innovation and Skills","Department for Business, Innovation and Skills",30/11/2010,Other Staff Costs (Programme),"Legal, People & Communications Group - Communications Directorate",COI COMMUNICATIONS,1012999,"3,543.75"
"Department for Business, Innovation and Skills","Department for Business, Innovation and Skills",22/11/2010,Conference and Exhibition Services (Programme),SCIENCE & RESEARCH GROUP - UK Space Agency,COI COMMUNICATIONS,1012433,"4,672.00"
"Department for Business, Innovation and Skills","Department for Business, Innovation and Skills",30/11/2010,Other Staff Costs (Programme),"Legal, People & Communications Group - Communications Directorate",COI COMMUNICATIONS,1012998,"5,181.75"
"Department for Business, Innovation and Skills","Department for Business, Innovation and Skills",08/11/2010,Other Staff Costs (Programme),"Legal, People & Communications Group - Communications Directorate",COI COMMUNICATIONS,1011199,"5,292.00"
"Department for Business, Innovation and Skills","Department for Business, Innovation and Skills",09/11/2010,Press Office Facilities,"Legal, People & Communications Group - Communications Directorate",COI COMMUNICATIONS,1010820,"9,535.00"
"Department for Business, Innovation and Skills","Department for Business, Innovation and Skills",03/11/2010,Media and Design Services,"Innovation, Enterprise & Better Regulation Executive - Enterprise Directorate",COI COMMUNICATIONS,1010817,"10,000.00"
"Department for Business, Innovation and Skills","Department for Business, Innovation and Skills",02/11/2010,Media and Design Services,"Innovation, Enterprise & Better Regulation Executive - Enterprise Directorate",COI COMMUNICATIONS,1010274,"38,495.45"
"Department for Business, Innovation and Skills","Department for Business, Innovation and Skills",11/11/2010,Telephone Helpline Services,Fair Markets Group Summary - Employment Relations,COI COMMUNICATIONS,1011685,"63,795.51"
"Department for Business, Innovation and Skills","Department for Business, Innovation and Skills",16/11/2010,Research & Development Expenditure (Programme),GOVERNMENT OFFICE FOR SCIENCE - GOVERNMENT OFFICE FOR SCIENCE,COMMONWEALTH SCIENTIFIC AND INDUSTRIAL RESEARCH ORGANISATION (CSIRO),1011709,"12,349.21"
"Department for Business, Innovation and Skills","Department for Business, Innovation and Skills",02/11/2010,Telecommunications,Finance & Commercial Group - Information and Workplace Strategies,COMPANIES HOUSE,1010628,"1,284.39"
"Department for Business, Innovation and Skills","Department for Business, Innovation and Skills",10/11/2010,InfoSource Desktop Information and Research Services,Finance & Commercial Group - Information and Workplace Strategies,COMPANIES HOUSE,1011612,"1,315.50"
"Department for Business, Innovation and Skills","Department for Business, Innovation and Skills",10/11/2010,Recoverable VAT Input,Corporate Payments,COMPANIES HOUSE,1011616,"656,108.89"
"Department for Business, Innovation and Skills","Department for Business, Innovation and Skills",29/11/2010,Economic Consultancy and Research,"Innovation, Enterprise & Better Regulation Executive - Innovation",COMPANY REPORTING (BESPOKE DATABASES) LTD,1012948,"100,000.00"
"Department for Business, Innovation and Skills","Department for Business, Innovation and Skills",22/11/2010,Corporate Management Consultancy,"Innovation, Enterprise & Better Regulation Executive - Better Regulation Executive (BRE)",COMPASS ROSE & CO,1012462,"3,400.00"
"Department for Business, Innovation and Skills","Department for Business, Innovation and Skills",16/11/2010,Sponsorship Support,Strategic Policy Analysis - Strategic Policy Analysis,CONSTRUCTING EXCELLENCE LTD,1011975,"18,000.00"
"Department for Business, Innovation and Skills","Department for Business, Innovation and Skills",23/11/2010,Hire of Agency Staff (Professional/Management),Business Group - Advanced Manufacturing Industries,CONSTRUCTION INDUSTRY COUNCIL,1012506,"11,759.16"
"Department for Business, Innovation and Skills","Department for Business, Innovation and Skills",02/11/2010,Maintenance,Finance & Commercial Group - Information and Workplace Strategies,COOLMATION LTD,1010642,"2,160.00"
"Department for Business, Innovation and Skills","Department for Business, Innovation and Skills",30/11/2010,Maintenance,Finance & Commercial Group - Information and Workplace Strategies,COOLMATION LTD,1013073,"2,160.00"
"Department for Business, Innovation and Skills","Department for Business, Innovation and Skills",10/11/2010,Outsourced Programme Management Services,Universities and Skills Group - Further Education,CORE ACHIEVEMENT LTD,1011209,700
"Department for Business, Innovation and Skills","Department for Business, Innovation and Skills",10/11/2010,Outsourced Programme Management Services,Universities and Skills Group - Further Education,CORE ACHIEVEMENT LTD,1011207,"6,674.70"
"Department for Business, Innovation and Skills","Department for Business, Innovation and Skills",30/11/2010,Research & Development Expenditure (Programme),GOVERNMENT OFFICE FOR SCIENCE - GOVERNMENT OFFICE FOR SCIENCE,CORNELIA BUTLER FLORA,1012520,500
"Department for Business, Innovation and Skills","Department for Business, Innovation and Skills",30/11/2010,Gas,Finance & Commercial Group - Information and Workplace Strategies,CORONA ENERGY,1013093,860.89
"Department for Business, Innovation and Skills","Department for Business, Innovation and Skills",30/11/2010,Gas,Finance & Commercial Group - Information and Workplace Strategies,CORONA ENERGY,1013105,"1,675.02"
"Department for Business, Innovation and Skills","Department for Business, Innovation and Skills",30/11/2010,Gas,Finance & Commercial Group - Information and Workplace Strategies,CORONA ENERGY,1013100,"1,821.19"
"Department for Business, Innovation and Skills","Department for Business, Innovation and Skills",30/11/2010,Gas,Finance & Commercial Group - Information and Workplace Strategies,CORONA ENERGY,1013102,"2,864.27"
"Department for Business, Innovation and Skills","Department for Business, Innovation and Skills",30/11/2010,Gas,Finance & Commercial Group - Information and Workplace Strategies,CORONA ENERGY,1013109,"4,863.27"
"Department for Business, Innovation and Skills","Department for Business, Innovation and Skills",05/11/2010,Rates (Programme),Finance & Commercial Group - Information and Workplace Strategies,COVENTRY CITY COUNCIL,1011009,690.12
"Department for Business, Innovation and Skills","Department for Business, Innovation and Skills",16/11/2010,Purchase of Completed Research,Universities and Skills Group - Skills Directorate,CRAC LTD,1011919,"11,795.00"
"Department for Business, Innovation and Skills","Department for Business, Innovation and Skills",18/11/2010,Other Accommodation Charges (Programme),Finance & Commercial Group - Information and Workplace Strategies,CRYSTAL SERVICES PLC,1012295,"5,973.15"
"Department for Business, Innovation and Skills","Department for Business, Innovation and Skills",03/11/2010,Telecommunications,Finance & Commercial Group - Information and Workplace Strategies,DAISY COMMUNICATIONS LTD,1010695,"1,019.44"
"Department for Business, Innovation and Skills","Department for Business, Innovation and Skills",01/11/2010,Telecommunications,Finance & Commercial Group - Information and Workplace Strategies,DAISY COMMUNICATIONS LTD,1010452,"1,310.76"
"Department for Business, Innovation and Skills","Department for Business, Innovation and Skills",04/11/2010,Research & Development Expenditure (Programme),GOVERNMENT OFFICE FOR SCIENCE - GOVERNMENT OFFICE FOR SCIENCE,DAVID BARLEX,1010911,"5,000.00"
"Department for Business, Innovation and Skills","Department for Business, Innovation and Skills",12/11/2010,Criminal Law and Prosecution Work,"Legal, People & Communications Group - Legal",DAVID DIXON,1011680,"5,635.32"
"Department for Business, Innovation and Skills","Department for Business, Innovation and Skills",18/11/2010,Criminal Law and Prosecution Work,"Legal, People & Communications Group - Legal",DAVID HEWITT,1012168,854.81
"Department for Business, Innovation and Skills","Department for Business, Innovation and Skills",08/11/2010,Criminal Law and Prosecution Work,"Legal, People & Communications Group - Legal",DAVID TEMKIN,1010988,521.47
"Department for Business, Innovation and Skills","Department for Business, Innovation and Skills",17/11/2010,Season Ticket and Bicycle Loans,"Legal, People & Communications Group - HRCM - Human Resources and Change Management Directorate",DEFRA,1012064,"2,545.00"
"Department for Business, Innovation and Skills","Department for Business, Innovation and Skills",18/11/2010,Purchase of Completed Research,Universities and Skills Group - Skills Directorate,DENIS ALLNUTT,1012174,"1,091.67"
"Department for Business, Innovation and Skills","Department for Business, Innovation and Skills",24/11/2010,Season Ticket and Bicycle Loans,"Legal, People & Communications Group - HRCM - Human Resources and Change Management Directorate",DEPARTMENT FOR COMMUNITIES AND LOCAL GOVERNMENT,1012698,900
"Department for Business, Innovation and Skills","Department for Business, Innovation and Skills",08/11/2010,Other IT Costs (Programme),Fair Markets Group Summary - Europe Directorate,DEPARTMENT FOR COMMUNITIES AND LOCAL GOVERNMENT,1010326,"14,694.00"
"Department for Business, Innovation and Skills","Department for Business, Innovation and Skills",01/11/2010,Grants - Non Statutory - Current - Other,Universities and Skills Group - Higher Education,DEPARTMENT FOR EDUCATION,1009062,"78,250.00"
"Department for Business, Innovation and Skills","Department for Business, Innovation and Skills",08/11/2010,Accommodation Rentals,Finance & Commercial Group - Information and Workplace Strategies,DEPARTMENT FOR EDUCATION,1011111,"323,043.00"
"Department for Business, Innovation and Skills","Department for Business, Innovation and Skills",01/11/2010,Grants - Non Statutory - Current - Other,Universities and Skills Group - Higher Education,DEPARTMENT FOR EDUCATION,1009062,"9,726,967.00"
"Department for Business, Innovation and Skills","Department for Business, Innovation and Skills",24/11/2010,Sundry Debtors,Universities and Skills Group - Learners,DEPARTMENT FOR EMPLOYMENT AND LEARNING,1012697,"20,680.08"
"Department for Business, Innovation and Skills","Department for Business, Innovation and Skills",26/11/2010,Car Hire and Leasing,Strategic Policy Analysis - Strategic Policy Analysis,DEPARTMENT FOR TRANSPORT,1012866,689.74
"Department for Business, Innovation and Skills","Department for Business, Innovation and Skills",17/11/2010,Other Staff Costs,Strategic Policy Analysis - Strategic Policy Analysis,DEPARTMENT FOR TRANSPORT,1012115,"3,263.69"
"Department for Business, Innovation and Skills","Department for Business, Innovation and Skills",18/11/2010,Pension APAC (DWP),"Legal, People & Communications Group - HRCM - Human Resources and Change Management Directorate",DEPARTMENT FOR WORK AND PENSIONS (DWP),1012313,"1,535.18"
"Department for Business, Innovation and Skills","Department for Business, Innovation and Skills",05/11/2010,Pension APAC (DWP),"Legal, People & Communications Group - HRCM - Human Resources and Change Management Directorate",DEPARTMENT FOR WORK AND PENSIONS (DWP),1011089,"4,533.27"
"Department for Business, Innovation and Skills","Department for Business, Innovation and Skills",05/11/2010,Pension APAC (DWP),"Legal, People & Communications Group - HRCM - Human Resources and Change Management Directorate",DEPARTMENT FOR WORK AND PENSIONS (DWP),1011088,"43,954.16"
"Department for Business, Innovation and Skills","Department for Business, Innovation and Skills",04/11/2010,Capital Grants - Other,Business Group - Advanced Manufacturing Industries,Department of Energy & Climate Change,1010914,"274,066.00"
"Department for Business, Innovation and Skills","Department for Business, Innovation and Skills",26/11/2010,Capital Grants - Other,Business Group - Advanced Manufacturing Industries,Department of Energy & Climate Change,1012906,"338,668.22"
"Department for Business, Innovation and Skills","Department for Business, Innovation and Skills",11/11/2010,Capital Grants - Other,Business Group - Advanced Manufacturing Industries,Department of Energy & Climate Change,1011202,"562,225.85"
"Department for Business, Innovation and Skills","Department for Business, Innovation and Skills",29/11/2010,Freight Charges,Finance & Commercial Group - Information and Workplace Strategies,DHL GLOBAL FORWARDING (UK) LTD,1012907,966.57
"Department for Business, Innovation and Skills","Department for Business, Innovation and Skills",29/11/2010,Freight Charges,Finance & Commercial Group - Information and Workplace Strategies,DHL GLOBAL FORWARDING (UK) LTD,1012911,"3,347.74"
"Department for Business, Innovation and Skills","Department for Business, Innovation and Skills",29/11/2010,InfoSource Desktop Information and Research Services,Finance & Commercial Group - Information and Workplace Strategies,DIALOG (DIALOG DIVISION OF THOMSON SCIENTIFIC INC),1012487,"1,725.19"
"Department for Business, Innovation and Skills","Department for Business, Innovation and Skills",08/11/2010,Security Policy Service,Finance & Commercial Group - Information and Workplace Strategies,DISCLOSURE SCOTLAND,1010092,552
"Department for Business, Innovation and Skills","Department for Business, Innovation and Skills",19/11/2010,Security Policy Service,Finance & Commercial Group - Information and Workplace Strategies,DISCLOSURE SCOTLAND,1012328,"1,081.00"
"Department for Business, Innovation and Skills","Department for Business, Innovation and Skills",15/11/2010,Outsourced Technical Support (Programme),SCIENCE & RESEARCH GROUP - UK Space Agency,DMCII (DMC INTERNATIONAL IMAGING LTD),1011877,593.05
"Department for Business, Innovation and Skills","Department for Business, Innovation and Skills",26/11/2010,Research & Development Expenditure (Programme),GOVERNMENT OFFICE FOR SCIENCE - GOVERNMENT OFFICE FOR SCIENCE,DR JULIA WRIGHT,1012839,900
"Department for Business, Innovation and Skills","Department for Business, Innovation and Skills",19/11/2010,Research & Development Expenditure (Programme),GOVERNMENT OFFICE FOR SCIENCE - GOVERNMENT OFFICE FOR SCIENCE,DR ROBIN MATTHEWS,1012354,774.24
"Department for Business, Innovation and Skills","Department for Business, Innovation and Skills",26/11/2010,Research & Development Expenditure (Programme),GOVERNMENT OFFICE FOR SCIENCE - GOVERNMENT OFFICE FOR SCIENCE,DR WOLFGANG BRITZ,1012680,"2,494.40"
"Department for Business, Innovation and Skills","Department for Business, Innovation and Skills",01/11/2010,Other Accommodation Charges (Programme),Finance & Commercial Group - Information and Workplace Strategies,DTZ DEBENHAM TIE LEUNG,1010518,816.4
"Department for Business, Innovation and Skills","Department for Business, Innovation and Skills",22/11/2010,Economic Consultancy & Research,Business Group - Business Environment and Growth Directorate,DUN & BRADSTREET LTD,1007346,"6,320.00"
"Department for Business, Innovation and Skills","Department for Business, Innovation and Skills",10/11/2010,Service Charges,Finance & Commercial Group - Information and Workplace Strategies,DWP (DEPARTMENT FOR WORK AND PENSIONS),1011600,769.34
"Department for Business, Innovation and Skills","Department for Business, Innovation and Skills",10/11/2010,Rates,Finance & Commercial Group - Information and Workplace Strategies,DWP (DEPARTMENT FOR WORK AND PENSIONS),1011600,"3,028.65"
"Department for Business, Innovation and Skills","Department for Business, Innovation and Skills",10/11/2010,Accommodation Rentals,Finance & Commercial Group - Information and Workplace Strategies,DWP (DEPARTMENT FOR WORK AND PENSIONS),1011600,"7,790.66"
"Department for Business, Innovation and Skills","Department for Business, Innovation and Skills",15/11/2010,Research & Development Expenditure (Programme),GOVERNMENT OFFICE FOR SCIENCE - GOVERNMENT OFFICE FOR SCIENCE,EARTHSCAN LTD,1011707,"6,590.00"
"Department for Business, Innovation and Skills","Department for Business, Innovation and Skills",05/11/2010,Grants - Non Statutory - Current - Other,Business Group - Advanced Manufacturing Industries,EAST MIDLANDS DEVELOPMENT AGENCY,1010902,"1,217.64"
"Department for Business, Innovation and Skills","Department for Business, Innovation and Skills",05/11/2010,Grants - Non Statutory - Current - Other,Business Group - Advanced Manufacturing Industries,EAST MIDLANDS DEVELOPMENT AGENCY,1010902,"6,515.06"
"Department for Business, Innovation and Skills","Department for Business, Innovation and Skills",05/11/2010,Grants - Non Statutory - Current - Other,Business Group - Advanced Manufacturing Industries,EAST MIDLANDS DEVELOPMENT AGENCY,1010902,"6,816.36"
"Department for Business, Innovation and Skills","Department for Business, Innovation and Skills",05/11/2010,Grants - Non Statutory - Current - Other,Business Group - Advanced Manufacturing Industries,EAST MIDLANDS DEVELOPMENT AGENCY,1010902,"9,723.02"
"Department for Business, Innovation and Skills","Department for Business, Innovation and Skills",17/11/2010,Sponsorship Support,Business Group - Advanced Manufacturing Industries,EAST MIDLANDS DEVELOPMENT AGENCY,1011557,"25,166.00"
"Department for Business, Innovation and Skills","Department for Business, Innovation and Skills",17/11/2010,Sponsorship Support,Business Group - Advanced Manufacturing Industries,EAST MIDLANDS DEVELOPMENT AGENCY,1011557,"64,000.00"
"Department for Business, Innovation and Skills","Department for Business, Innovation and Skills",17/11/2010,Sponsorship Support,Business Group - Advanced Manufacturing Industries,EAST MIDLANDS DEVELOPMENT AGENCY,1011557,"64,000.00"
"Department for Business, Innovation and Skills","Department for Business, Innovation and Skills",12/11/2010,Grant in Aid - Current -Other,Business Group - Economic Development Directorate,EAST MIDLANDS DEVELOPMENT AGENCY,1011365,"4,000,000.00"
"Department for Business, Innovation and Skills","Department for Business, Innovation and Skills",04/11/2010,Grants - Non Statutory - Current - Other,Business Group - Advanced Manufacturing Industries,EAST OF ENGLAND DEVELOPMENT AGENCY (EEDA),1010905,"32,250.00"
"Department for Business, Innovation and Skills","Department for Business, Innovation and Skills",04/11/2010,Grants - Non Statutory - Current - Other,Business Group - Advanced Manufacturing Industries,EAST OF ENGLAND DEVELOPMENT AGENCY (EEDA),1010905,"32,250.00"
"Department for Business, Innovation and Skills","Department for Business, Innovation and Skills",04/11/2010,Grants - Non Statutory - Current - Other,Business Group - Advanced Manufacturing Industries,EAST OF ENGLAND DEVELOPMENT AGENCY (EEDA),1010905,"32,250.00"
"Department for Business, Innovation and Skills","Department for Business, Innovation and Skills",04/11/2010,Grants - Non Statutory - Current - Other,Business Group - Advanced Manufacturing Industries,EAST OF ENGLAND DEVELOPMENT AGENCY (EEDA),1010905,"32,250.00"
"Department for Business, Innovation and Skills","Department for Business, Innovation and Skills",05/11/2010,Grants - Non Statutory - Current - Other,Business Group - Advanced Manufacturing Industries,EAST OF ENGLAND DEVELOPMENT AGENCY (EEDA),1010906,"34,397.00"
"Department for Business, Innovation and Skills","Department for Business, Innovation and Skills",05/11/2010,Grants - Non Statutory - Current - Other,Business Group - Advanced Manufacturing Industries,EAST OF ENGLAND DEVELOPMENT AGENCY (EEDA),1010906,"34,397.00"
"Department for Business, Innovation and Skills","Department for Business, Innovation and Skills",05/11/2010,Grants - Non Statutory - Current - Other,Business Group - Advanced Manufacturing Industries,EAST OF ENGLAND DEVELOPMENT AGENCY (EEDA),1010906,"45,577.00"
"Department for Business, Innovation and Skills","Department for Business, Innovation and Skills",05/11/2010,Grants - Non Statutory - Current - Other,Business Group - Advanced Manufacturing Industries,EAST OF ENGLAND DEVELOPMENT AGENCY (EEDA),1010906,"45,577.00"
"Department for Business, Innovation and Skills","Department for Business, Innovation and Skills",12/11/2010,Grant in Aid - Current -Other,Business Group - Economic Development Directorate,EAST OF ENGLAND DEVELOPMENT AGENCY (EEDA),1011329,"8,000,000.00"
"Department for Business, Innovation and Skills","Department for Business, Innovation and Skills",01/11/2010,Other Accommodation Charges (Programme),Finance & Commercial Group - Information and Workplace Strategies,EC HARRIS LLP,1010471,"5,490.00"
"Department for Business, Innovation and Skills","Department for Business, Innovation and Skills",01/11/2010,Leased Buildings - Clearing,Finance & Commercial Group - Information and Workplace Strategies,EC HARRIS LLP,1010469,"7,261.27"
"Department for Business, Innovation and Skills","Department for Business, Innovation and Skills",23/11/2010,Economic Consultancy and Research,"Innovation, Enterprise & Better Regulation Executive - Innovation",ECONOMIC AND SOCIAL RESEARCH COUNCIL ESRC,1012475,"14,528.00"
"Department for Business, Innovation and Skills","Department for Business, Innovation and Skills",05/11/2010,Grant in Aid - Current -Other,SCIENCE & RESEARCH GROUP - RESEARCH BASE,ECONOMIC AND SOCIAL RESEARCH COUNCIL ESRC,1010975,"8,000,000.00"
"Department for Business, Innovation and Skills","Department for Business, Innovation and Skills",02/11/2010,Electricity,Finance & Commercial Group - Information and Workplace Strategies,EDF ENERGY plc,1010580,"-31,657.86"
"Department for Business, Innovation and Skills","Department for Business, Innovation and Skills",02/11/2010,Electricity,Finance & Commercial Group - Information and Workplace Strategies,EDF ENERGY plc,1010580,"-7,725.83"
"Department for Business, Innovation and Skills","Department for Business, Innovation and Skills",19/11/2010,Electricity (Programme),Finance & Commercial Group - Information and Workplace Strategies,EDF ENERGY plc,1012279,911.89
"Department for Business, Innovation and Skills","Department for Business, Innovation and Skills",17/11/2010,Electricity,Finance & Commercial Group - Information and Workplace Strategies,EDF ENERGY plc,1012125,937.36
"Department for Business, Innovation and Skills","Department for Business, Innovation and Skills",17/11/2010,Electricity,Finance & Commercial Group - Information and Workplace Strategies,EDF ENERGY plc,1012122,"2,040.26"
"Department for Business, Innovation and Skills","Department for Business, Innovation and Skills",17/11/2010,Electricity,Finance & Commercial Group - Information and Workplace Strategies,EDF ENERGY plc,1012123,"4,933.81"
"Department for Business, Innovation and Skills","Department for Business, Innovation and Skills",17/11/2010,Electricity,Finance & Commercial Group - Information and Workplace Strategies,EDF ENERGY plc,1012120,"10,018.93"
"Department for Business, Innovation and Skills","Department for Business, Innovation and Skills",30/11/2010,Electricity,Finance & Commercial Group - Information and Workplace Strategies,EDF ENERGY plc,1013111,"18,207.58"
"Department for Business, Innovation and Skills","Department for Business, Innovation and Skills",17/11/2010,Electricity,Finance & Commercial Group - Information and Workplace Strategies,EDF ENERGY plc,1012130,"36,175.75"
"Department for Business, Innovation and Skills","Department for Business, Innovation and Skills",17/11/2010,Electricity,Finance & Commercial Group - Information and Workplace Strategies,EDF ENERGY plc,1012119,"47,852.76"
"Department for Business, Innovation and Skills","Department for Business, Innovation and Skills",02/11/2010,Electricity,Finance & Commercial Group - Information and Workplace Strategies,EDF ENERGY plc,1010580,"149,124.16"
"Department for Business, Innovation and Skills","Department for Business, Innovation and Skills",30/11/2010,ICT Training,SCIENCE & RESEARCH GROUP - UK Space Agency,EDUSERV TECHNOLOGIES LTD,1013098,"2,230.00"
"Department for Business, Innovation and Skills","Department for Business, Innovation and Skills",30/11/2010,IT Services (Programme),SCIENCE & RESEARCH GROUP - UK Space Agency,EDUSERV TECHNOLOGIES LTD,1013098,"4,000.00"
"Department for Business, Innovation and Skills","Department for Business, Innovation and Skills",30/11/2010,IT Services (Programme),SCIENCE & RESEARCH GROUP - UK Space Agency,EDUSERV TECHNOLOGIES LTD,1013098,"4,371.00"
"Department for Business, Innovation and Skills","Department for Business, Innovation and Skills",19/11/2010,Recruitment Consultancy Costs,Fair Markets Group Summary - Consumer and Competition Policy,ELISA HOLMES,1012302,"1,150.00"
"Department for Business, Innovation and Skills","Department for Business, Innovation and Skills",26/11/2010,Criminal Law and Prosecution Work,"Legal, People & Communications Group - Legal",ELVIN & CO,1012877,967.73
"Department for Business, Innovation and Skills","Department for Business, Innovation and Skills",04/11/2010,Criminal Law and Prosecution Work,"Legal, People & Communications Group - Legal",ELVIN & CO,1010853,"1,167.30"
"Department for Business, Innovation and Skills","Department for Business, Innovation and Skills",03/11/2010,Leased Buildings - Clearing,Finance & Commercial Group - Information and Workplace Strategies,EMSC (UK) LTD,1010686,"34,293.55"
"Department for Business, Innovation and Skills","Department for Business, Innovation and Skills",03/11/2010,Leased Buildings - Clearing,Finance & Commercial Group - Information and Workplace Strategies,EMSC (UK) LTD,1010688,"34,293.55"
"Department for Business, Innovation and Skills","Department for Business, Innovation and Skills",05/11/2010,Grant in Aid - Current -Other,SCIENCE & RESEARCH GROUP - RESEARCH BASE,ENGINEERING AND PHYSICAL SCIENCES RESEARCH COUNCIL,1010970,"10,000,000.00"
"Department for Business, Innovation and Skills","Department for Business, Innovation and Skills",22/11/2010,Purchase of Completed Research,Business Group - Advanced Manufacturing Industries,ENTEC UK LTD,1012456,"1,858.47"
"Department for Business, Innovation and Skills","Department for Business, Innovation and Skills",02/11/2010,Purchase of Completed Research,Business Group - Advanced Manufacturing Industries,ENTEC UK LTD,1010641,"3,088.92"
"Department for Business, Innovation and Skills","Department for Business, Innovation and Skills",08/11/2010,Outsourced Technical Support (Programme),SCIENCE & RESEARCH GROUP - UK Space Agency,EOCI,1011064,"1,997.62"
"Department for Business, Innovation and Skills","Department for Business, Innovation and Skills",24/11/2010,Electricity (Programme),Finance & Commercial Group - Information and Workplace Strategies,E-ON ENERGY LTD,1012586,945.68
"Department for Business, Innovation and Skills","Department for Business, Innovation and Skills",30/11/2010,Maintenance,Finance & Commercial Group - Information and Workplace Strategies,ETON ANALYTICAL LTD T/A ETON ENVIRONMENTAL SERVICES,1013075,"2,450.00"
"Department for Business, Innovation and Skills","Department for Business, Innovation and Skills",24/11/2010,Payments to Expotel for Hotel Costs Contract,Finance & Commercial Group - Finance Group,EXPOTEL HOTEL RESERVATIONS LTD,1012636,662.99
"Department for Business, Innovation and Skills","Department for Business, Innovation and Skills",10/11/2010,Payments to Expotel for Hotel Costs Contract,Finance & Commercial Group - Finance Group,EXPOTEL HOTEL RESERVATIONS LTD,1011345,"4,577.01"
"Department for Business, Innovation and Skills","Department for Business, Innovation and Skills",17/11/2010,Payments to Expotel for Hotel Costs Contract,Finance & Commercial Group - Finance Group,EXPOTEL HOTEL RESERVATIONS LTD,1011987,"9,156.72"
"Department for Business, Innovation and Skills","Department for Business, Innovation and Skills",03/11/2010,Payments to Expotel for Hotel Costs Contract,Finance & Commercial Group - Finance Group,EXPOTEL HOTEL RESERVATIONS LTD,1010609,"9,266.99"
"Department for Business, Innovation and Skills","Department for Business, Innovation and Skills",10/11/2010,Payments to Expotel for Hotel Costs Contract,Finance & Commercial Group - Finance Group,EXPOTEL HOTEL RESERVATIONS LTD,1010125,"10,090.84"
"Department for Business, Innovation and Skills","Department for Business, Innovation and Skills",24/11/2010,Payments to Expotel for Hotel Costs Contract,Finance & Commercial Group - Finance Group,EXPOTEL HOTEL RESERVATIONS LTD,1012636,"16,675.45"
"Department for Business, Innovation and Skills","Department for Business, Innovation and Skills",04/11/2010,Grants - Non Statutory - Current - Other,Universities and Skills Group - Learners,FAMILY ACTION,1010912,"6,000.00"
"Department for Business, Innovation and Skills","Department for Business, Innovation and Skills",22/11/2010,FCO/COI Dispatches,Finance & Commercial Group - Information and Workplace Strategies,FCO SERVICES,1012421,"3,176.78"
"Department for Business, Innovation and Skills","Department for Business, Innovation and Skills",29/11/2010,Security Policy Service,Finance & Commercial Group - Information and Workplace Strategies,FCO SERVICES,1012329,"5,570.00"
"Department for Business, Innovation and Skills","Department for Business, Innovation and Skills",29/11/2010,Security Policy Service,Finance & Commercial Group - Information and Workplace Strategies,FCO SERVICES,1012330,"10,890.00"
"Department for Business, Innovation and Skills","Department for Business, Innovation and Skills",18/11/2010,Other Accommodation Charges (Programme),Finance & Commercial Group - Information and Workplace Strategies,FIELD FISHER WATERHOUSE,1012179,875
"Department for Business, Innovation and Skills","Department for Business, Innovation and Skills",01/11/2010,External Legal Advice and Services,Finance & Commercial Group - Information and Workplace Strategies,FIELD FISHER WATERHOUSE,1010459,"11,592.65"
"Department for Business, Innovation and Skills","Department for Business, Innovation and Skills",08/11/2010,External Legal Advice and Services,Finance & Commercial Group - Information and Workplace Strategies,FIELD FISHER WATERHOUSE,1011107,"16,037.31"
"Department for Business, Innovation and Skills","Department for Business, Innovation and Skills",12/11/2010,Outsourced Programme Management Services,Universities and Skills Group - Further Education & Skills Investment,FILEBASE LTD,1011140,"1,653.88"
"Department for Business, Innovation and Skills","Department for Business, Innovation and Skills",10/11/2010,SL DS Utilisation,Universities and Skills Group - Learners,FINANCE FOR HIGHER EDUCATION,1011511,"60,287.20"
"Department for Business, Innovation and Skills","Department for Business, Innovation and Skills",10/11/2010,Criminal Law and Prosecution Work,"Legal, People & Communications Group - Legal",FIONA SHIPLEY TRANSCRIPTION LTD,1011553,515.41
"Department for Business, Innovation and Skills","Department for Business, Innovation and Skills",18/11/2010,Leased Buildings - Clearing,Finance & Commercial Group - Information and Workplace Strategies,FMx Limited,1012089,"1,694.28"
"Department for Business, Innovation and Skills","Department for Business, Innovation and Skills",02/11/2010,Publications (Programme),Fair Markets Group Summary - Employment Relations,FOLIO CREATIVE COMMUNICATION,1009686,740
"Department for Business, Innovation and Skills","Department for Business, Innovation and Skills",29/11/2010,Season Ticket and Bicycle Loans,"Legal, People & Communications Group - HRCM - Human Resources and Change Management Directorate",FOOD STANDARDS AGENCY,1012966,700
"Department for Business, Innovation and Skills","Department for Business, Innovation and Skills",01/11/2010,Entertaining Overseas (Programme),SCIENCE & RESEARCH GROUP - RESEARCH BASE,FOREIGN AND COMMONWEALTH OFFICE (FCO),1008261,500
"Department for Business, Innovation and Skills","Department for Business, Innovation and Skills",17/11/2010,Air Fares  - Overseas (Programme),SCIENCE & RESEARCH GROUP - RESEARCH BASE,FOREIGN AND COMMONWEALTH OFFICE (FCO),1009617,549.27
"Department for Business, Innovation and Skills","Department for Business, Innovation and Skills",01/11/2010,Subsistence Payments- Overseas (Programme),SCIENCE & RESEARCH GROUP - RESEARCH BASE,FOREIGN AND COMMONWEALTH OFFICE (FCO),1008262,550
"Department for Business, Innovation and Skills","Department for Business, Innovation and Skills",01/11/2010,Air Fares Overseas,SCIENCE & RESEARCH GROUP - RESEARCH BASE,FOREIGN AND COMMONWEALTH OFFICE (FCO),1008254,555.76
"Department for Business, Innovation and Skills","Department for Business, Innovation and Skills",17/11/2010,Air Fares  - Overseas (Programme),SCIENCE & RESEARCH GROUP - RESEARCH BASE,FOREIGN AND COMMONWEALTH OFFICE (FCO),1009576,574.01
"Department for Business, Innovation and Skills","Department for Business, Innovation and Skills",17/11/2010,Air Fares  - Overseas (Programme),SCIENCE & RESEARCH GROUP - RESEARCH BASE,FOREIGN AND COMMONWEALTH OFFICE (FCO),1009580,577.65
"Department for Business, Innovation and Skills","Department for Business, Innovation and Skills",01/11/2010,Air Fares  - Overseas (Programme),SCIENCE & RESEARCH GROUP - RESEARCH BASE,FOREIGN AND COMMONWEALTH OFFICE (FCO),1008257,580.99
"Department for Business, Innovation and Skills","Department for Business, Innovation and Skills",01/11/2010,Air Fares  - Overseas (Programme),SCIENCE & RESEARCH GROUP - RESEARCH BASE,FOREIGN AND COMMONWEALTH OFFICE (FCO),1008281,593.01
"Department for Business, Innovation and Skills","Department for Business, Innovation and Skills",17/11/2010,Air Fares  - Overseas (Programme),SCIENCE & RESEARCH GROUP - RESEARCH BASE,FOREIGN AND COMMONWEALTH OFFICE (FCO),1009603,598.04
"Department for Business, Innovation and Skills","Department for Business, Innovation and Skills",01/11/2010,Hotels- Overseas  (Programme),SCIENCE & RESEARCH GROUP - RESEARCH BASE,FOREIGN AND COMMONWEALTH OFFICE (FCO),1008261,625.36
"Department for Business, Innovation and Skills","Department for Business, Innovation and Skills",01/11/2010,Air Fares  - Overseas (Programme),SCIENCE & RESEARCH GROUP - RESEARCH BASE,FOREIGN AND COMMONWEALTH OFFICE (FCO),1008282,756.63
"Department for Business, Innovation and Skills","Department for Business, Innovation and Skills",01/11/2010,Air Fares  - Overseas (Programme),SCIENCE & RESEARCH GROUP - RESEARCH BASE,FOREIGN AND COMMONWEALTH OFFICE (FCO),1008262,872.7
"Department for Business, Innovation and Skills","Department for Business, Innovation and Skills",17/11/2010,Air Fares  - Overseas (Programme),SCIENCE & RESEARCH GROUP - RESEARCH BASE,FOREIGN AND COMMONWEALTH OFFICE (FCO),1009562,902.77
"Department for Business, Innovation and Skills","Department for Business, Innovation and Skills",17/11/2010,Air Fares  - Overseas (Programme),SCIENCE & RESEARCH GROUP - RESEARCH BASE,FOREIGN AND COMMONWEALTH OFFICE (FCO),1009620,904.68
"Department for Business, Innovation and Skills","Department for Business, Innovation and Skills",17/11/2010,Air Fares  - Overseas (Programme),SCIENCE & RESEARCH GROUP - RESEARCH BASE,FOREIGN AND COMMONWEALTH OFFICE (FCO),1009560,913.53
"Department for Business, Innovation and Skills","Department for Business, Innovation and Skills",30/11/2010,Air Fares  - Overseas (Programme),SCIENCE & RESEARCH GROUP - RESEARCH BASE,FOREIGN AND COMMONWEALTH OFFICE (FCO),1010858,946.59
"Department for Business, Innovation and Skills","Department for Business, Innovation and Skills",17/11/2010,Hotels- Overseas  (Programme),SCIENCE & RESEARCH GROUP - RESEARCH BASE,FOREIGN AND COMMONWEALTH OFFICE (FCO),1009595,992.9
"Department for Business, Innovation and Skills","Department for Business, Innovation and Skills",17/11/2010,Grants - Statutory - Current - Other,SCIENCE & RESEARCH GROUP - RESEARCH BASE,FOREIGN AND COMMONWEALTH OFFICE (FCO),1009607,"1,000.00"
"Department for Business, Innovation and Skills","Department for Business, Innovation and Skills",17/11/2010,Air Fares  - Overseas (Programme),SCIENCE & RESEARCH GROUP - RESEARCH BASE,FOREIGN AND COMMONWEALTH OFFICE (FCO),1009604,"1,000.00"
"Department for Business, Innovation and Skills","Department for Business, Innovation and Skills",17/11/2010,Entertaining Overseas (Programme),SCIENCE & RESEARCH GROUP - RESEARCH BASE,FOREIGN AND COMMONWEALTH OFFICE (FCO),1009604,"1,000.00"
"Department for Business, Innovation and Skills","Department for Business, Innovation and Skills",17/11/2010,Air Fares  - Overseas (Programme),SCIENCE & RESEARCH GROUP - RESEARCH BASE,FOREIGN AND COMMONWEALTH OFFICE (FCO),1009554,"1,038.86"
"Department for Business, Innovation and Skills","Department for Business, Innovation and Skills",17/11/2010,Air Fares  - Overseas (Programme),SCIENCE & RESEARCH GROUP - RESEARCH BASE,FOREIGN AND COMMONWEALTH OFFICE (FCO),1009621,"1,107.28"
"Department for Business, Innovation and Skills","Department for Business, Innovation and Skills",17/11/2010,Other Overseas T&S (Programme),SCIENCE & RESEARCH GROUP - RESEARCH BASE,FOREIGN AND COMMONWEALTH OFFICE (FCO),1009604,"1,169.57"
"Department for Business, Innovation and Skills","Department for Business, Innovation and Skills",17/11/2010,Air Fares  - Overseas (Programme),SCIENCE & RESEARCH GROUP - RESEARCH BASE,FOREIGN AND COMMONWEALTH OFFICE (FCO),1009612,"1,260.10"
"Department for Business, Innovation and Skills","Department for Business, Innovation and Skills",17/11/2010,Air Fares  - Overseas (Programme),SCIENCE & RESEARCH GROUP - RESEARCH BASE,FOREIGN AND COMMONWEALTH OFFICE (FCO),1009613,"1,260.10"
"Department for Business, Innovation and Skills","Department for Business, Innovation and Skills",17/11/2010,Air Fares  - Overseas (Programme),SCIENCE & RESEARCH GROUP - RESEARCH BASE,FOREIGN AND COMMONWEALTH OFFICE (FCO),1009614,"1,260.10"
"Department for Business, Innovation and Skills","Department for Business, Innovation and Skills",17/11/2010,Air Fares  - Overseas (Programme),SCIENCE & RESEARCH GROUP - RESEARCH BASE,FOREIGN AND COMMONWEALTH OFFICE (FCO),1009615,"1,260.10"
"Department for Business, Innovation and Skills","Department for Business, Innovation and Skills",17/11/2010,Air Fares  - Overseas (Programme),SCIENCE & RESEARCH GROUP - RESEARCH BASE,FOREIGN AND COMMONWEALTH OFFICE (FCO),1009616,"1,260.10"
"Department for Business, Innovation and Skills","Department for Business, Innovation and Skills",30/11/2010,Air Fares  - Overseas (Programme),SCIENCE & RESEARCH GROUP - RESEARCH BASE,FOREIGN AND COMMONWEALTH OFFICE (FCO),1010857,"1,349.55"
"Department for Business, Innovation and Skills","Department for Business, Innovation and Skills",17/11/2010,Air Fares  - Overseas (Programme),SCIENCE & RESEARCH GROUP - RESEARCH BASE,FOREIGN AND COMMONWEALTH OFFICE (FCO),1009559,"1,360.49"
"Department for Business, Innovation and Skills","Department for Business, Innovation and Skills",17/11/2010,Air Fares  - Overseas (Programme),SCIENCE & RESEARCH GROUP - RESEARCH BASE,FOREIGN AND COMMONWEALTH OFFICE (FCO),1009585,"1,428.45"
"Department for Business, Innovation and Skills","Department for Business, Innovation and Skills",17/11/2010,Air Fares  - Overseas (Programme),SCIENCE & RESEARCH GROUP - RESEARCH BASE,FOREIGN AND COMMONWEALTH OFFICE (FCO),1009586,"1,428.45"
"Department for Business, Innovation and Skills","Department for Business, Innovation and Skills",17/11/2010,Hotels- Overseas  (Programme),SCIENCE & RESEARCH GROUP - RESEARCH BASE,FOREIGN AND COMMONWEALTH OFFICE (FCO),1009604,"1,440.00"
"Department for Business, Innovation and Skills","Department for Business, Innovation and Skills",17/11/2010,Air Fares  - Overseas (Programme),SCIENCE & RESEARCH GROUP - RESEARCH BASE,FOREIGN AND COMMONWEALTH OFFICE (FCO),1009622,"1,488.89"
"Department for Business, Innovation and Skills","Department for Business, Innovation and Skills",17/11/2010,Air Fares  - Overseas (Programme),SCIENCE & RESEARCH GROUP - RESEARCH BASE,FOREIGN AND COMMONWEALTH OFFICE (FCO),1009583,"1,543.92"
"Department for Business, Innovation and Skills","Department for Business, Innovation and Skills",17/11/2010,Air Fares  - Overseas (Programme),SCIENCE & RESEARCH GROUP - RESEARCH BASE,FOREIGN AND COMMONWEALTH OFFICE (FCO),1009618,"1,602.58"
"Department for Business, Innovation and Skills","Department for Business, Innovation and Skills",17/11/2010,Air Fares  - Overseas (Programme),SCIENCE & RESEARCH GROUP - RESEARCH BASE,FOREIGN AND COMMONWEALTH OFFICE (FCO),1009619,"1,602.58"
"Department for Business, Innovation and Skills","Department for Business, Innovation and Skills",17/11/2010,Air Fares  - Overseas (Programme),SCIENCE & RESEARCH GROUP - RESEARCH BASE,FOREIGN AND COMMONWEALTH OFFICE (FCO),1009604,"3,484.65"
"Department for Business, Innovation and Skills","Department for Business, Innovation and Skills",17/11/2010,Hotels- Overseas  (Programme),SCIENCE & RESEARCH GROUP - RESEARCH BASE,FOREIGN AND COMMONWEALTH OFFICE (FCO),1009611,"4,532.62"
"Department for Business, Innovation and Skills","Department for Business, Innovation and Skills",10/11/2010,Criminal Law and Prosecution Work,"Legal, People & Communications Group - Legal",FORENSIC SCIENCE SERVICE LTD T/A THE FORENSIC SCIENCE SERVICE,1011530,"1,452.30"
"Department for Business, Innovation and Skills","Department for Business, Innovation and Skills",12/11/2010,Criminal Law and Prosecution Work,"Legal, People & Communications Group - Legal",FORENSIC SCIENCE SERVICE LTD T/A THE FORENSIC SCIENCE SERVICE,1011674,"1,522.80"
"Department for Business, Innovation and Skills","Department for Business, Innovation and Skills",09/11/2010,Air Fares  - Overseas (Programme),SCIENCE & RESEARCH GROUP - RESEARCH BASE,FORESTRY COMMISSION RESEARCH AGENCY,1011469,"1,300.00"
"Department for Business, Innovation and Skills","Department for Business, Innovation and Skills",11/11/2010,Corporate Management Consultancy,Shareholder Executive - Shareholder Executive,FRESHFIELDS BRUCKHAUS DERINGER,1011691,"5,010.84"
"Department for Business, Innovation and Skills","Department for Business, Innovation and Skills",12/11/2010,Standard Desktop Services (PFI),Finance & Commercial Group - Information and Workplace Strategies,FUJITSU SERVICES LTD,1011726,"-37,138.77"
"Department for Business, Innovation and Skills","Department for Business, Innovation and Skills",02/11/2010,Standard Desktop Services (PFI),Finance & Commercial Group - Information and Workplace Strategies,FUJITSU SERVICES LTD,1010566,521.99
"Department for Business, Innovation and Skills","Department for Business, Innovation and Skills",02/11/2010,ICT Infrastructure Specific Service (PFI),Finance & Commercial Group - Information and Workplace Strategies,FUJITSU SERVICES LTD,1010610,530.45
"Department for Business, Innovation and Skills","Department for Business, Innovation and Skills",17/11/2010,ICT Maintenance & Upkeep (PFI),Finance & Commercial Group - Information and Workplace Strategies,FUJITSU SERVICES LTD,1008082,530.45
"Department for Business, Innovation and Skills","Department for Business, Innovation and Skills",01/11/2010,ICT Infrastructure Specific Service (PFI),Finance & Commercial Group - Information and Workplace Strategies,FUJITSU SERVICES LTD,1010524,615.92
"Department for Business, Innovation and Skills","Department for Business, Innovation and Skills",02/11/2010,ICT Infrastructure Specific Service (PFI),Finance & Commercial Group - Information and Workplace Strategies,FUJITSU SERVICES LTD,1010527,616
"Department for Business, Innovation and Skills","Department for Business, Innovation and Skills",02/11/2010,Standard Desktop Plus Service (PFI),Finance & Commercial Group - Information and Workplace Strategies,FUJITSU SERVICES LTD,1010563,653.42
"Department for Business, Innovation and Skills","Department for Business, Innovation and Skills",02/11/2010,Standard Desktop Services (PFI),Finance & Commercial Group - Information and Workplace Strategies,FUJITSU SERVICES LTD,1010585,761.77
"Department for Business, Innovation and Skills","Department for Business, Innovation and Skills",02/11/2010,Standard Desktop Plus Service (PFI),Finance & Commercial Group - Information and Workplace Strategies,FUJITSU SERVICES LTD,1010558,859.35
"Department for Business, Innovation and Skills","Department for Business, Innovation and Skills",02/11/2010,ICT Infrastructure Specific Service (PFI),Finance & Commercial Group - Information and Workplace Strategies,FUJITSU SERVICES LTD,1010527,"1,049.26"
"Department for Business, Innovation and Skills","Department for Business, Innovation and Skills",02/11/2010,ICT Business Specific Application Services (PFI),Finance & Commercial Group - Information and Workplace Strategies,FUJITSU SERVICES LTD,1010545,"1,188.90"
"Department for Business, Innovation and Skills","Department for Business, Innovation and Skills",17/11/2010,ICT Maintenance & Upkeep (PFI),Finance & Commercial Group - Information and Workplace Strategies,FUJITSU SERVICES LTD,1008082,"1,210.55"
"Department for Business, Innovation and Skills","Department for Business, Innovation and Skills",09/11/2010,Standard Desktop Plus Service (PFI),Finance & Commercial Group - Information and Workplace Strategies,FUJITSU SERVICES LTD,1010931,"1,295.28"
"Department for Business, Innovation and Skills","Department for Business, Innovation and Skills",17/11/2010,Standard Desktop Services (PFI),Finance & Commercial Group - Information and Workplace Strategies,FUJITSU SERVICES LTD,1008070,"1,300.17"
"Department for Business, Innovation and Skills","Department for Business, Innovation and Skills",18/11/2010,Standard Desktop Services (PFI),Finance & Commercial Group - Information and Workplace Strategies,FUJITSU SERVICES LTD,1012160,"1,608.75"
"Department for Business, Innovation and Skills","Department for Business, Innovation and Skills",04/11/2010,Standard Desktop Plus Service (PFI),Finance & Commercial Group - Information and Workplace Strategies,FUJITSU SERVICES LTD,1010852,"1,667.59"
"Department for Business, Innovation and Skills","Department for Business, Innovation and Skills",04/11/2010,Standard Desktop Plus Service (PFI),Finance & Commercial Group - Information and Workplace Strategies,FUJITSU SERVICES LTD,1010849,"1,849.26"
"Department for Business, Innovation and Skills","Department for Business, Innovation and Skills",12/11/2010,Standard Desktop Plus Service (PFI),Finance & Commercial Group - Information and Workplace Strategies,FUJITSU SERVICES LTD,1011712,"1,920.00"
"Department for Business, Innovation and Skills","Department for Business, Innovation and Skills",02/11/2010,Standard Desktop Plus Service (PFI),Finance & Commercial Group - Information and Workplace Strategies,FUJITSU SERVICES LTD,1010597,"1,973.22"
"Department for Business, Innovation and Skills","Department for Business, Innovation and Skills",02/11/2010,Application Support Service,Finance & Commercial Group - Information and Workplace Strategies,FUJITSU SERVICES LTD,1010529,"2,351.40"
"Department for Business, Innovation and Skills","Department for Business, Innovation and Skills",03/11/2010,ICT Business Specific Application Services (PFI),Finance & Commercial Group - Information and Workplace Strategies,FUJITSU SERVICES LTD,1010834,"3,142.77"
"Department for Business, Innovation and Skills","Department for Business, Innovation and Skills",15/11/2010,Standard Desktop Plus Service (PFI),Finance & Commercial Group - Information and Workplace Strategies,FUJITSU SERVICES LTD,1011782,"3,344.00"
"Department for Business, Innovation and Skills","Department for Business, Innovation and Skills",02/11/2010,Standard Desktop Services (PFI),Finance & Commercial Group - Information and Workplace Strategies,FUJITSU SERVICES LTD,1010552,"3,738.37"
"Department for Business, Innovation and Skills","Department for Business, Innovation and Skills",02/11/2010,Standard Desktop Plus Service (PFI),Finance & Commercial Group - Information and Workplace Strategies,FUJITSU SERVICES LTD,1010584,"3,880.08"
"Department for Business, Innovation and Skills","Department for Business, Innovation and Skills",10/11/2010,Standard Desktop Plus Service (PFI),Finance & Commercial Group - Information and Workplace Strategies,FUJITSU SERVICES LTD,1011150,"3,971.70"
"Department for Business, Innovation and Skills","Department for Business, Innovation and Skills",19/11/2010,Flexible Computing Service (PFI),Finance & Commercial Group - Information and Workplace Strategies,FUJITSU SERVICES LTD,1012365,"4,104.50"
"Department for Business, Innovation and Skills","Department for Business, Innovation and Skills",09/11/2010,ICT Business Specific Application Services (PFI),Finance & Commercial Group - Information and Workplace Strategies,FUJITSU SERVICES LTD,1011276,"4,388.33"
"Department for Business, Innovation and Skills","Department for Business, Innovation and Skills",02/11/2010,ICT Infrastructure Specific Service (PFI),Finance & Commercial Group - Information and Workplace Strategies,FUJITSU SERVICES LTD,1010589,"4,794.00"
"Department for Business, Innovation and Skills","Department for Business, Innovation and Skills",02/11/2010,Standard Desktop Plus Service (PFI),Finance & Commercial Group - Information and Workplace Strategies,FUJITSU SERVICES LTD,1010582,"5,184.50"
"Department for Business, Innovation and Skills","Department for Business, Innovation and Skills",02/11/2010,ICT Business Specific Application Services (PFI),Finance & Commercial Group - Information and Workplace Strategies,FUJITSU SERVICES LTD,1010576,"5,215.00"
"Department for Business, Innovation and Skills","Department for Business, Innovation and Skills",02/11/2010,Standard Desktop Plus Service (PFI),Finance & Commercial Group - Information and Workplace Strategies,FUJITSU SERVICES LTD,1010559,"5,703.07"
"Department for Business, Innovation and Skills","Department for Business, Innovation and Skills",02/11/2010,ICT Business Specific Application Services (PFI),Finance & Commercial Group - Information and Workplace Strategies,FUJITSU SERVICES LTD,1010544,"6,551.68"
"Department for Business, Innovation and Skills","Department for Business, Innovation and Skills",02/11/2010,ICT Business Specific Application Services (PFI),Finance & Commercial Group - Information and Workplace Strategies,FUJITSU SERVICES LTD,1010571,"6,858.00"
"Department for Business, Innovation and Skills","Department for Business, Innovation and Skills",02/11/2010,ICT Business Specific Application Services (PFI),Finance & Commercial Group - Information and Workplace Strategies,FUJITSU SERVICES LTD,1010572,"6,858.00"
"Department for Business, Innovation and Skills","Department for Business, Innovation and Skills",02/11/2010,ICT Business Specific Application Services (PFI),Finance & Commercial Group - Information and Workplace Strategies,FUJITSU SERVICES LTD,1010573,"6,858.00"
"Department for Business, Innovation and Skills","Department for Business, Innovation and Skills",02/11/2010,ICT Business Specific Application Services (PFI),Finance & Commercial Group - Information and Workplace Strategies,FUJITSU SERVICES LTD,1010574,"6,858.00"
"Department for Business, Innovation and Skills","Department for Business, Innovation and Skills",02/11/2010,ICT Infrastructure Specific Service (PFI),Finance & Commercial Group - Information and Workplace Strategies,FUJITSU SERVICES LTD,1010536,"6,997.64"
"Department for Business, Innovation and Skills","Department for Business, Innovation and Skills",18/11/2010,Outsourced Programme Management Services,"Innovation, Enterprise & Better Regulation Executive - Innovation",FUJITSU SERVICES LTD,1012198,"8,281.00"
"Department for Business, Innovation and Skills","Department for Business, Innovation and Skills",17/11/2010,Outsourced Programme Management Services,"Innovation, Enterprise & Better Regulation Executive - Innovation",FUJITSU SERVICES LTD,1012097,"8,932.90"
"Department for Business, Innovation and Skills","Department for Business, Innovation and Skills",02/11/2010,ICT Business Specific Application Services (PFI),Finance & Commercial Group - Information and Workplace Strategies,FUJITSU SERVICES LTD,1010575,"13,716.00"
"Department for Business, Innovation and Skills","Department for Business, Innovation and Skills",19/11/2010,ICT Maintenance & Upkeep (PFI),Finance & Commercial Group - Information and Workplace Strategies,FUJITSU SERVICES LTD,1012202,"15,876.00"
"Department for Business, Innovation and Skills","Department for Business, Innovation and Skills",08/11/2010,ICT Infrastructure Specific Service (PFI),Finance & Commercial Group - Information and Workplace Strategies,FUJITSU SERVICES LTD,1011149,"18,454.50"
"Department for Business, Innovation and Skills","Department for Business, Innovation and Skills",02/11/2010,Standard Desktop Services (PFI),Finance & Commercial Group - Information and Workplace Strategies,FUJITSU SERVICES LTD,1010583,"18,773.58"
"Department for Business, Innovation and Skills","Department for Business, Innovation and Skills",18/11/2010,Flexible Computing Service (PFI),Finance & Commercial Group - Information and Workplace Strategies,FUJITSU SERVICES LTD,1012200,"18,792.67"
"Department for Business, Innovation and Skills","Department for Business, Innovation and Skills",01/11/2010,Standard Desktop Plus Service (PFI),Finance & Commercial Group - Information and Workplace Strategies,FUJITSU SERVICES LTD,1008081,"19,628.89"
"Department for Business, Innovation and Skills","Department for Business, Innovation and Skills",02/11/2010,ICT Business Specific Application Services (PFI),Finance & Commercial Group - Information and Workplace Strategies,FUJITSU SERVICES LTD,1010575,"20,574.00"
"Department for Business, Innovation and Skills","Department for Business, Innovation and Skills",02/11/2010,IT Systems Development,Finance & Commercial Group - Finance Group,FUJITSU SERVICES LTD,1010538,"25,815.63"
"Department for Business, Innovation and Skills","Department for Business, Innovation and Skills",15/11/2010,Flexible Computing Service (PFI),Finance & Commercial Group - Information and Workplace Strategies,FUJITSU SERVICES LTD,1008110,"25,977.81"
"Department for Business, Innovation and Skills","Department for Business, Innovation and Skills",08/11/2010,Maintenance,Finance & Commercial Group - Information and Workplace Strategies,FUJITSU SERVICES LTD,1011151,"27,255.98"
"Department for Business, Innovation and Skills","Department for Business, Innovation and Skills",15/11/2010,Flexible Computing Service (PFI),Finance & Commercial Group - Information and Workplace Strategies,FUJITSU SERVICES LTD,1009755,"29,268.28"
"Department for Business, Innovation and Skills","Department for Business, Innovation and Skills",17/11/2010,Standard Desktop Plus Service (PFI),Finance & Commercial Group - Information and Workplace Strategies,FUJITSU SERVICES LTD,1012067,"38,483.63"
"Department for Business, Innovation and Skills","Department for Business, Innovation and Skills",17/11/2010,Computer Equipment - Clearing,Finance & Commercial Group - Information and Workplace Strategies,FUJITSU SERVICES LTD,1012090,"40,367.32"
"Department for Business, Innovation and Skills","Department for Business, Innovation and Skills",12/11/2010,Standard Desktop Plus Service (PFI),Finance & Commercial Group - Information and Workplace Strategies,FUJITSU SERVICES LTD,1011700,"51,260.00"
"Department for Business, Innovation and Skills","Department for Business, Innovation and Skills",09/11/2010,Standard Desktop Plus Service (PFI),Finance & Commercial Group - Information and Workplace Strategies,FUJITSU SERVICES LTD,1010934,"152,541.60"
"Department for Business, Innovation and Skills","Department for Business, Innovation and Skills",02/11/2010,Computer Equipment - Clearing,Finance & Commercial Group - Information and Workplace Strategies,FUJITSU SERVICES LTD,1010569,"213,864.10"
"Department for Business, Innovation and Skills","Department for Business, Innovation and Skills",29/11/2010,Standard Desktop Services (PFI),Finance & Commercial Group - Information and Workplace Strategies,FUJITSU SERVICES LTD,1012946,"526,813.53"
"Department for Business, Innovation and Skills","Department for Business, Innovation and Skills",12/11/2010,Standard Desktop Services (PFI),Finance & Commercial Group - Information and Workplace Strategies,FUJITSU SERVICES LTD,1007211,"556,940.16"
"Department for Business, Innovation and Skills","Department for Business, Innovation and Skills",25/11/2010,Outsourced Programme Management Services,"Innovation, Enterprise & Better Regulation Executive - Innovation",Future Plan Consulting Ltd,1012776,"7,261.18"
"Department for Business, Innovation and Skills","Department for Business, Innovation and Skills",18/11/2010,Technical Advice / Services & Support,Finance & Commercial Group - Information and Workplace Strategies,G2 & ASSOCIATES LTD T/A G2 BUSINESS SERVICES,1012194,"4,550.00"
"Department for Business, Innovation and Skills","Department for Business, Innovation and Skills",25/11/2010,Standard Desktop Plus Services,Finance & Commercial Group - Information and Workplace Strategies,G2 & ASSOCIATES LTD T/A G2 BUSINESS SERVICES,1012131,"21,200.00"
"Department for Business, Innovation and Skills","Department for Business, Innovation and Skills",03/11/2010,Other External Recruitment Costs (Staff),Strategic Policy Analysis - Strategic Policy Analysis,GATENBY SANDERSON LTD,1010710,"6,475.00"
"Department for Business, Innovation and Skills","Department for Business, Innovation and Skills",02/11/2010,Contract Cleaning,Finance & Commercial Group - Information and Workplace Strategies,GBM SERVICES LTD,1010669,514.84
"Department for Business, Innovation and Skills","Department for Business, Innovation and Skills",30/11/2010,Contract Cleaning,Finance & Commercial Group - Information and Workplace Strategies,GBM SERVICES LTD,1013123,514.84
"Department for Business, Innovation and Skills","Department for Business, Innovation and Skills",02/11/2010,Contract Cleaning,Finance & Commercial Group - Information and Workplace Strategies,GBM SERVICES LTD,1010666,523.34
"Department for Business, Innovation and Skills","Department for Business, Innovation and Skills",30/11/2010,Contract Cleaning,Finance & Commercial Group - Information and Workplace Strategies,GBM SERVICES LTD,1013084,584
"Department for Business, Innovation and Skills","Department for Business, Innovation and Skills",30/11/2010,Contract Cleaning,Finance & Commercial Group - Information and Workplace Strategies,GBM SERVICES LTD,1013087,"1,442.69"
"Department for Business, Innovation and Skills","Department for Business, Innovation and Skills",02/11/2010,Contract Cleaning,Finance & Commercial Group - Information and Workplace Strategies,GBM SERVICES LTD,1010669,"1,574.95"
"Department for Business, Innovation and Skills","Department for Business, Innovation and Skills",30/11/2010,Contract Cleaning,Finance & Commercial Group - Information and Workplace Strategies,GBM SERVICES LTD,1013123,"1,574.95"
"Department for Business, Innovation and Skills","Department for Business, Innovation and Skills",30/11/2010,Contract Cleaning,Finance & Commercial Group - Information and Workplace Strategies,GBM SERVICES LTD,1013085,"4,310.00"
"Department for Business, Innovation and Skills","Department for Business, Innovation and Skills",02/11/2010,Contract Cleaning,Finance & Commercial Group - Information and Workplace Strategies,GBM SERVICES LTD,1010669,"4,955.25"
"Department for Business, Innovation and Skills","Department for Business, Innovation and Skills",30/11/2010,Contract Cleaning,Finance & Commercial Group - Information and Workplace Strategies,GBM SERVICES LTD,1013123,"4,955.25"
"Department for Business, Innovation and Skills","Department for Business, Innovation and Skills",02/11/2010,Contract Cleaning,Finance & Commercial Group - Information and Workplace Strategies,GBM SERVICES LTD,1010669,"5,777.76"
"Department for Business, Innovation and Skills","Department for Business, Innovation and Skills",30/11/2010,Contract Cleaning,Finance & Commercial Group - Information and Workplace Strategies,GBM SERVICES LTD,1013123,"5,777.76"
"Department for Business, Innovation and Skills","Department for Business, Innovation and Skills",02/11/2010,Contract Cleaning,Finance & Commercial Group - Information and Workplace Strategies,GBM SERVICES LTD,1010669,"10,112.18"
"Department for Business, Innovation and Skills","Department for Business, Innovation and Skills",30/11/2010,Contract Cleaning,Finance & Commercial Group - Information and Workplace Strategies,GBM SERVICES LTD,1013123,"10,112.18"
"Department for Business, Innovation and Skills","Department for Business, Innovation and Skills",02/11/2010,Contract Cleaning,Finance & Commercial Group - Information and Workplace Strategies,GBM SERVICES LTD,1010669,"18,700.02"
"Department for Business, Innovation and Skills","Department for Business, Innovation and Skills",30/11/2010,Contract Cleaning,Finance & Commercial Group - Information and Workplace Strategies,GBM SERVICES LTD,1013123,"18,700.02"
"Department for Business, Innovation and Skills","Department for Business, Innovation and Skills",02/11/2010,Contract Cleaning,Finance & Commercial Group - Information and Workplace Strategies,GBM SERVICES LTD,1010669,"44,258.89"
"Department for Business, Innovation and Skills","Department for Business, Innovation and Skills",30/11/2010,Contract Cleaning,Finance & Commercial Group - Information and Workplace Strategies,GBM SERVICES LTD,1013123,"44,258.89"
"Department for Business, Innovation and Skills","Department for Business, Innovation and Skills",08/11/2010,Outsourced Technical Support (Programme),SCIENCE & RESEARCH GROUP - UK Space Agency,GEOSEREN LIMITED,1011063,"9,570.00"
"Department for Business, Innovation and Skills","Department for Business, Innovation and Skills",03/11/2010,Refuse Disposals,Finance & Commercial Group - Information and Workplace Strategies,GLASDON (UK) LTD,1010702,"1,603.25"
"Department for Business, Innovation and Skills","Department for Business, Innovation and Skills",02/11/2010,Refuse Disposals,Finance & Commercial Group - Information and Workplace Strategies,GLASDON (UK) LTD,1010645,"3,620.29"
"Department for Business, Innovation and Skills","Department for Business, Innovation and Skills",09/11/2010,ADP/Fast Stream Training,"Legal, People & Communications Group - HRCM - Human Resources and Change Management Directorate",GLASGOWS,1011339,"1,391.45"
"Department for Business, Innovation and Skills","Department for Business, Innovation and Skills",30/11/2010,Research & Development Expenditure (Programme),GOVERNMENT OFFICE FOR SCIENCE - GOVERNMENT OFFICE FOR SCIENCE,GLOBAL CLIMATE ADAPTATION PARTNERSHIP,1012800,"2,052.30"
"Department for Business, Innovation and Skills","Department for Business, Innovation and Skills",26/11/2010,Other Training Costs,Universities and Skills Group - USG Admin,GLOBAL ECONOMICS LTD,1012822,"2,250.00"
"Department for Business, Innovation and Skills","Department for Business, Innovation and Skills",15/11/2010,Other Training Costs,Universities and Skills Group - USG Admin,GLOBAL ECONOMICS LTD,1011777,"2,382.00"
"Department for Business, Innovation and Skills","Department for Business, Innovation and Skills",09/11/2010,Other Training Costs,Office of Manpower Economics - Office of Manpower Economics,GLOBAL ECONOMICS LTD,1009509,"4,500.00"
"Department for Business, Innovation and Skills","Department for Business, Innovation and Skills",30/11/2010,External Training,Business Group - Business Competitiveness - Secretariat/GRU,GLOBAL ECONOMICS LTD,1013116,"7,000.00"
"Department for Business, Innovation and Skills","Department for Business, Innovation and Skills",12/11/2010,Criminal Law and Prosecution Work,"Legal, People & Communications Group - Legal",GLYN SAMUEL,1011751,932.16
"Department for Business, Innovation and Skills","Department for Business, Innovation and Skills",17/11/2010,Hire of Conference Facilities (Programme),SCIENCE & RESEARCH GROUP - RESEARCH BASE,GONVILLE & CAIUS COLLEGE CAMBRIDGE,1012140,988.5
"Department for Business, Innovation and Skills","Department for Business, Innovation and Skills",17/11/2010,Entertaining UK (Programme),SCIENCE & RESEARCH GROUP - RESEARCH BASE,GONVILLE & CAIUS COLLEGE CAMBRIDGE,1012140,"1,029.00"
"Department for Business, Innovation and Skills","Department for Business, Innovation and Skills",09/11/2010,Hotels (Programme),SCIENCE & RESEARCH GROUP - RESEARCH BASE,GONVILLE HOTELS LTD T/A BEST WESTERN THE GONVILLE HOTEL,1011354,"1,683.01"
"Department for Business, Innovation and Skills","Department for Business, Innovation and Skills",24/11/2010,Finance & Accounting Advice,Shareholder Executive - Shareholder Executive,GOVERNMENT ACTUARYS DEPARTMENT,1012777,"1,866.35"
"Department for Business, Innovation and Skills","Department for Business, Innovation and Skills",24/11/2010,Finance & Accounting Advice,Shareholder Executive - Shareholder Executive,GOVERNMENT ACTUARYS DEPARTMENT,1012777,"5,839.65"
"Department for Business, Innovation and Skills","Department for Business, Innovation and Skills",22/11/2010,Secure Documents Unit,Finance & Commercial Group - Information and Workplace Strategies,GOVERNMENT CAR AND DESPATCH AGENCY,1011828,516.01
"Department for Business, Innovation and Skills","Department for Business, Innovation and Skills",24/11/2010,Car Hire and Leasing,Ministerial and Parliamentary Support Team - Ministerial and Parliamentary Support Team,GOVERNMENT CAR AND DESPATCH AGENCY,1012753,540
"Department for Business, Innovation and Skills","Department for Business, Innovation and Skills",16/11/2010,Interdepartmental Dispatch Services,Finance & Commercial Group - Information and Workplace Strategies,GOVERNMENT CAR AND DESPATCH AGENCY,1011959,545
"Department for Business, Innovation and Skills","Department for Business, Innovation and Skills",29/11/2010,Car Hire and Leasing,Ministerial and Parliamentary Support Team - Ministerial and Parliamentary Support Team,GOVERNMENT CAR AND DESPATCH AGENCY,1012947,600
"Department for Business, Innovation and Skills","Department for Business, Innovation and Skills",24/11/2010,Car Hire and Leasing,Ministerial and Parliamentary Support Team - Ministerial and Parliamentary Support Team,GOVERNMENT CAR AND DESPATCH AGENCY,1012760,645
"Department for Business, Innovation and Skills","Department for Business, Innovation and Skills",25/11/2010,Car Hire and Leasing,Ministerial and Parliamentary Support Team - Ministerial and Parliamentary Support Team,GOVERNMENT CAR AND DESPATCH AGENCY,1012788,765
"Department for Business, Innovation and Skills","Department for Business, Innovation and Skills",02/11/2010,Car Hire and Leasing,Ministerial and Parliamentary Support Team - Ministerial and Parliamentary Support Team,GOVERNMENT CAR AND DESPATCH AGENCY,1010653,863.43
"Department for Business, Innovation and Skills","Department for Business, Innovation and Skills",02/11/2010,Car Hire and Leasing,Ministerial and Parliamentary Support Team - Ministerial and Parliamentary Support Team,GOVERNMENT CAR AND DESPATCH AGENCY,1010661,870
"Department for Business, Innovation and Skills","Department for Business, Innovation and Skills",02/11/2010,Car Hire and Leasing,Ministerial and Parliamentary Support Team - Ministerial and Parliamentary Support Team,GOVERNMENT CAR AND DESPATCH AGENCY,1010659,"1,260.00"
"Department for Business, Innovation and Skills","Department for Business, Innovation and Skills",09/11/2010,Car Hire and Leasing,GOVERNMENT OFFICE FOR SCIENCE - GOVERNMENT OFFICE FOR SCIENCE,GOVERNMENT CAR AND DESPATCH AGENCY,1011458,"1,357.50"
"Department for Business, Innovation and Skills","Department for Business, Innovation and Skills",02/11/2010,Car Hire and Leasing,Ministerial and Parliamentary Support Team - Ministerial and Parliamentary Support Team,GOVERNMENT CAR AND DESPATCH AGENCY,1010664,"1,635.00"
"Department for Business, Innovation and Skills","Department for Business, Innovation and Skills",02/11/2010,Car Hire and Leasing,Ministerial and Parliamentary Support Team - Ministerial and Parliamentary Support Team,GOVERNMENT CAR AND DESPATCH AGENCY,1010624,"2,340.00"
"Department for Business, Innovation and Skills","Department for Business, Innovation and Skills",16/11/2010,Interdepartmental Dispatch Services,Finance & Commercial Group - Information and Workplace Strategies,GOVERNMENT CAR AND DESPATCH AGENCY,1011957,"4,299.00"
"Department for Business, Innovation and Skills","Department for Business, Innovation and Skills",05/11/2010,Car Hire and Leasing,Ministerial and Parliamentary Support Team - Ministerial and Parliamentary Support Team,GOVERNMENT CAR AND DESPATCH AGENCY,1010964,"4,919.64"
"Department for Business, Innovation and Skills","Department for Business, Innovation and Skills",11/11/2010,Car Hire and Leasing,Ministerial and Parliamentary Support Team - Ministerial and Parliamentary Support Team,GOVERNMENT CAR AND DESPATCH AGENCY,1011721,"5,903.54"
"Department for Business, Innovation and Skills","Department for Business, Innovation and Skills",16/11/2010,Interdepartmental Dispatch Services,Finance & Commercial Group - Information and Workplace Strategies,GOVERNMENT CAR AND DESPATCH AGENCY,1011960,"18,774.00"
"Department for Business, Innovation and Skills","Department for Business, Innovation and Skills",10/11/2010,Criminal Law and Prosecution Work,"Legal, People & Communications Group - Legal",HAMPSHIRE POLICE AUTHORITY,1011578,"1,380.00"
"Department for Business, Innovation and Skills","Department for Business, Innovation and Skills",19/11/2010,Criminal Law and Prosecution Work,"Legal, People & Communications Group - Legal",HARRIET BATHURST NORMAN,1012244,"4,598.36"
"Department for Business, Innovation and Skills","Department for Business, Innovation and Skills",26/11/2010,Criminal Law and Prosecution Work,"Legal, People & Communications Group - Legal",HARRIS CUFFARO & NICHOLS,1012830,"7,198.52"
"Department for Business, Innovation and Skills","Department for Business, Innovation and Skills",08/11/2010,External Training,Shareholder Executive - Shareholder Executive,HAWKSMERE LTD T/A KAPLAN,1011105,500
"Department for Business, Innovation and Skills","Department for Business, Innovation and Skills",08/11/2010,Professional Training,Shareholder Executive - Shareholder Executive,HAWKSMERE LTD T/A KAPLAN,1011105,"1,500.00"
"Department for Business, Innovation and Skills","Department for Business, Innovation and Skills",16/11/2010,Professional Training,Shareholder Executive - Shareholder Executive,HAWKSMERE LTD T/A KAPLAN,1011931,"2,000.00"
"Department for Business, Innovation and Skills","Department for Business, Innovation and Skills",25/11/2010,External Training,Business Group - Business Competitiveness - Secretariat/GRU,HAWKSMERE LTD T/A KAPLAN,1012817,"4,000.00"
"Department for Business, Innovation and Skills","Department for Business, Innovation and Skills",24/11/2010,Economic Consultancy & Research,Office of Manpower Economics - Office of Manpower Economics,HAY GROUP MANAGEMENT LTD,1012381,"2,500.00"
"Department for Business, Innovation and Skills","Department for Business, Innovation and Skills",12/11/2010,Corporate Management Consultancy,Finance & Commercial Group - Finance Group,HAYS ACCOUNTANCY PERSONNEL,1011722,628.97
"Department for Business, Innovation and Skills","Department for Business, Innovation and Skills",29/11/2010,Hire of Agency Staff (Clerical/Secretariat/Other),"Legal, People & Communications Group - Communications Directorate",HAYS ACCOUNTANCY PERSONNEL,1012983,700.09
"Department for Business, Innovation and Skills","Department for Business, Innovation and Skills",03/11/2010,Corporate Management Consultancy,Finance & Commercial Group - Finance Group,HAYS ACCOUNTANCY PERSONNEL,1010488,"3,828.00"
"Department for Business, Innovation and Skills","Department for Business, Innovation and Skills",12/11/2010,Corporate Management Consultancy,Finance & Commercial Group - Finance Group,HAYS ACCOUNTANCY PERSONNEL,1011723,"3,828.00"
"Department for Business, Innovation and Skills","Department for Business, Innovation and Skills",12/11/2010,Corporate Management Consultancy,Finance & Commercial Group - Finance Group,HAYS ACCOUNTANCY PERSONNEL,1011724,"3,828.00"
"Department for Business, Innovation and Skills","Department for Business, Innovation and Skills",29/11/2010,Corporate Management Consultancy,Finance & Commercial Group - Finance Group,HAYS ACCOUNTANCY PERSONNEL,1012889,"3,853.60"
"Department for Business, Innovation and Skills","Department for Business, Innovation and Skills",23/11/2010,Outsourced Programme Management Services,Fair Markets Group Summary - Employment Relations,HAYS ACCOUNTANCY PERSONNEL,1012559,"12,404.62"
"Department for Business, Innovation and Skills","Department for Business, Innovation and Skills",23/11/2010,Outsourced Programme Management Services,Fair Markets Group Summary - Employment Relations,HAYS ACCOUNTANCY PERSONNEL,1012563,"12,404.62"
"Department for Business, Innovation and Skills","Department for Business, Innovation and Skills",23/11/2010,Outsourced Programme Management Services,Fair Markets Group Summary - Employment Relations,HAYS ACCOUNTANCY PERSONNEL,1012561,"13,399.51"
"Department for Business, Innovation and Skills","Department for Business, Innovation and Skills",23/11/2010,Outsourced Programme Management Services,Fair Markets Group Summary - Employment Relations,HAYS ACCOUNTANCY PERSONNEL,1012569,"14,687.50"
"Department for Business, Innovation and Skills","Department for Business, Innovation and Skills",25/11/2010,Hire of Agency Staff (Clerical/Secretariat/Other),Ministerial and Parliamentary Support Team - Ministerial and Parliamentary Support Team,HAYS SPECIALIST RECRUITMENT LTD,1012703,564
"Department for Business, Innovation and Skills","Department for Business, Innovation and Skills",30/11/2010,Hire of Agency Staff (Clerical/Secretariat/Other),Ministerial and Parliamentary Support Team - Ministerial and Parliamentary Support Team,HAYS SPECIALIST RECRUITMENT LTD,1013007,564
"Department for Business, Innovation and Skills","Department for Business, Innovation and Skills",03/11/2010,Hire of Agency Staff (Clerical/Secretariat/Other),Ministerial and Parliamentary Support Team - Ministerial and Parliamentary Support Team,HAYS SPECIALIST RECRUITMENT LTD,1010489,606.11
"Department for Business, Innovation and Skills","Department for Business, Innovation and Skills",25/11/2010,Hire of Agency Staff (Clerical/Secretariat/Other),Ministerial and Parliamentary Support Team - Ministerial and Parliamentary Support Team,HAYS SPECIALIST RECRUITMENT LTD,1012702,684.32
"Department for Business, Innovation and Skills","Department for Business, Innovation and Skills",03/11/2010,Hire of Agency Staff (Clerical/Secretariat/Other),"Legal, People & Communications Group - Communications Directorate",HAYS SPECIALIST RECRUITMENT LTD,1009700,686.71
"Department for Business, Innovation and Skills","Department for Business, Innovation and Skills",09/11/2010,Hire of Agency Staff (Clerical/Secretariat/Other),Ministerial and Parliamentary Support Team - Ministerial and Parliamentary Support Team,HAYS SPECIALIST RECRUITMENT LTD,1011062,699.36
"Department for Business, Innovation and Skills","Department for Business, Innovation and Skills",03/11/2010,Hire of Agency Staff (Clerical/Secretariat/Other),"Legal, People & Communications Group - Communications Directorate",HAYS SPECIALIST RECRUITMENT LTD,1009701,713.47
"Department for Business, Innovation and Skills","Department for Business, Innovation and Skills",03/11/2010,Hire of Agency Staff (Clerical/Secretariat/Other),"Legal, People & Communications Group - Communications Directorate",HAYS SPECIALIST RECRUITMENT LTD,1009704,744.68
"Department for Business, Innovation and Skills","Department for Business, Innovation and Skills",22/11/2010,Other HR Consultancy,Finance & Commercial Group - Finance Group,HAYS SPECIALIST RECRUITMENT LTD,1012389,"1,278.50"
"Department for Business, Innovation and Skills","Department for Business, Innovation and Skills",22/11/2010,Other HR Consultancy,Finance & Commercial Group - Finance Group,HAYS SPECIALIST RECRUITMENT LTD,1012388,"1,956.00"
"Department for Business, Innovation and Skills","Department for Business, Innovation and Skills",22/11/2010,Other HR Consultancy,Finance & Commercial Group - Finance Group,HAYS SPECIALIST RECRUITMENT LTD,1012390,"2,608.00"
"Department for Business, Innovation and Skills","Department for Business, Innovation and Skills",22/11/2010,Other HR Consultancy,Finance & Commercial Group - Finance Group,HAYS SPECIALIST RECRUITMENT LTD,1012391,"3,260.00"
"Department for Business, Innovation and Skills","Department for Business, Innovation and Skills",23/11/2010,Other HR Consultancy,Finance & Commercial Group - Finance Group,HAYS SPECIALIST RECRUITMENT LTD,1012573,"3,260.00"
"Department for Business, Innovation and Skills","Department for Business, Innovation and Skills",23/11/2010,Other HR Consultancy,Finance & Commercial Group - Finance Group,HAYS SPECIALIST RECRUITMENT LTD,1012574,"3,260.00"
"Department for Business, Innovation and Skills","Department for Business, Innovation and Skills",17/11/2010,Technical Support,Business Group - Advanced Manufacturing Industries,HEALTH & SAFETY EXECUTIVE,1011979,"17,663.13"
"Department for Business, Innovation and Skills","Department for Business, Innovation and Skills",23/11/2010,Research & Development Expenditure (Programme),GOVERNMENT OFFICE FOR SCIENCE - GOVERNMENT OFFICE FOR SCIENCE,HEALTH PROTECTION AGENCY,1012494,"10,000.00"
"Department for Business, Innovation and Skills","Department for Business, Innovation and Skills",04/11/2010,Grants - Statutory - Current - Other,SCIENCE & RESEARCH GROUP - RESEARCH BASE,HEALTH PROTECTION AGENCY,1010919,"314,071.56"
"Department for Business, Innovation and Skills","Department for Business, Innovation and Skills",10/11/2010,IT Services (Programme),"Legal, People & Communications Group - Communications Directorate",HELPFUL TECHNOLOGY LTD,1011563,"1,400.00"
"Department for Business, Innovation and Skills","Department for Business, Innovation and Skills",12/11/2010,Grants - Non Statutory - Current - Other,Universities and Skills Group - Further Education,HIGHER EDUCATION FUNDING COUNCIL FOR ENGLAND,1011735,"31,696.00"
"Department for Business, Innovation and Skills","Department for Business, Innovation and Skills",12/11/2010,Capital Grants - Other,Universities and Skills Group - Further Education,HIGHER EDUCATION FUNDING COUNCIL FOR ENGLAND,1011740,"284,125.00"
"Department for Business, Innovation and Skills","Department for Business, Innovation and Skills",12/11/2010,Capital Grants - Other,Universities and Skills Group - Further Education,HIGHER EDUCATION FUNDING COUNCIL FOR ENGLAND,1011739,"568,250.00"
"Department for Business, Innovation and Skills","Department for Business, Innovation and Skills",12/11/2010,Grants - Non Statutory - Current - Other,Universities and Skills Group - Further Education,HIGHER EDUCATION FUNDING COUNCIL FOR ENGLAND,1011737,"1,931,959.00"
"Department for Business, Innovation and Skills","Department for Business, Innovation and Skills",12/11/2010,Grants - Non Statutory - Current - Other,Universities and Skills Group - Further Education,HIGHER EDUCATION FUNDING COUNCIL FOR ENGLAND,1011738,"1,934,421.00"
"Department for Business, Innovation and Skills","Department for Business, Innovation and Skills",19/11/2010,Grants - Non Statutory - Current - Other,Universities and Skills Group - Further Education,HIGHER EDUCATION FUNDING COUNCIL FOR ENGLAND,1012274,"8,000,000.00"
"Department for Business, Innovation and Skills","Department for Business, Innovation and Skills",16/11/2010,Grant in Aid - Current -Other,Universities and Skills Group - Higher Education,HIGHER EDUCATION FUNDING COUNCIL FOR ENGLAND,1011643,"826,500,000.00"
"Department for Business, Innovation and Skills","Department for Business, Innovation and Skills",03/11/2010,Hotels (Programme),SCIENCE & RESEARCH GROUP - RESEARCH BASE,HINXTON HALL LTD T/A WELLCOME TRUST CONFERENCE CENTRE,1010789,"3,146.06"
"Department for Business, Innovation and Skills","Department for Business, Innovation and Skills",19/11/2010,BIS Tax Deductions,Corporate Payments,HM REVENUE & CUSTOMS,1012377,531.43
"Department for Business, Innovation and Skills","Department for Business, Innovation and Skills",19/11/2010,Board Members National Insurance Deductions (Suspense Account),Corporate Payments,HM REVENUE & CUSTOMS,1012374,"4,524.50"
"Department for Business, Innovation and Skills","Department for Business, Innovation and Skills",19/11/2010,Board Members Tax Deductions (Suspense Account),Corporate Payments,HM REVENUE & CUSTOMS,1012378,"9,291.70"
"Department for Business, Innovation and Skills","Department for Business, Innovation and Skills",03/11/2010,Administration of Grants and Awards,Universities and Skills Group - Learners,HM REVENUE & CUSTOMS,1010756,"285,611.19"
"Department for Business, Innovation and Skills","Department for Business, Innovation and Skills",02/11/2010,ER Paternity & Adoption Pay : Reimbursement to Inland Revenue,Fair Markets Group Summary - Employment Relations,HM REVENUE & CUSTOMS,1010657,"534,431.51"
"Department for Business, Innovation and Skills","Department for Business, Innovation and Skills",01/11/2010,Administration of Grants and Awards,Universities and Skills Group - Learners,HM REVENUE & CUSTOMS,1010482,"919,493.10"
"Department for Business, Innovation and Skills","Department for Business, Innovation and Skills",16/11/2010,Criminal Law and Prosecution Work,Fair Markets Group Summary - Employment Relations,HMRC,1011962,"16,666.66"
"Department for Business, Innovation and Skills","Department for Business, Innovation and Skills",16/11/2010,Enforcement,Fair Markets Group Summary - Employment Relations,HMRC,1011963,"27,391.00"
"Department for Business, Innovation and Skills","Department for Business, Innovation and Skills",03/11/2010,Enforcement,Fair Markets Group Summary - Employment Relations,HMRC,1010762,"608,564.00"
"Department for Business, Innovation and Skills","Department for Business, Innovation and Skills",08/11/2010,SL DS Utilisation,Universities and Skills Group - Learners,HONOURS TRUSTEES LTD,1010927,"109,014.03"
"Department for Business, Innovation and Skills","Department for Business, Innovation and Skills",26/11/2010,Capital Grants - Other,Business Group - Information Economy,HPC WALES LTD,1012885,"3,750,000.00"
"Department for Business, Innovation and Skills","Department for Business, Innovation and Skills",10/11/2010,Hire of Agency Staff (Professional/Management),"Legal, People & Communications Group - Communications Directorate",HUDSON GLOBAL RESOURCES LTD,1011507,"1,233.75"
"Department for Business, Innovation and Skills","Department for Business, Innovation and Skills",10/11/2010,Hire of Agency Staff (Professional/Management),"Legal, People & Communications Group - Communications Directorate",HUDSON GLOBAL RESOURCES LTD,1011507,"1,233.75"
"Department for Business, Innovation and Skills","Department for Business, Innovation and Skills",17/11/2010,Hire of Agency Staff (Professional/Management),"Legal, People & Communications Group - Communications Directorate",HUDSON GLOBAL RESOURCES LTD,1012058,"1,233.75"
"Department for Business, Innovation and Skills","Department for Business, Innovation and Skills",23/11/2010,Hire of Agency Staff (Professional/Management),"Legal, People & Communications Group - Communications Directorate",HUDSON GLOBAL RESOURCES LTD,1012575,"1,233.75"
"Department for Business, Innovation and Skills","Department for Business, Innovation and Skills",11/11/2010,Standard Desktop Plus Services,Finance & Commercial Group - Information and Workplace Strategies,I2 LTD,1011663,"3,145.50"
"Department for Business, Innovation and Skills","Department for Business, Innovation and Skills",25/11/2010,Research & Development Expenditure (Programme),GOVERNMENT OFFICE FOR SCIENCE - GOVERNMENT OFFICE FOR SCIENCE,IAN CHRISTIE,1012792,"9,000.00"
"Department for Business, Innovation and Skills","Department for Business, Innovation and Skills",18/11/2010,Independent Experts,Business Group - Advanced Manufacturing Industries,ICM AG (INTERNATIONAL CONGRESS & MARKETING),1011914,513.36
"Department for Business, Innovation and Skills","Department for Business, Innovation and Skills",18/11/2010,Other Accommodation Charges (Programme),Finance & Commercial Group - Information and Workplace Strategies,IDEAL CLEANING SERVICES LTD,1012289,"5,522.57"
"Department for Business, Innovation and Skills","Department for Business, Innovation and Skills",24/11/2010,Other Training Costs (Programme),Fair Markets Group Summary - ECO,IMS LTD (INTEREXPORT MANAGEMENT SYSTEMS LTD),1012731,"1,000.00"
"Department for Business, Innovation and Skills","Department for Business, Innovation and Skills",25/11/2010,Other Training Costs (Programme),Fair Markets Group Summary - ECO,IMS LTD (INTEREXPORT MANAGEMENT SYSTEMS LTD),1012736,"3,920.00"
"Department for Business, Innovation and Skills","Department for Business, Innovation and Skills",10/11/2010,Payments to Barclays for Carlson Wagonlit Travel Contract,Finance & Commercial Group - Finance Group,INITIAL CATERING SERVICES LTD T/A AUTOGRAPH,1010551,690.1
"Department for Business, Innovation and Skills","Department for Business, Innovation and Skills",26/11/2010,Capital Grants - Other,Business Group - Advanced Manufacturing Industries,INNOVITS (UK CENTRE OF EXCELLENCE FOR TRANSPORT TELEMATICS AND SUSTAINABLE MOBILTY),1012851,"324,833.72"
"Department for Business, Innovation and Skills","Department for Business, Innovation and Skills",26/11/2010,Capital Grants - Other,Business Group - Advanced Manufacturing Industries,INNOVITS (UK CENTRE OF EXCELLENCE FOR TRANSPORT TELEMATICS AND SUSTAINABLE MOBILTY),1012849,"447,423.28"
"Department for Business, Innovation and Skills","Department for Business, Innovation and Skills",15/11/2010,Leadership & People Management Training,"Legal, People & Communications Group - HRCM - Human Resources and Change Management Directorate",INSTITUTE FOR EMPLOYMENT STUDIES,1011809,"1,626.36"
"Department for Business, Innovation and Skills","Department for Business, Innovation and Skills",10/11/2010,Purchase of Completed Research,Universities and Skills Group - Skills Directorate,INSTITUTE FOR EMPLOYMENT STUDIES,1007503,"20,000.00"
"Department for Business, Innovation and Skills","Department for Business, Innovation and Skills",12/11/2010,Grants - Non Statutory - Current - Other,Universities and Skills Group - Further Education,INSTITUTE FOR LEARNING (PCET),1011764,"19,550.00"
"Department for Business, Innovation and Skills","Department for Business, Innovation and Skills",10/11/2010,Grants - Non Statutory - Current - Other,Universities and Skills Group - Further Education,INSTITUTE FOR LEARNING (PCET),1011583,"61,110.00"
"Department for Business, Innovation and Skills","Department for Business, Innovation and Skills",03/11/2010,Communications & Marketing Training,"Legal, People & Communications Group - Communications Directorate",INSTITUTE OF DIRECT MARKETING TRAINING LTD,1010722,"2,829.60"
"Department for Business, Innovation and Skills","Department for Business, Innovation and Skills",03/11/2010,Communications & Marketing Training,"Legal, People & Communications Group - Communications Directorate",INSTITUTE OF DIRECT MARKETING TRAINING LTD,1010717,"9,152.50"
"Department for Business, Innovation and Skills","Department for Business, Innovation and Skills",08/11/2010,Other Telephone Costs,Shareholder Executive - Shareholder Executive,INTERCALL CONFERENCING SERVICES LTD,1011066,836.66
"Department for Business, Innovation and Skills","Department for Business, Innovation and Skills",30/11/2010,Electricity (Programme),Finance & Commercial Group - Information and Workplace Strategies,INTERNATIONAL AIR TRANSPORT ASSOCIATION (IATA),1013062,810.97
"Department for Business, Innovation and Skills","Department for Business, Innovation and Skills",05/11/2010,Research & Development Expenditure (Programme),GOVERNMENT OFFICE FOR SCIENCE - GOVERNMENT OFFICE FOR SCIENCE,INTERNATIONAL FOOD POLICY RESEARCH INSTITUTE (IFPRI),1010623,514.44
"Department for Business, Innovation and Skills","Department for Business, Innovation and Skills",24/11/2010,Research & Development Expenditure (Programme),GOVERNMENT OFFICE FOR SCIENCE - GOVERNMENT OFFICE FOR SCIENCE,INTERNATIONAL FOOD POLICY RESEARCH INSTITUTE (IFPRI),1012310,"31,180.00"
"Department for Business, Innovation and Skills","Department for Business, Innovation and Skills",11/11/2010,Research & Development Expenditure (Programme),GOVERNMENT OFFICE FOR SCIENCE - GOVERNMENT OFFICE FOR SCIENCE,INTERNATIONAL INSTITUTE FOR ENVIRONMENT & DEVELOPMENT (IIED),1011687,"1,000.00"
"Department for Business, Innovation and Skills","Department for Business, Innovation and Skills",11/11/2010,Research & Development Expenditure (Programme),GOVERNMENT OFFICE FOR SCIENCE - GOVERNMENT OFFICE FOR SCIENCE,INTERNATIONAL INSTITUTE FOR ENVIRONMENT & DEVELOPMENT (IIED),1011687,"3,500.00"
"Department for Business, Innovation and Skills","Department for Business, Innovation and Skills",11/11/2010,Research & Development Expenditure (Programme),GOVERNMENT OFFICE FOR SCIENCE - GOVERNMENT OFFICE FOR SCIENCE,INTERNATIONAL INSTITUTE FOR ENVIRONMENT & DEVELOPMENT (IIED),1011687,"9,000.00"
"Department for Business, Innovation and Skills","Department for Business, Innovation and Skills",18/11/2010,Professional Subscriptions,Fair Markets Group Summary - Europe and World Trade Directorates,ISA (INTERNATIONAL STRATEGIC ANALYSIS),1011933,"1,049.00"
"Department for Business, Innovation and Skills","Department for Business, Innovation and Skills",02/11/2010,Guarding and Security Services,Finance & Commercial Group - Information and Workplace Strategies,ISS FACILITY SERVICES LTD T/A ISS PEGASUS SECURITY,1010636,"2,583.44"
"Department for Business, Innovation and Skills","Department for Business, Innovation and Skills",30/11/2010,Guarding and Security Services,Finance & Commercial Group - Information and Workplace Strategies,ISS FACILITY SERVICES LTD T/A ISS PEGASUS SECURITY,1013046,"2,583.44"
"Department for Business, Innovation and Skills","Department for Business, Innovation and Skills",02/11/2010,Guarding and Security Services,Finance & Commercial Group - Information and Workplace Strategies,ISS FACILITY SERVICES LTD T/A ISS PEGASUS SECURITY,1010636,"2,801.29"
"Department for Business, Innovation and Skills","Department for Business, Innovation and Skills",30/11/2010,Guarding and Security Services,Finance & Commercial Group - Information and Workplace Strategies,ISS FACILITY SERVICES LTD T/A ISS PEGASUS SECURITY,1013046,"2,801.29"
"Department for Business, Innovation and Skills","Department for Business, Innovation and Skills",02/11/2010,Guarding and Security Services,Finance & Commercial Group - Information and Workplace Strategies,ISS FACILITY SERVICES LTD T/A ISS PEGASUS SECURITY,1010636,"10,431.71"
"Department for Business, Innovation and Skills","Department for Business, Innovation and Skills",30/11/2010,Guarding and Security Services,Finance & Commercial Group - Information and Workplace Strategies,ISS FACILITY SERVICES LTD T/A ISS PEGASUS SECURITY,1013046,"10,431.71"
"Department for Business, Innovation and Skills","Department for Business, Innovation and Skills",02/11/2010,Guarding and Security Services,Finance & Commercial Group - Information and Workplace Strategies,ISS FACILITY SERVICES LTD T/A ISS PEGASUS SECURITY,1010636,"13,655.74"
"Department for Business, Innovation and Skills","Department for Business, Innovation and Skills",30/11/2010,Guarding and Security Services,Finance & Commercial Group - Information and Workplace Strategies,ISS FACILITY SERVICES LTD T/A ISS PEGASUS SECURITY,1013046,"13,655.74"
"Department for Business, Innovation and Skills","Department for Business, Innovation and Skills",02/11/2010,Guarding and Security Services,Finance & Commercial Group - Information and Workplace Strategies,ISS FACILITY SERVICES LTD T/A ISS PEGASUS SECURITY,1010636,"27,625.41"
"Department for Business, Innovation and Skills","Department for Business, Innovation and Skills",30/11/2010,Guarding and Security Services,Finance & Commercial Group - Information and Workplace Strategies,ISS FACILITY SERVICES LTD T/A ISS PEGASUS SECURITY,1013046,"27,625.41"
"Department for Business, Innovation and Skills","Department for Business, Innovation and Skills",02/11/2010,Guarding and Security Services,Finance & Commercial Group - Information and Workplace Strategies,ISS FACILITY SERVICES LTD T/A ISS PEGASUS SECURITY,1010636,"28,851.32"
"Department for Business, Innovation and Skills","Department for Business, Innovation and Skills",30/11/2010,Guarding and Security Services,Finance & Commercial Group - Information and Workplace Strategies,ISS FACILITY SERVICES LTD T/A ISS PEGASUS SECURITY,1013046,"28,851.32"
"Department for Business, Innovation and Skills","Department for Business, Innovation and Skills",02/11/2010,Guarding and Security Services,Finance & Commercial Group - Information and Workplace Strategies,ISS FACILITY SERVICES LTD T/A ISS PEGASUS SECURITY,1010636,"40,507.34"
"Department for Business, Innovation and Skills","Department for Business, Innovation and Skills",30/11/2010,Guarding and Security Services,Finance & Commercial Group - Information and Workplace Strategies,ISS FACILITY SERVICES LTD T/A ISS PEGASUS SECURITY,1013046,"40,507.34"
"Department for Business, Innovation and Skills","Department for Business, Innovation and Skills",02/11/2010,Guarding and Security Services,Finance & Commercial Group - Information and Workplace Strategies,ISS FACILITY SERVICES LTD T/A ISS PEGASUS SECURITY,1010636,"120,875.65"
"Department for Business, Innovation and Skills","Department for Business, Innovation and Skills",30/11/2010,Guarding and Security Services,Finance & Commercial Group - Information and Workplace Strategies,ISS FACILITY SERVICES LTD T/A ISS PEGASUS SECURITY,1013046,"120,875.65"
"Department for Business, Innovation and Skills","Department for Business, Innovation and Skills",01/11/2010,On-Line Databases (Programme),Fair Markets Group Summary - Consumer and Competition Policy,ITSA LTD,1010490,"1,128.00"
"Department for Business, Innovation and Skills","Department for Business, Innovation and Skills",01/11/2010,Research & Development Expenditure (Programme),GOVERNMENT OFFICE FOR SCIENCE - GOVERNMENT OFFICE FOR SCIENCE,JAMES M DUNWELL,1009663,500
"Department for Business, Innovation and Skills","Department for Business, Innovation and Skills",12/11/2010,Criminal Law and Prosecution Work,"Legal, People & Communications Group - Legal",JAMES RAE,1011670,"3,384.63"
"Department for Business, Innovation and Skills","Department for Business, Innovation and Skills",18/11/2010,Criminal Law and Prosecution Work,"Legal, People & Communications Group - Legal",JAMES RAE,1012183,"30,844.23"
"Department for Business, Innovation and Skills","Department for Business, Innovation and Skills",01/11/2010,Hire of Agency Staff (Professional/Management),"Legal, People & Communications Group - Communications Directorate",JAMIE O COMMS LTD,1010472,"1,310.00"
"Department for Business, Innovation and Skills","Department for Business, Innovation and Skills",08/11/2010,Hire of Agency Staff (Professional/Management),"Legal, People & Communications Group - Communications Directorate",JAMIE O COMMS LTD,1011092,"1,310.00"
"Department for Business, Innovation and Skills","Department for Business, Innovation and Skills",15/11/2010,Hire of Agency Staff (Professional/Management),"Legal, People & Communications Group - Communications Directorate",JAMIE O COMMS LTD,1011778,"1,310.00"
"Department for Business, Innovation and Skills","Department for Business, Innovation and Skills",22/11/2010,Hire of Agency Staff (Professional/Management),"Legal, People & Communications Group - Communications Directorate",JAMIE O COMMS LTD,1012392,"1,310.00"
"Department for Business, Innovation and Skills","Department for Business, Innovation and Skills",30/11/2010,Hire of Agency Staff (Professional/Management),"Legal, People & Communications Group - Communications Directorate",JAMIE O COMMS LTD,1012996,"1,528.00"
"Department for Business, Innovation and Skills","Department for Business, Innovation and Skills",29/11/2010,Criminal Law and Prosecution Work,"Legal, People & Communications Group - Legal",JOHN BOYLE & CO,1011675,652.52
"Department for Business, Innovation and Skills","Department for Business, Innovation and Skills",01/11/2010,Criminal Law and Prosecution Work,"Legal, People & Communications Group - Legal",JOHN BOYLE & CO,1010320,"3,102.56"
"Department for Business, Innovation and Skills","Department for Business, Innovation and Skills",02/11/2010,Recruitment Consultancy Costs,Fair Markets Group Summary - Consumer and Competition Policy,JOHN CHURCHILL,1010662,677.2
"Department for Business, Innovation and Skills","Department for Business, Innovation and Skills",03/11/2010,Criminal Law and Prosecution Work,"Legal, People & Communications Group - Legal",JONATHAN ASHLEY-NORMAN,1010788,"28,319.20"
"Department for Business, Innovation and Skills","Department for Business, Innovation and Skills",18/11/2010,Other Accommodation Charges (Programme),Finance & Commercial Group - Information and Workplace Strategies,K CLEANING SERVICES,1012282,"1,011.71"
"Department for Business, Innovation and Skills","Department for Business, Innovation and Skills",24/11/2010,External Training,Finance & Commercial Group - Finance Group,KAPLAN FINANCIAL LTD,1012519,"2,809.72"
"Department for Business, Innovation and Skills","Department for Business, Innovation and Skills",24/11/2010,External Training,Finance & Commercial Group - Finance Group,KAPLAN FINANCIAL LTD,1012519,"7,403.77"
"Department for Business, Innovation and Skills","Department for Business, Innovation and Skills",05/11/2010,Corporate Management Consultancy,"Innovation, Enterprise & Better Regulation Executive - Enterprise Directorate",KEMPSHOTT RESEARCH MANAGEMENT,1011017,"1,854.50"
"Department for Business, Innovation and Skills","Department for Business, Innovation and Skills",26/11/2010,ICT Maintenance & Upkeep,Finance & Commercial Group - Information and Workplace Strategies,KINGSTON COMMUNICATIONS,1012606,"2,750.00"
"Department for Business, Innovation and Skills","Department for Business, Innovation and Skills",10/11/2010,Criminal Law and Prosecution Work,"Legal, People & Communications Group - Legal",KJB Partners Ltd,1011572,"1,518.10"
"Department for Business, Innovation and Skills","Department for Business, Innovation and Skills",10/11/2010,Criminal Law and Prosecution Work,"Legal, People & Communications Group - Legal",KJB Partners Ltd,1011573,"1,683.09"
"Department for Business, Innovation and Skills","Department for Business, Innovation and Skills",18/11/2010,Financial Advice and Services,Finance & Commercial Group - Finance Group,KPMG LLP,1012268,"95,620.00"
"Department for Business, Innovation and Skills","Department for Business, Innovation and Skills",03/11/2010,Research & Development Expenditure (Programme),GOVERNMENT OFFICE FOR SCIENCE - GOVERNMENT OFFICE FOR SCIENCE,LAURA MCCAFFREY,1010736,"1,517.90"
"Department for Business, Innovation and Skills","Department for Business, Innovation and Skills",05/11/2010,Grants - Non Statutory - Current - Other,Universities and Skills Group - Further Education,LEARNING AND SKILLS IMPROVEMENT SERVICE,1010712,"2,500,000.00"
"Department for Business, Innovation and Skills","Department for Business, Innovation and Skills",24/11/2010,External Training,"Innovation, Enterprise & Better Regulation Executive - Enterprise Directorate",LEARNLAB LTD,1012603,"1,060.00"
"Department for Business, Innovation and Skills","Department for Business, Innovation and Skills",23/11/2010,Corporate Management Consultancy,"Innovation, Enterprise & Better Regulation Executive - Enterprise Directorate",LEARNLAB LTD,1012511,"3,036.60"
"Department for Business, Innovation and Skills","Department for Business, Innovation and Skills",26/11/2010,Publications,"Legal, People & Communications Group - Legal",LEXISNEXIS BUTTERWORTHS,1012854,529.46
"Department for Business, Innovation and Skills","Department for Business, Innovation and Skills",09/11/2010,Publications,"Legal, People & Communications Group - Legal",LEXISNEXIS BUTTERWORTHS,1011476,663.35
"Department for Business, Innovation and Skills","Department for Business, Innovation and Skills",26/11/2010,Publications,"Legal, People & Communications Group - Legal",LEXISNEXIS BUTTERWORTHS,1012854,"1,572.64"
"Department for Business, Innovation and Skills","Department for Business, Innovation and Skills",23/11/2010,InfoSource Desktop Information and Research Services,Finance & Commercial Group - Information and Workplace Strategies,LEXISNEXIS BUTTERWORTHS,1012513,"1,894.00"
"Department for Business, Innovation and Skills","Department for Business, Innovation and Skills",26/11/2010,Publications,"Legal, People & Communications Group - Legal",LEXISNEXIS BUTTERWORTHS,1012850,"2,264.85"
"Department for Business, Innovation and Skills","Department for Business, Innovation and Skills",04/11/2010,InfoSource Desktop Information and Research Services,Finance & Commercial Group - Information and Workplace Strategies,LEXISNEXIS BUTTERWORTHS,1009286,"12,161.12"
"Department for Business, Innovation and Skills","Department for Business, Innovation and Skills",23/11/2010,InfoSource Desktop Information and Research Services,Finance & Commercial Group - Information and Workplace Strategies,LEXISNEXIS BUTTERWORTHS,1012515,"12,161.12"
"Department for Business, Innovation and Skills","Department for Business, Innovation and Skills",03/11/2010,Technical Advice / Services & Support,Fair Markets Group Summary - Consumer and Competition Policy,LGC LTD,1010500,"13,721.10"
"Department for Business, Innovation and Skills","Department for Business, Innovation and Skills",15/11/2010,Leadership & People Management Training,"Legal, People & Communications Group - HRCM - Human Resources and Change Management Directorate",LIFE ACADEMY,1011854,583.74
"Department for Business, Innovation and Skills","Department for Business, Innovation and Skills",03/11/2010,Leadership & People Management Training,"Legal, People & Communications Group - HRCM - Human Resources and Change Management Directorate",LIFE ACADEMY,1009011,950
"Department for Business, Innovation and Skills","Department for Business, Innovation and Skills",26/11/2010,Grants - Non Statutory - Current - Other,Universities and Skills Group - Further Education,LIFELONG LEARNING UK (LLUK),1012886,"435,249.00"
"Department for Business, Innovation and Skills","Department for Business, Innovation and Skills",09/11/2010,Other IT Costs,"Innovation, Enterprise & Better Regulation Executive - Better Regulation Executive (BRE)",LIGHTMAKER UK LTD,1011371,"1,057.50"
"Department for Business, Innovation and Skills","Department for Business, Innovation and Skills",29/11/2010,Grants - Non Statutory - Current - Other,Fair Markets Group Summary - Consumer and Competition Policy,LIVERPOOL CITY COUNCIL,1012905,"22,456.22"
"Department for Business, Innovation and Skills","Department for Business, Innovation and Skills",22/11/2010,Payroll Services,"Legal, People & Communications Group - HRCM - Human Resources and Change Management Directorate",LOGICA UK LTD,1012441,"3,544.98"
"Department for Business, Innovation and Skills","Department for Business, Innovation and Skills",22/11/2010,Payroll Services,"Legal, People & Communications Group - HRCM - Human Resources and Change Management Directorate",LOGICA UK LTD,1012440,"5,409.06"
"Department for Business, Innovation and Skills","Department for Business, Innovation and Skills",23/11/2010,Payroll Services,"Legal, People & Communications Group - HRCM - Human Resources and Change Management Directorate",LOGICA UK LTD,1012445,"6,079.36"
"Department for Business, Innovation and Skills","Department for Business, Innovation and Skills",22/11/2010,Payroll Services,"Legal, People & Communications Group - HRCM - Human Resources and Change Management Directorate",LOGICA UK LTD,1012443,"8,802.11"
"Department for Business, Innovation and Skills","Department for Business, Innovation and Skills",22/11/2010,Payroll Services,"Legal, People & Communications Group - HRCM - Human Resources and Change Management Directorate",LOGICA UK LTD,1012442,"12,002.24"
"Department for Business, Innovation and Skills","Department for Business, Innovation and Skills",01/11/2010,Computer Equipment - Clearing,Finance & Commercial Group - Information and Workplace Strategies,LOGICA UK LTD,1010495,"12,167.96"
"Department for Business, Innovation and Skills","Department for Business, Innovation and Skills",11/11/2010,Standard Desktop Plus Services,Finance & Commercial Group - Information and Workplace Strategies,LOGICA UK LTD,1011192,"27,523.93"
"Department for Business, Innovation and Skills","Department for Business, Innovation and Skills",02/11/2010,ICT Business Specific Application Services,Finance & Commercial Group - Information and Workplace Strategies,LOGICA UK LTD,1010410,"39,505.54"
"Department for Business, Innovation and Skills","Department for Business, Innovation and Skills",26/11/2010,Economic Consultancy & Research,Strategic Policy Analysis - Strategic Policy Analysis,LSE ENTERPRISE LTD,1012865,"20,000.00"
"Department for Business, Innovation and Skills","Department for Business, Innovation and Skills",05/11/2010,Criminal Law and Prosecution Work,"Legal, People & Communications Group - Legal",LUPTON FAWCETT,1010977,"1,913.36"
"Department for Business, Innovation and Skills","Department for Business, Innovation and Skills",08/11/2010,Criminal Law and Prosecution Work,"Legal, People & Communications Group - Legal",LUPTON FAWCETT,1010993,"3,610.50"
"Department for Business, Innovation and Skills","Department for Business, Innovation and Skills",18/11/2010,Maintenance,Finance & Commercial Group - Information and Workplace Strategies,M J FERGUSON LTD,1012182,551.48
"Department for Business, Innovation and Skills","Department for Business, Innovation and Skills",30/11/2010,Leased Buildings - Clearing,Finance & Commercial Group - Information and Workplace Strategies,M J FERGUSON LTD,1013074,"66,602.51"
"Department for Business, Innovation and Skills","Department for Business, Innovation and Skills",25/11/2010,Maintenance of IT Equipment,"Legal, People & Communications Group - Communications Directorate",MANAGED INFORMATION TECHNOLOGIES LTD T/A BEAVER SOLUTIONS,1012780,"4,944.00"
"Department for Business, Innovation and Skills","Department for Business, Innovation and Skills",04/11/2010,Mail and Messenger Contract Costs,Finance & Commercial Group - Information and Workplace Strategies,MANPOWER UK LTD,1010920,774.13
"Department for Business, Innovation and Skills","Department for Business, Innovation and Skills",12/11/2010,Mail and Messenger Contract Costs,Finance & Commercial Group - Information and Workplace Strategies,MANPOWER UK LTD,1011727,774.13
"Department for Business, Innovation and Skills","Department for Business, Innovation and Skills",19/11/2010,Mail and Messenger Contract Costs,Finance & Commercial Group - Information and Workplace Strategies,MANPOWER UK LTD,1012308,774.13
"Department for Business, Innovation and Skills","Department for Business, Innovation and Skills",26/11/2010,Mail and Messenger Contract Costs,Finance & Commercial Group - Information and Workplace Strategies,MANPOWER UK LTD,1012867,774.13
"Department for Business, Innovation and Skills","Department for Business, Innovation and Skills",10/11/2010,Criminal Law and Prosecution Work,"Legal, People & Communications Group - Legal",MARK SAVILL,1011541,"2,837.63"
"Department for Business, Innovation and Skills","Department for Business, Innovation and Skills",08/11/2010,Criminal Law and Prosecution Work,"Legal, People & Communications Group - Legal",MARTHA WALSH,1010997,"1,109.20"
"Department for Business, Innovation and Skills","Department for Business, Innovation and Skills",24/11/2010,Criminal Law and Prosecution Work,"Legal, People & Communications Group - Legal",MCKINNELLS SOLICITORS,1012679,514.84
"Department for Business, Innovation and Skills","Department for Business, Innovation and Skills",16/11/2010,Criminal Law and Prosecution Work,"Legal, People & Communications Group - Legal",MCKINNELLS SOLICITORS,1011937,538.15
"Department for Business, Innovation and Skills","Department for Business, Innovation and Skills",16/11/2010,Criminal Law and Prosecution Work,"Legal, People & Communications Group - Legal",MCKINNELLS SOLICITORS,1011939,719.66
"Department for Business, Innovation and Skills","Department for Business, Innovation and Skills",24/11/2010,Criminal Law and Prosecution Work,"Legal, People & Communications Group - Legal",MCKINNELLS SOLICITORS,1012681,"1,102.35"
"Department for Business, Innovation and Skills","Department for Business, Innovation and Skills",19/11/2010,Other Training Costs,Strategic Policy Analysis - Strategic Policy Analysis,MDP,1012350,695
"Department for Business, Innovation and Skills","Department for Business, Innovation and Skills",05/11/2010,Grant in Aid - Current -Other,SCIENCE & RESEARCH GROUP - RESEARCH BASE,MEDICAL RESEARCH COUNCIL,1010967,"59,330,000.00"
"Department for Business, Innovation and Skills","Department for Business, Innovation and Skills",11/11/2010,Occupational Health Service,"Legal, People & Communications Group - HRCM - Human Resources and Change Management Directorate",MEDIGOLD HEALTH CONSULTANCY LTD,1011338,"1,146.80"
"Department for Business, Innovation and Skills","Department for Business, Innovation and Skills",03/11/2010,Occupational Health Service,"Legal, People & Communications Group - HRCM - Human Resources and Change Management Directorate",MEDIGOLD HEALTH CONSULTANCY LTD,1010760,"1,800.00"
"Department for Business, Innovation and Skills","Department for Business, Innovation and Skills",10/11/2010,Criminal Law and Prosecution Work,"Legal, People & Communications Group - Legal",MENDIP MEDIA GROUP LTD,1011523,977.53
"Department for Business, Innovation and Skills","Department for Business, Innovation and Skills",04/11/2010,ICT Maintenance & Upkeep,Finance & Commercial Group - Information and Workplace Strategies,METHODS CONSULTING LTD,1010867,"10,575.00"
"Department for Business, Innovation and Skills","Department for Business, Innovation and Skills",10/11/2010,Computer Equipment - Clearing,Finance & Commercial Group - Information and Workplace Strategies,METHODS CONSULTING LTD,1011065,"19,740.00"
"Department for Business, Innovation and Skills","Department for Business, Innovation and Skills",26/11/2010,Research & Development Expenditure (Programme),GOVERNMENT OFFICE FOR SCIENCE - GOVERNMENT OFFICE FOR SCIENCE,MICHAEL BLAKENEY,1012844,500
"Department for Business, Innovation and Skills","Department for Business, Innovation and Skills",01/11/2010,Hire of Agency Staff (Professional/Management),Finance & Commercial Group - Finance Group,MICHAEL PAGE INTERNATIONAL RECRUITMENT LTD,1010426,"1,903.50"
"Department for Business, Innovation and Skills","Department for Business, Innovation and Skills",18/11/2010,Hire of Agency Staff (Professional/Management),Finance & Commercial Group - Finance Group,MICHAEL PAGE INTERNATIONAL RECRUITMENT LTD,1012286,"1,960.37"
"Department for Business, Innovation and Skills","Department for Business, Innovation and Skills",04/11/2010,Hire of Agency Staff (Professional/Management),Finance & Commercial Group - Finance Group,MICHAEL PAGE INTERNATIONAL RECRUITMENT LTD,1010861,"1,983.87"
"Department for Business, Innovation and Skills","Department for Business, Innovation and Skills",09/11/2010,Hire of Agency Staff (Professional/Management),Finance & Commercial Group - Finance Group,MICHAEL PAGE INTERNATIONAL RECRUITMENT LTD,1011203,"1,983.87"
"Department for Business, Innovation and Skills","Department for Business, Innovation and Skills",24/11/2010,Hire of Agency Staff (Professional/Management),Finance & Commercial Group - Finance Group,MICHAEL PAGE INTERNATIONAL RECRUITMENT LTD,1012608,"1,983.87"
"Department for Business, Innovation and Skills","Department for Business, Innovation and Skills",09/11/2010,Hire of Agency Staff (Professional/Management),Finance & Commercial Group - Finance Group,MICHAEL PAGE INTERNATIONAL RECRUITMENT LTD,1011131,"2,379.38"
"Department for Business, Innovation and Skills","Department for Business, Innovation and Skills",11/11/2010,Hire of Agency Staff (Professional/Management),Finance & Commercial Group - Finance Group,MICHAEL PAGE INTERNATIONAL RECRUITMENT LTD,1011597,"2,379.38"
"Department for Business, Innovation and Skills","Department for Business, Innovation and Skills",03/11/2010,Hire of Agency Staff (Professional/Management),"Legal, People & Communications Group - Communications Directorate",MICHAEL PAGE INTERNATIONAL RECRUITMENT LTD,1010811,"2,696.53"
"Department for Business, Innovation and Skills","Department for Business, Innovation and Skills",30/11/2010,Hire of Agency Staff (Professional/Management),"Legal, People & Communications Group - Communications Directorate",MICHAEL PAGE INTERNATIONAL RECRUITMENT LTD,1012526,"2,949.25"
"Department for Business, Innovation and Skills","Department for Business, Innovation and Skills",09/11/2010,Hire of Agency Staff (Professional/Management),"Legal, People & Communications Group - Communications Directorate",MICHAEL PAGE INTERNATIONAL RECRUITMENT LTD,1011201,"2,984.46"
"Department for Business, Innovation and Skills","Department for Business, Innovation and Skills",18/11/2010,Hire of Agency Staff (Professional/Management),"Legal, People & Communications Group - Communications Directorate",MICHAEL PAGE INTERNATIONAL RECRUITMENT LTD,1012070,"3,370.66"
"Department for Business, Innovation and Skills","Department for Business, Innovation and Skills",03/11/2010,Research & Development Expenditure (Programme),GOVERNMENT OFFICE FOR SCIENCE - GOVERNMENT OFFICE FOR SCIENCE,MIKE BOLAND,1010733,675
"Department for Business, Innovation and Skills","Department for Business, Innovation and Skills",05/11/2010,Departmental Sponsored Training (Programme),Universities and Skills Group - Learners,MINISTRY OF DEFENCE,1011067,"1,225.00"
"Department for Business, Innovation and Skills","Department for Business, Innovation and Skills",05/11/2010,Departmental Sponsored Training (Programme),Universities and Skills Group - Learners,MINISTRY OF DEFENCE,1011071,"3,400.00"
"Department for Business, Innovation and Skills","Department for Business, Innovation and Skills",05/11/2010,Departmental Sponsored Training (Programme),Universities and Skills Group - Learners,MINISTRY OF DEFENCE,1011070,"3,721.00"
"Department for Business, Innovation and Skills","Department for Business, Innovation and Skills",17/11/2010,Maintenance (Programme),Finance & Commercial Group - Information and Workplace Strategies,MITIE TECHNICAL FACILITIES MANAGEMENT LTD,1012025,928.85
"Department for Business, Innovation and Skills","Department for Business, Innovation and Skills",17/11/2010,Maintenance (Programme),Finance & Commercial Group - Information and Workplace Strategies,MITIE TECHNICAL FACILITIES MANAGEMENT LTD,1012025,"1,882.96"
"Department for Business, Innovation and Skills","Department for Business, Innovation and Skills",25/11/2010,Sponsorship Support,"Innovation, Enterprise & Better Regulation Executive - Enterprise Directorate",MONEY ADVICE TRUST,1012740,"132,375.00"
"Department for Business, Innovation and Skills","Department for Business, Innovation and Skills",25/11/2010,Sponsorship Support,"Innovation, Enterprise & Better Regulation Executive - Enterprise Directorate",MONEY ADVICE TRUST,1012741,"132,375.00"
"Department for Business, Innovation and Skills","Department for Business, Innovation and Skills",25/11/2010,Sponsorship Support,"Innovation, Enterprise & Better Regulation Executive - Enterprise Directorate",MONEY ADVICE TRUST,1012743,"132,375.00"
"Department for Business, Innovation and Skills","Department for Business, Innovation and Skills",02/11/2010,External Training,Universities and Skills Group - USG Admin,MONITOR COMPANY EUROPE,1010608,"2,000.00"
"Department for Business, Innovation and Skills","Department for Business, Innovation and Skills",05/11/2010,Criminal Law and Prosecution Work,"Legal, People & Communications Group - Legal",MORGAN BROWN & CAHILL SOLICITORS,1010971,"1,142.22"
"Department for Business, Innovation and Skills","Department for Business, Innovation and Skills",10/11/2010,Criminal Law and Prosecution Work,"Legal, People & Communications Group - Legal",MORGAN BROWN & CAHILL SOLICITORS,1011525,"2,122.57"
"Department for Business, Innovation and Skills","Department for Business, Innovation and Skills",15/11/2010,Research & Development Expenditure (Programme),GOVERNMENT OFFICE FOR SCIENCE - GOVERNMENT OFFICE FOR SCIENCE,MORRIS RESOURCE ECONOMICS LTD,1011917,"1,349.90"
"Department for Business, Innovation and Skills","Department for Business, Innovation and Skills",16/11/2010,External Legal Advice and Services,Finance & Commercial Group - Information and Workplace Strategies,MORTON FRASER LLP,1011926,"1,319.15"
"Department for Business, Innovation and Skills","Department for Business, Innovation and Skills",03/11/2010,Corporate Management Consultancy,Universities and Skills Group - USG Admin,MOUCHEL MANAGEMENT CONSULTING LTD,1010809,"22,729.36"
"Department for Business, Innovation and Skills","Department for Business, Innovation and Skills",23/11/2010,Economic Consultancy & Research,Fair Markets Group Summary - Employment Relations,NATIONAL CENTRE FOR SOCIAL RESEARCH(NATCEN),1012501,"39,111.53"
"Department for Business, Innovation and Skills","Department for Business, Innovation and Skills",29/11/2010,Outsourced Programme Management Services,Universities and Skills Group - Further Education,NATIONAL INSTITUTE OF ADULT CONTINUING EDUCATION (ENGLAND AND WALES) NIACE,1012921,"9,076.88"
"Department for Business, Innovation and Skills","Department for Business, Innovation and Skills",29/11/2010,Outsourced Programme Management Services,Universities and Skills Group - Further Education,NATIONAL INSTITUTE OF ADULT CONTINUING EDUCATION (ENGLAND AND WALES) NIACE,1012921,"12,319.88"
"Department for Business, Innovation and Skills","Department for Business, Innovation and Skills",29/11/2010,Outsourced Programme Management Services,Universities and Skills Group - Further Education,NATIONAL INSTITUTE OF ADULT CONTINUING EDUCATION (ENGLAND AND WALES) NIACE,1012921,"17,009.55"
"Department for Business, Innovation and Skills","Department for Business, Innovation and Skills",05/11/2010,Recoverable VAT Input,Corporate Payments,NATIONAL MEASUREMENT OFFICE,1011078,"1,616,606.58"
"Department for Business, Innovation and Skills","Department for Business, Innovation and Skills",11/11/2010,Non-GIA Funding of Bodies (Departmental and Non-Departmental),"Innovation, Enterprise & Better Regulation Executive - Innovation",NATIONAL MEASUREMENT OFFICE,1011640,"5,187,000.00"
"Department for Business, Innovation and Skills","Department for Business, Innovation and Skills",10/11/2010,Criminal Law and Prosecution Work,"Legal, People & Communications Group - Legal",NATIONAL POLICING IMPROVEMENT AGENCY,1011574,539.91
"Department for Business, Innovation and Skills","Department for Business, Innovation and Skills",02/11/2010,External Training,Fair Markets Group Summary - Fair Markets Director General's Office,NATIONAL SCHOOL OF GOVERNMENT,1010423,"1,650.00"
"Department for Business, Innovation and Skills","Department for Business, Innovation and Skills",12/11/2010,ADP/Fast Stream Training,"Legal, People & Communications Group - HRCM - Human Resources and Change Management Directorate",NATIONAL SCHOOL OF GOVERNMENT (CMPS),1011716,805
"Department for Business, Innovation and Skills","Department for Business, Innovation and Skills",15/11/2010,ADP/Fast Stream Training,"Legal, People & Communications Group - HRCM - Human Resources and Change Management Directorate",NATIONAL SCHOOL OF GOVERNMENT (CMPS),1011808,"1,620.00"
"Department for Business, Innovation and Skills","Department for Business, Innovation and Skills",19/11/2010,External Training,Business Group - Business Competitiveness - Secretariat/GRU,NATIONAL SCHOOL OF GOVERNMENT (CMPS),1012312,"1,655.00"
"Department for Business, Innovation and Skills","Department for Business, Innovation and Skills",02/11/2010,Other Training Costs,Strategic Policy Analysis - Strategic Policy Analysis,NATIONAL SCHOOL OF GOVERNMENT (CMPS),1010329,"1,875.00"
"Department for Business, Innovation and Skills","Department for Business, Innovation and Skills",10/11/2010,External Training,Strategic Policy Analysis - Strategic Policy Analysis,NATIONAL SCHOOL OF GOVERNMENT (CMPS),1011613,"8,100.00"
"Department for Business, Innovation and Skills","Department for Business, Innovation and Skills",15/11/2010,ADP/Fast Stream Training,"Legal, People & Communications Group - HRCM - Human Resources and Change Management Directorate",NATIONAL SCHOOL OF GOVERNMENT (CMPS),1011817,"21,386.00"
"Department for Business, Innovation and Skills","Department for Business, Innovation and Skills",03/11/2010,Outsourced Technical Support (Programme),SCIENCE & RESEARCH GROUP - UK Space Agency,NATIONAL SPACE SCIENCE CENTRE,1010778,"7,500.00"
"Department for Business, Innovation and Skills","Department for Business, Innovation and Skills",05/11/2010,Grant in Aid - Current -Other,SCIENCE & RESEARCH GROUP - RESEARCH BASE,NATURAL ENVIRONMENT RESEARCH COUNCIL (BGS BRITISH GEOLOGICAL SURVEY),1010973,"45,000,000.00"
"Department for Business, Innovation and Skills","Department for Business, Innovation and Skills",03/11/2010,Grants - Non Statutory - Current - Other,Fair Markets Group Summary - Consumer and Competition Policy,NEWPORT CITY COUNCIL,1010615,"10,965.50"
"Department for Business, Innovation and Skills","Department for Business, Innovation and Skills",03/11/2010,Grants - Non Statutory - Current - Other,Fair Markets Group Summary - Consumer and Competition Policy,NEWPORT CITY COUNCIL,1010615,"21,138.00"
"Department for Business, Innovation and Skills","Department for Business, Innovation and Skills",03/11/2010,Grants - Non Statutory - Current - Other,Fair Markets Group Summary - Consumer and Competition Policy,NEWPORT CITY COUNCIL,1010615,"21,138.00"
"Department for Business, Innovation and Skills","Department for Business, Innovation and Skills",03/11/2010,Grants - Non Statutory - Current - Other,Fair Markets Group Summary - Consumer and Competition Policy,NEWPORT CITY COUNCIL,1010615,"21,138.00"
"Department for Business, Innovation and Skills","Department for Business, Innovation and Skills",12/11/2010,Purchase of Completed Research,Universities and Skills Group - Skills Directorate,NFER TRADING LTD,1011766,"363,820.00"
"Department for Business, Innovation and Skills","Department for Business, Innovation and Skills",10/11/2010,Criminal Law and Prosecution Work,"Legal, People & Communications Group - Legal",NICHOLAS COLE,1011561,880.66
"Department for Business, Innovation and Skills","Department for Business, Innovation and Skills",15/11/2010,Criminal Law and Prosecution Work,"Legal, People & Communications Group - Legal",NICHOLAS HAMBLIN,1011826,"1,304.25"
"Department for Business, Innovation and Skills","Department for Business, Innovation and Skills",26/11/2010,Research & Development Expenditure (Programme),GOVERNMENT OFFICE FOR SCIENCE - GOVERNMENT OFFICE FOR SCIENCE,NIELS ROLING,1012521,500
"Department for Business, Innovation and Skills","Department for Business, Innovation and Skills",18/11/2010,Economic Consultancy & Research,Fair Markets Group Summary - Employment Relations,NIESR SERVICES LTD,1012221,"4,800.00"
"Department for Business, Innovation and Skills","Department for Business, Innovation and Skills",16/11/2010,Research & Development Expenditure (Programme),GOVERNMENT OFFICE FOR SCIENCE - GOVERNMENT OFFICE FOR SCIENCE,NOAH DIFFENBAUGH,1011411,"2,494.40"
"Department for Business, Innovation and Skills","Department for Business, Innovation and Skills",12/11/2010,Grant in Aid - Current -Other,Business Group - Economic Development Directorate,NORTHWEST REGIONAL DEVELOPMENT AGENCY,1011362,"25,000,000.00"
"Department for Business, Innovation and Skills","Department for Business, Innovation and Skills",18/11/2010,Grants - Non Statutory - Current - Other,Fair Markets Group Summary - Consumer and Competition Policy,NOTTINGHAM CITY COUNCIL,1012235,"132,561.00"
"Department for Business, Innovation and Skills","Department for Business, Innovation and Skills",08/11/2010,Grants - Non Statutory - Current - Other,Fair Markets Group Summary - Consumer and Competition Policy,NOTTINGHAMSHIRE COUNTY COUNCIL,1011160,"7,103.78"
"Department for Business, Innovation and Skills","Department for Business, Innovation and Skills",08/11/2010,Grants - Non Statutory - Current - Other,Fair Markets Group Summary - Consumer and Competition Policy,NOTTINGHAMSHIRE COUNTY COUNCIL,1011160,"20,718.00"
"Department for Business, Innovation and Skills","Department for Business, Innovation and Skills",08/11/2010,Grants - Non Statutory - Current - Other,Fair Markets Group Summary - Consumer and Competition Policy,NOTTINGHAMSHIRE COUNTY COUNCIL,1011160,"20,718.00"
"Department for Business, Innovation and Skills","Department for Business, Innovation and Skills",10/11/2010,Technical Advice / Services & Support,Shareholder Executive - Shareholder Executive,OAKLEIGH ADVISORS LTD,1011554,"1,140.00"
"Department for Business, Innovation and Skills","Department for Business, Innovation and Skills",10/11/2010,Purchase of Completed Research,Universities and Skills Group - Skills Directorate,OECD ORGANISATION FOR ECONOMIC CO-OPERATION AND DEVELOPMENT,1011053,"238,005.41"
"Department for Business, Innovation and Skills","Department for Business, Innovation and Skills",30/11/2010,Non-GIA Funding of Bodies (Departmental and Non-Departmental),Business Group - Information Economy,OFCOM,1012883,"177,352.00"
"Department for Business, Innovation and Skills","Department for Business, Innovation and Skills",30/11/2010,Hire of Agency Staff (Clerical/Secretariat/Other),Ministerial and Parliamentary Support Team - Ministerial and Parliamentary Support Team,OFFICE ANGELS LTD,1013011,505.34
"Department for Business, Innovation and Skills","Department for Business, Innovation and Skills",08/11/2010,Hire of Agency Staff (Clerical/Secretariat/Other),Ministerial and Parliamentary Support Team - Ministerial and Parliamentary Support Team,OFFICE ANGELS LTD,1011102,508.48
"Department for Business, Innovation and Skills","Department for Business, Innovation and Skills",09/11/2010,Hire of Agency Staff (Clerical/Secretariat/Other),Ministerial and Parliamentary Support Team - Ministerial and Parliamentary Support Team,OFFICE ANGELS LTD,1011474,508.48
"Department for Business, Innovation and Skills","Department for Business, Innovation and Skills",22/11/2010,Hire of Agency Staff (Clerical/Secretariat/Other),Ministerial and Parliamentary Support Team - Ministerial and Parliamentary Support Team,OFFICE ANGELS LTD,1012406,508.48
"Department for Business, Innovation and Skills","Department for Business, Innovation and Skills",19/11/2010,Hire of Agency Staff (Clerical/Secretariat/Other),Ministerial and Parliamentary Support Team - Ministerial and Parliamentary Support Team,OFFICE ANGELS LTD,1012356,515.36
"Department for Business, Innovation and Skills","Department for Business, Innovation and Skills",09/11/2010,Hire of Agency Staff (Clerical/Secretariat/Other),Ministerial and Parliamentary Support Team - Ministerial and Parliamentary Support Team,OFFICE ANGELS LTD,1011462,541.44
"Department for Business, Innovation and Skills","Department for Business, Innovation and Skills",09/11/2010,Hire of Agency Staff (Clerical/Secretariat/Other),Ministerial and Parliamentary Support Team - Ministerial and Parliamentary Support Team,OFFICE ANGELS LTD,1011466,541.44
"Department for Business, Innovation and Skills","Department for Business, Innovation and Skills",05/11/2010,Hire of Agency Staff (Clerical/Secretariat/Other),Ministerial and Parliamentary Support Team - Ministerial and Parliamentary Support Team,OFFICE ANGELS LTD,1011006,568.51
"Department for Business, Innovation and Skills","Department for Business, Innovation and Skills",30/11/2010,Hire of Agency Staff (Clerical/Secretariat/Other),Ministerial and Parliamentary Support Team - Ministerial and Parliamentary Support Team,OFFICE ANGELS LTD,1013009,604.61
"Department for Business, Innovation and Skills","Department for Business, Innovation and Skills",05/11/2010,Hire of Agency Staff (Clerical/Secretariat/Other),Ministerial and Parliamentary Support Team - Ministerial and Parliamentary Support Team,OFFICE ANGELS LTD,1011011,676.8
